ORGANISATION NAME,EFEFCTIVE DATE,DIRECTORATE,SUPPLIER NAME,DATE PAID,AMOUNT (�),PURPOSE,TRANSACTION No.
ROCHDALE BOROUGH COUNCIL,22/09/2022,PROPERTY AND HIGHWAYS,ALPINE FIRE ENGINEERS LTD,22/09/2022,544.38 ,PROPERTY - WORKS ELEMENT,V001821789
ROCHDALE BOROUGH COUNCIL,13/09/2022,EARLY HELP AND SCHOOLS,PRISM UK MEDICAL LIMITED,13/09/2022,-104.43 ,PROJECTS,V001823763
ROCHDALE BOROUGH COUNCIL,26/09/2022,EARLY HELP AND SCHOOLS,YORKSHIRE PURCHASING ORGANISATION,26/09/2022,1183.00 ,REPAIRS & ALTS OF BUILDINGS,V001829324
ROCHDALE BOROUGH COUNCIL,13/09/2022,ADULT CARE LCO FUNCTIONS,PRISM UK MEDICAL LIMITED,13/09/2022,1095.27 ,MINOR BUILDING WORKS,V001855165
ROCHDALE BOROUGH COUNCIL,05/09/2022,PROPERTY AND HIGHWAYS,DORMAKABA,05/09/2022,475.00 ,SPECIFIED MAINTENANCE,V001861521
ROCHDALE BOROUGH COUNCIL,08/09/2022,ECONOMY DIRECTORATE,HOMEFRONT ELECTRICAL FIRE AND SECURITY,08/09/2022,281.12 ,SECURITY,V001871880
ROCHDALE BOROUGH COUNCIL,30/09/2022,EARLY HELP AND SCHOOLS,BANNER GROUP LIMITED,30/09/2022,190.65 ,EQUIPMENT - GENERAL,V001877105
ROCHDALE BOROUGH COUNCIL,02/09/2022,PROPERTY AND HIGHWAYS,BANNER GROUP LIMITED,02/09/2022,43.66 ,PRINTING & STATIONERY,V001877263
ROCHDALE BOROUGH COUNCIL,05/09/2022,EARLY HELP AND SCHOOLS,REDACTED - PERSONAL DATA,05/09/2022,-30000.00 ,DIRECT PAYMENTS,V001878815
ROCHDALE BOROUGH COUNCIL,21/09/2022,NEIGHBOURHOODS AND ENVIRONMENT,VISION EXPRESS UK LTD,21/09/2022,15.70 ,EQUIPMENT - GENERAL,V001889566
ROCHDALE BOROUGH COUNCIL,21/09/2022,NEIGHBOURHOODS AND ENVIRONMENT,VISION EXPRESS UK LTD,21/09/2022,15.70 ,EQUIPMENT - GENERAL,V001889566
ROCHDALE BOROUGH COUNCIL,07/09/2022,EARLY HELP AND SCHOOLS,YELLOWAY COACHES LTD,07/09/2022,4240.00 ,ACTIVITIES,V001897004
ROCHDALE BOROUGH COUNCIL,08/09/2022,CHILDREN�S SOCIAL CARE,ASHWORTH VIEW NURSERY,08/09/2022,217.12 ,NURSERY/DAYCARE EXPENDITURE,V001902226
ROCHDALE BOROUGH COUNCIL,08/09/2022,CHILDREN�S SOCIAL CARE,ASHWORTH VIEW NURSERY,08/09/2022,217.12 ,NURSERY/DAYCARE EXPENDITURE,V001902226
ROCHDALE BOROUGH COUNCIL,06/09/2022,NEIGHBOURHOODS AND ENVIRONMENT,SCREWFIX DIRECT LIMITED,06/09/2022,-93.33 ,EQUIPMENT - GENERAL,V001902949
ROCHDALE BOROUGH COUNCIL,05/09/2022,EARLY HELP AND SCHOOLS,REDACTED - PERSONAL DATA,05/09/2022,30000.00 ,DIRECT PAYMENTS,V001903109
ROCHDALE BOROUGH COUNCIL,01/09/2022,PROPERTY AND HIGHWAYS,DAWSONGROUP SWEEPERS LTD,01/09/2022,2000.00 ,MINOR BUILDING WORKS,V001904140
ROCHDALE BOROUGH COUNCIL,23/09/2022,CHILDREN�S SOCIAL CARE,FLYING COLOURS,23/09/2022,4101.30 ,FOSTER PARENTS BASIC ALLOWANCE,V001904162
ROCHDALE BOROUGH COUNCIL,08/09/2022,EARLY HELP AND SCHOOLS,NORMANS BURTON UPON TRENT LTD,08/09/2022,960.00 ,EQUIPMENT - GENERAL,V001906693
ROCHDALE BOROUGH COUNCIL,08/09/2022,EARLY HELP AND SCHOOLS,NORMANS BURTON UPON TRENT LTD,08/09/2022,495.00 ,EQUIPMENT - GENERAL,V001906693
ROCHDALE BOROUGH COUNCIL,08/09/2022,CHILDREN�S SOCIAL CARE,FOSTERING SOLUTIONS LTD,08/09/2022,3675.67 ,FOSTER PARENTS BASIC ALLOWANCE,V001907254
ROCHDALE BOROUGH COUNCIL,08/09/2022,CHILDREN�S SOCIAL CARE,ROCHDALE TOWN TAXIS LTD,08/09/2022,12.10 ,PUBLIC TRANSPORT,V001907280
ROCHDALE BOROUGH COUNCIL,08/09/2022,CHILDREN�S SOCIAL CARE,ROCHDALE TOWN TAXIS LTD,08/09/2022,12.10 ,PUBLIC TRANSPORT,V001907280
ROCHDALE BOROUGH COUNCIL,08/09/2022,CHILDREN�S SOCIAL CARE,ROCHDALE TOWN TAXIS LTD,08/09/2022,12.10 ,PUBLIC TRANSPORT,V001907280
ROCHDALE BOROUGH COUNCIL,08/09/2022,NEIGHBOURHOODS AND ENVIRONMENT,HOWARTH TIMBER AND BUILDING SUPPLIES LTD,08/09/2022,9.98 ,BUILDING MATERIALS,V001910243
ROCHDALE BOROUGH COUNCIL,09/09/2022,NEIGHBOURHOODS AND ENVIRONMENT,BANNER GROUP LIMITED,09/09/2022,-245.96 ,EQUIPMENT - GENERAL,V001910368
ROCHDALE BOROUGH COUNCIL,08/09/2022,EARLY HELP AND SCHOOLS,REDACTED - PERSONAL DATA,08/09/2022,180.00 ,FEES / COMMISSION,V001910383
ROCHDALE BOROUGH COUNCIL,30/09/2022,EARLY HELP AND SCHOOLS,ROCHDALE TOWN TAXIS LTD,30/09/2022,-41.20 ,TRAVELLING GENERAL EXPENSES,V001910443
ROCHDALE BOROUGH COUNCIL,30/09/2022,EARLY HELP AND SCHOOLS,ROCHDALE TOWN TAXIS LTD,30/09/2022,-41.20 ,TRAVELLING GENERAL EXPENSES,V001910443
ROCHDALE BOROUGH COUNCIL,30/09/2022,EARLY HELP AND SCHOOLS,ROCHDALE TOWN TAXIS LTD,30/09/2022,-41.20 ,TRAVELLING GENERAL EXPENSES,V001910443
ROCHDALE BOROUGH COUNCIL,08/09/2022,CHILDREN�S SOCIAL CARE,FOSTERING SOLUTIONS LTD,08/09/2022,3308.10 ,FOSTER PARENTS BASIC ALLOWANCE,V001910472
ROCHDALE BOROUGH COUNCIL,08/09/2022,RESOURCES,CASTLEFIELD RECRUITMENT LTD,08/09/2022,2000.00 ,AGENCY STAFF,V001910502
ROCHDALE BOROUGH COUNCIL,14/09/2022,EARLY HELP AND SCHOOLS,MIDDLETON CARS,14/09/2022,1012.00 ,TRAVELLING GENERAL EXPENSES,V001910559
ROCHDALE BOROUGH COUNCIL,15/09/2022,PROPERTY AND HIGHWAYS,A AND D DOOR SYSTEMS LTD,15/09/2022,89.00 ,PROPERTY - WORKS ELEMENT,V001910677
ROCHDALE BOROUGH COUNCIL,13/09/2022,RESOURCES,EASY AVENUES LTD,13/09/2022,221.83 ,STAFF TRAVELLING EXPENSES,V001910750
ROCHDALE BOROUGH COUNCIL,21/09/2022,EARLY HELP AND SCHOOLS,GPD TRAVEL,21/09/2022,295.00 ,EXTERNAL HIRE,V001910804
ROCHDALE BOROUGH COUNCIL,21/09/2022,EARLY HELP AND SCHOOLS,GPD TRAVEL,21/09/2022,350.00 ,EXTERNAL HIRE,V001910804
ROCHDALE BOROUGH COUNCIL,23/09/2022,ADULT CARE LCO FUNCTIONS,REDACTED - PERSONAL DATA,23/09/2022,452.60 ,DIRECT PAYMENTS,V001911385
ROCHDALE BOROUGH COUNCIL,23/09/2022,ADULT CARE LCO FUNCTIONS,REDACTED - PERSONAL DATA,23/09/2022,-108.51 ,CLIENTS CONTRIBUTIONS COMMUNITY CARE,V001911386
ROCHDALE BOROUGH COUNCIL,23/09/2022,ADULT CARE LCO FUNCTIONS,REDACTED - PERSONAL DATA,23/09/2022,-434.04 ,CLIENTS CONTRIBUTIONS COMMUNITY CARE,V001911387
ROCHDALE BOROUGH COUNCIL,02/09/2022,PUBLIC HEALTH,PHS GROUP PLC,02/09/2022,-269.09 ,HYGIENE EQUIPMENT,V001911962
ROCHDALE BOROUGH COUNCIL,27/09/2022,ECONOMY DIRECTORATE,EASY AVENUES LTD,27/09/2022,404.00 ,ACTIVITIES,V001914666
ROCHDALE BOROUGH COUNCIL,16/09/2022,NEIGHBOURHOODS AND ENVIRONMENT,CROMWELL POLYTHENE LIMITED,16/09/2022,845.00 ,EQUIPMENT - GENERAL,V001914725
ROCHDALE BOROUGH COUNCIL,27/09/2022,ECONOMY DIRECTORATE,EASY AVENUES LTD,27/09/2022,656.67 ,ACTIVITIES,V001914739
ROCHDALE BOROUGH COUNCIL,16/09/2022,RESOURCES,EASY AVENUES LTD,16/09/2022,316.32 ,STAFF TRAVELLING EXPENSES,V001914740
ROCHDALE BOROUGH COUNCIL,09/09/2022,RESOURCES,EASY AVENUES LTD,09/09/2022,259.00 ,STAFF TRAVELLING EXPENSES,V001914742
ROCHDALE BOROUGH COUNCIL,16/09/2022,CHILDREN�S SOCIAL CARE,D A LANGUAGES LIMITED,16/09/2022,116.00 ,TRANSLATION & INTERPRETATION,V001914813
ROCHDALE BOROUGH COUNCIL,16/09/2022,NEIGHBOURHOODS AND ENVIRONMENT,LS SYSTEMS LTD,16/09/2022,87.75 ,"TREES, SHRUBS, PLANTS",V001914967
ROCHDALE BOROUGH COUNCIL,21/09/2022,CHILDREN�S SOCIAL CARE,XMA LIMITED,21/09/2022,96.55 ,IT EQUIPMENT,V001915105
ROCHDALE BOROUGH COUNCIL,06/09/2022,CHILDREN�S SOCIAL CARE,YOUNG PEOPLE FIRST LTD,06/09/2022,5425.00 ,YOUNG PEOPLES RENTS,V001915107
ROCHDALE BOROUGH COUNCIL,01/09/2022,CHILDREN�S SOCIAL CARE,CAPSTONE FOSTER CARE,01/09/2022,6598.66 ,FOSTER PARENTS BASIC ALLOWANCE,V001915162
ROCHDALE BOROUGH COUNCIL,26/09/2022,ECONOMY DIRECTORATE,GTM ELECTRICAL SERVICES LIMITED,26/09/2022,256.50 ,REPAIRS & ALTS OF BUILDINGS,V001915197
ROCHDALE BOROUGH COUNCIL,01/09/2022,CHILDREN�S SOCIAL CARE,CAPSTONE FOSTER CARE,01/09/2022,5203.66 ,FOSTER PARENTS BASIC ALLOWANCE,V001915319
ROCHDALE BOROUGH COUNCIL,01/09/2022,ECONOMY DIRECTORATE,SAFER SPHERE CHS LTD,01/09/2022,636.84 ,CONSULTANTS FEES,V001915640
ROCHDALE BOROUGH COUNCIL,06/09/2022,ADULT CARE LCO FUNCTIONS,TF JONES PROPERTY SERVICES LTD,06/09/2022,5489.76 ,MINOR BUILDING WORKS,V001915645
ROCHDALE BOROUGH COUNCIL,02/09/2022,ADULT CARE LCO FUNCTIONS,STANNAH LIFT SERVICES LTD,02/09/2022,63.00 ,TRANSACTIONS-EXPENDITURE,V001915674
ROCHDALE BOROUGH COUNCIL,02/09/2022,NEIGHBOURHOODS AND ENVIRONMENT,ENTERPRISE FLEX-E-RENT,02/09/2022,2454.44 ,TRANSACTIONS-EXPENDITURE,V001915678
ROCHDALE BOROUGH COUNCIL,07/09/2022,CHILDREN�S SOCIAL CARE,XMA LIMITED,07/09/2022,443.58 ,SOFTWARE,V001915683
ROCHDALE BOROUGH COUNCIL,02/09/2022,NEIGHBOURHOODS AND ENVIRONMENT,CDW LTD,02/09/2022,330.06 ,ACTIVITIES,V001915969
ROCHDALE BOROUGH COUNCIL,27/09/2022,ECONOMY DIRECTORATE,EAST LANCASHIRE LIGHT RAILWAY CO LTD,27/09/2022,1675.00 ,BRIDGES STRUCTURAL WORK,V001916127
ROCHDALE BOROUGH COUNCIL,02/09/2022,ECONOMY DIRECTORATE,THE CREATIVE CORE GROUP LTD,02/09/2022,10843.87 ,CONSULTANTS FEES,V001916164
ROCHDALE BOROUGH COUNCIL,02/09/2022,PROPERTY AND HIGHWAYS,FRANK KEY TOOL HIRE LTD,02/09/2022,176.00 ,REPAIRS & ALTS OF BUILDINGS,V001916165
ROCHDALE BOROUGH COUNCIL,02/09/2022,ECONOMY DIRECTORATE,NATIONAL FLOOD FORUM,02/09/2022,11875.00 ,ACTIVITIES,V001916166
ROCHDALE BOROUGH COUNCIL,02/09/2022,ECONOMY DIRECTORATE,NATIONAL FLOOD FORUM,02/09/2022,10000.00 ,CONSULTANTS FEES,V001916167
ROCHDALE BOROUGH COUNCIL,02/09/2022,NEIGHBOURHOODS AND ENVIRONMENT,STHREE PARTNERSHIP LLP,02/09/2022,1125.00 ,CAPITAL - STAFFING AGENCY PAYMENTS,V001916176
ROCHDALE BOROUGH COUNCIL,02/09/2022,ECONOMY DIRECTORATE,WSP UK LTD,02/09/2022,5557.00 ,CONSULTANT FEES,V001916197
ROCHDALE BOROUGH COUNCIL,02/09/2022,ECONOMY DIRECTORATE,WSP UK LTD,02/09/2022,8755.00 ,CONSULTANT FEES,V001916197
ROCHDALE BOROUGH COUNCIL,02/09/2022,EARLY HELP AND SCHOOLS,WINCHMORE TUTORS LTD,02/09/2022,1200.00 ,CURRICULUM DEVELOPMENT,V001916198
ROCHDALE BOROUGH COUNCIL,02/09/2022,EARLY HELP AND SCHOOLS,WINCHMORE TUTORS LTD,02/09/2022,240.00 ,CURRICULUM DEVELOPMENT,V001916199
ROCHDALE BOROUGH COUNCIL,02/09/2022,NEIGHBOURHOODS AND ENVIRONMENT,MANCHESTER CABINS LIMITED,02/09/2022,726.80 ,CONTRACTS,V001916202
ROCHDALE BOROUGH COUNCIL,02/09/2022,NEIGHBOURHOODS AND ENVIRONMENT,MANCHESTER CABINS LIMITED,02/09/2022,82.80 ,CONTRACTS,V001916203
ROCHDALE BOROUGH COUNCIL,02/09/2022,ADULT CARE LCO FUNCTIONS,SPIN PRINT SOLUTIONS,02/09/2022,288.00 ,STATIONERY,V001916208
ROCHDALE BOROUGH COUNCIL,05/09/2022,CHILDREN�S SOCIAL CARE,FLYING COLOURS,05/09/2022,4101.30 ,FOSTER PARENTS BASIC ALLOWANCE,V001916210
ROCHDALE BOROUGH COUNCIL,02/09/2022,CHILDREN�S SOCIAL CARE,ALBION MEDICAL PRACTICE,02/09/2022,73.86 ,MEDICAL FEES,V001916211
ROCHDALE BOROUGH COUNCIL,02/09/2022,EARLY HELP AND SCHOOLS,PATTERSONS BRISTOL LTD,02/09/2022,39.32 ,CONSUMABLES,V001916217
ROCHDALE BOROUGH COUNCIL,02/09/2022,EARLY HELP AND SCHOOLS,PATTERSONS BRISTOL LTD,02/09/2022,35.28 ,CONSUMABLES,V001916217
ROCHDALE BOROUGH COUNCIL,05/09/2022,ECONOMY DIRECTORATE,MILLENNIUM HYGIENE SERVICES,05/09/2022,42.68 ,HYGIENE EQUIPMENT,V001916227
ROCHDALE BOROUGH COUNCIL,02/09/2022,ECONOMY DIRECTORATE,MILLENNIUM HYGIENE SERVICES,02/09/2022,73.54 ,HYGIENE EQUIPMENT,V001916228
ROCHDALE BOROUGH COUNCIL,02/09/2022,CHILDREN�S SOCIAL CARE,FIRST AFFINITY FOSTERING SERVICES LTD,02/09/2022,4406.34 ,FOSTER PARENTS BASIC ALLOWANCE,V001916272
ROCHDALE BOROUGH COUNCIL,02/09/2022,ADULT CARE LCO FUNCTIONS,POSTURITE UK LTD,02/09/2022,184.41 ,TRAINING,V001916274
ROCHDALE BOROUGH COUNCIL,02/09/2022,ADULT CARE LCO FUNCTIONS,POSTURITE UK LTD,02/09/2022,14.95 ,TRAINING,V001916274
ROCHDALE BOROUGH COUNCIL,02/09/2022,ECONOMY DIRECTORATE,BANNER GROUP LIMITED,02/09/2022,4.47 ,PRINTING & STATIONERY,V001916275
ROCHDALE BOROUGH COUNCIL,02/09/2022,ECONOMY DIRECTORATE,BANNER GROUP LIMITED,02/09/2022,25.25 ,PRINTING & STATIONERY,V001916276
ROCHDALE BOROUGH COUNCIL,02/09/2022,NEIGHBOURHOODS AND ENVIRONMENT,ICCM,02/09/2022,270.00 ,EQUIPMENT - GENERAL,V001916278
ROCHDALE BOROUGH COUNCIL,05/09/2022,NEIGHBOURHOODS AND ENVIRONMENT,ALLIANCE DISPOSABLES LIMITED,05/09/2022,25.40 ,CLEANING MATERIALS,V001916281
ROCHDALE BOROUGH COUNCIL,02/09/2022,NEIGHBOURHOODS AND ENVIRONMENT,ALLIANCE DISPOSABLES LIMITED,02/09/2022,71.70 ,CONSUMABLES,V001916282
ROCHDALE BOROUGH COUNCIL,02/09/2022,NEIGHBOURHOODS AND ENVIRONMENT,ALLIANCE DISPOSABLES LIMITED,02/09/2022,15.00 ,CLEANING MATERIALS,V001916282
ROCHDALE BOROUGH COUNCIL,02/09/2022,NEIGHBOURHOODS AND ENVIRONMENT,ALLIANCE DISPOSABLES LIMITED,02/09/2022,196.00 ,CONSUMABLES,V001916282
ROCHDALE BOROUGH COUNCIL,02/09/2022,NEIGHBOURHOODS AND ENVIRONMENT,ALLIANCE DISPOSABLES LIMITED,02/09/2022,70.00 ,CONSUMABLES,V001916282
ROCHDALE BOROUGH COUNCIL,05/09/2022,NEIGHBOURHOODS AND ENVIRONMENT,ALLIANCE DISPOSABLES LIMITED,05/09/2022,18.00 ,CLEANING MATERIALS,V001916283
ROCHDALE BOROUGH COUNCIL,05/09/2022,NEIGHBOURHOODS AND ENVIRONMENT,ALLIANCE DISPOSABLES LIMITED,05/09/2022,27.00 ,CLEANING MATERIALS,V001916283
ROCHDALE BOROUGH COUNCIL,05/09/2022,NEIGHBOURHOODS AND ENVIRONMENT,ALLIANCE DISPOSABLES LIMITED,05/09/2022,12.50 ,CLEANING MATERIALS,V001916283
ROCHDALE BOROUGH COUNCIL,05/09/2022,NEIGHBOURHOODS AND ENVIRONMENT,ALLIANCE DISPOSABLES LIMITED,05/09/2022,25.40 ,CLEANING MATERIALS,V001916283
ROCHDALE BOROUGH COUNCIL,05/09/2022,NEIGHBOURHOODS AND ENVIRONMENT,ALLIANCE DISPOSABLES LIMITED,05/09/2022,29.00 ,CLEANING MATERIALS,V001916283
ROCHDALE BOROUGH COUNCIL,05/09/2022,NEIGHBOURHOODS AND ENVIRONMENT,ALLIANCE DISPOSABLES LIMITED,05/09/2022,22.50 ,CONSUMABLES,V001916283
ROCHDALE BOROUGH COUNCIL,05/09/2022,NEIGHBOURHOODS AND ENVIRONMENT,ALLIANCE DISPOSABLES LIMITED,05/09/2022,7.50 ,CLEANING EQUIPMENT,V001916283
ROCHDALE BOROUGH COUNCIL,02/09/2022,NEIGHBOURHOODS AND ENVIRONMENT,ALLIANCE DISPOSABLES LIMITED,02/09/2022,2.28 ,CLEANING EQUIPMENT,V001916284
ROCHDALE BOROUGH COUNCIL,02/09/2022,NEIGHBOURHOODS AND ENVIRONMENT,ALLIANCE DISPOSABLES LIMITED,02/09/2022,4.76 ,CLEANING EQUIPMENT,V001916284
ROCHDALE BOROUGH COUNCIL,02/09/2022,NEIGHBOURHOODS AND ENVIRONMENT,ALLIANCE DISPOSABLES LIMITED,02/09/2022,2.38 ,CLEANING EQUIPMENT,V001916284
ROCHDALE BOROUGH COUNCIL,02/09/2022,NEIGHBOURHOODS AND ENVIRONMENT,ALLIANCE DISPOSABLES LIMITED,02/09/2022,9.00 ,CLEANING MATERIALS,V001916284
ROCHDALE BOROUGH COUNCIL,02/09/2022,NEIGHBOURHOODS AND ENVIRONMENT,ALLIANCE DISPOSABLES LIMITED,02/09/2022,11.35 ,CLEANING MATERIALS,V001916284
ROCHDALE BOROUGH COUNCIL,02/09/2022,NEIGHBOURHOODS AND ENVIRONMENT,ALLIANCE DISPOSABLES LIMITED,02/09/2022,11.22 ,CLEANING EQUIPMENT,V001916284
ROCHDALE BOROUGH COUNCIL,02/09/2022,NEIGHBOURHOODS AND ENVIRONMENT,ALLIANCE DISPOSABLES LIMITED,02/09/2022,6.50 ,CLEANING EQUIPMENT,V001916284
ROCHDALE BOROUGH COUNCIL,02/09/2022,NEIGHBOURHOODS AND ENVIRONMENT,ALLIANCE DISPOSABLES LIMITED,02/09/2022,6.75 ,CLEANING MATERIALS,V001916284
ROCHDALE BOROUGH COUNCIL,02/09/2022,NEIGHBOURHOODS AND ENVIRONMENT,ALLIANCE DISPOSABLES LIMITED,02/09/2022,3.95 ,CLEANING MATERIALS,V001916284
ROCHDALE BOROUGH COUNCIL,02/09/2022,NEIGHBOURHOODS AND ENVIRONMENT,ALLIANCE DISPOSABLES LIMITED,02/09/2022,7.50 ,CLEANING MATERIALS,V001916284
ROCHDALE BOROUGH COUNCIL,02/09/2022,NEIGHBOURHOODS AND ENVIRONMENT,ALLIANCE DISPOSABLES LIMITED,02/09/2022,5.65 ,CLEANING MATERIALS,V001916284
ROCHDALE BOROUGH COUNCIL,02/09/2022,NEIGHBOURHOODS AND ENVIRONMENT,ALLIANCE DISPOSABLES LIMITED,02/09/2022,6.25 ,CLEANING MATERIALS,V001916284
ROCHDALE BOROUGH COUNCIL,02/09/2022,NEIGHBOURHOODS AND ENVIRONMENT,ALLIANCE DISPOSABLES LIMITED,02/09/2022,7.25 ,CLEANING MATERIALS,V001916284
ROCHDALE BOROUGH COUNCIL,02/09/2022,NEIGHBOURHOODS AND ENVIRONMENT,ALLIANCE DISPOSABLES LIMITED,02/09/2022,14.75 ,CLEANING EQUIPMENT,V001916284
ROCHDALE BOROUGH COUNCIL,02/09/2022,NEIGHBOURHOODS AND ENVIRONMENT,ALLIANCE DISPOSABLES LIMITED,02/09/2022,14.75 ,CLEANING EQUIPMENT,V001916284
ROCHDALE BOROUGH COUNCIL,02/09/2022,NEIGHBOURHOODS AND ENVIRONMENT,ALLIANCE DISPOSABLES LIMITED,02/09/2022,6.85 ,CLEANING EQUIPMENT,V001916284
ROCHDALE BOROUGH COUNCIL,02/09/2022,NEIGHBOURHOODS AND ENVIRONMENT,ALLIANCE DISPOSABLES LIMITED,02/09/2022,4.35 ,CLEANING MATERIALS,V001916284
ROCHDALE BOROUGH COUNCIL,02/09/2022,NEIGHBOURHOODS AND ENVIRONMENT,ALLIANCE DISPOSABLES LIMITED,02/09/2022,17.00 ,EQUIPMENT - GENERAL,V001916284
ROCHDALE BOROUGH COUNCIL,02/09/2022,NEIGHBOURHOODS AND ENVIRONMENT,ACS BUSINESS SUPPLIES,02/09/2022,200.64 ,PRINTING & STATIONERY,V001916287
ROCHDALE BOROUGH COUNCIL,13/09/2022,CHILDREN�S SOCIAL CARE,D A LANGUAGES LIMITED,13/09/2022,138.00 ,TRANSLATION & INTERPRETATION,V001916290
ROCHDALE BOROUGH COUNCIL,08/09/2022,ADULT CARE LCO FUNCTIONS,XMA LIMITED,08/09/2022,75.00 ,IT EQUIPMENT,V001916291
ROCHDALE BOROUGH COUNCIL,08/09/2022,ADULT CARE LCO FUNCTIONS,XMA LIMITED,08/09/2022,20.00 ,IT EQUIPMENT,V001916291
ROCHDALE BOROUGH COUNCIL,08/09/2022,ADULT CARE LCO FUNCTIONS,XMA LIMITED,08/09/2022,40.00 ,IT EQUIPMENT,V001916291
ROCHDALE BOROUGH COUNCIL,05/09/2022,ECONOMY DIRECTORATE, WALKER SIME LTD,05/09/2022,8035.00 ,CONSULTANTS FEES,V001916296
ROCHDALE BOROUGH COUNCIL,16/09/2022,PROPERTY AND HIGHWAYS,DAWSONGROUP SWEEPERS LTD,16/09/2022,1586.02 ,MINOR BUILDING WORKS,V001916297
ROCHDALE BOROUGH COUNCIL,01/09/2022,PROPERTY AND HIGHWAYS,TURNER AND  TOWNSEND,01/09/2022,1829.94 ,ROADWORKS,V001916299
ROCHDALE BOROUGH COUNCIL,05/09/2022,ECONOMY DIRECTORATE, WALKER SIME LTD,05/09/2022,1500.00 ,CONSULTANTS FEES,V001916300
ROCHDALE BOROUGH COUNCIL,05/09/2022,ECONOMY DIRECTORATE,KHIPU NETWORKS LTD,05/09/2022,20141.04 ,CONSULTANTS FEES,V001916301
ROCHDALE BOROUGH COUNCIL,27/09/2022,EARLY HELP AND SCHOOLS,BROWNS BOOK FOR STUDENTS,27/09/2022,-110.02 ,EQUIPMENT - GENERAL,V001916303
ROCHDALE BOROUGH COUNCIL,02/09/2022,PUBLIC HEALTH,PHS GROUP PLC,02/09/2022,385.66 ,HYGIENE EQUIPMENT,V001916340
ROCHDALE BOROUGH COUNCIL,05/09/2022,EARLY HELP AND SCHOOLS,BELMONT SCHOOL LIMITED,05/09/2022,11530.00 ,OTHER LA`S - SEN PROVISION,V001916342
ROCHDALE BOROUGH COUNCIL,02/09/2022,NEIGHBOURHOODS AND ENVIRONMENT,FRANK KEY TOOL HIRE LTD,02/09/2022,48.00 ,BUILDING MATERIALS,V001916343
ROCHDALE BOROUGH COUNCIL,02/09/2022,EARLY HELP AND SCHOOLS,REDACTED - PERSONAL DATA,02/09/2022,612.23 ,DIRECT PAYMENTS,V001916906
ROCHDALE BOROUGH COUNCIL,02/09/2022,PROPERTY AND HIGHWAYS,FRANK KEY TOOL HIRE LTD,02/09/2022,140.00 ,REPAIRS & ALTS OF BUILDINGS,V001916907
ROCHDALE BOROUGH COUNCIL,02/09/2022,PROPERTY AND HIGHWAYS,ENVIROFLOW MANAGEMENT LTD,02/09/2022,1904.46 ,EQUIPMENT - GENERAL,V001916908
ROCHDALE BOROUGH COUNCIL,02/09/2022,PROPERTY AND HIGHWAYS,ENVIROFLOW MANAGEMENT LTD,02/09/2022,1605.00 ,EQUIPMENT - GENERAL,V001916908
ROCHDALE BOROUGH COUNCIL,02/09/2022,PROPERTY AND HIGHWAYS,ENVIROFLOW MANAGEMENT LTD,02/09/2022,4029.30 ,EQUIPMENT - GENERAL,V001916909
ROCHDALE BOROUGH COUNCIL,02/09/2022,PROPERTY AND HIGHWAYS,ENVIROFLOW MANAGEMENT LTD,02/09/2022,2911.62 ,EQUIPMENT - GENERAL,V001916909
ROCHDALE BOROUGH COUNCIL,02/09/2022,PROPERTY AND HIGHWAYS,ENVIROFLOW MANAGEMENT LTD,02/09/2022,3942.70 ,EQUIPMENT - GENERAL,V001916909
ROCHDALE BOROUGH COUNCIL,05/09/2022,NEIGHBOURHOODS AND ENVIRONMENT,A T CREATIVE LTD,05/09/2022,1500.00 ,ACTIVITIES,V001916930
ROCHDALE BOROUGH COUNCIL,13/09/2022,EARLY HELP AND SCHOOLS,YORKSHIRE PURCHASING ORGANISATION,13/09/2022,23.65 ,EQUIPMENT - GENERAL,V001916932
ROCHDALE BOROUGH COUNCIL,13/09/2022,EARLY HELP AND SCHOOLS,YORKSHIRE PURCHASING ORGANISATION,13/09/2022,29.99 ,EQUIPMENT - GENERAL,V001916932
ROCHDALE BOROUGH COUNCIL,13/09/2022,EARLY HELP AND SCHOOLS,YORKSHIRE PURCHASING ORGANISATION,13/09/2022,15.99 ,EQUIPMENT - GENERAL,V001916932
ROCHDALE BOROUGH COUNCIL,13/09/2022,EARLY HELP AND SCHOOLS,YORKSHIRE PURCHASING ORGANISATION,13/09/2022,7.59 ,EQUIPMENT - GENERAL,V001916932
ROCHDALE BOROUGH COUNCIL,13/09/2022,EARLY HELP AND SCHOOLS,YORKSHIRE PURCHASING ORGANISATION,13/09/2022,15.29 ,EQUIPMENT - GENERAL,V001916932
ROCHDALE BOROUGH COUNCIL,13/09/2022,EARLY HELP AND SCHOOLS,YORKSHIRE PURCHASING ORGANISATION,13/09/2022,7.59 ,EQUIPMENT - GENERAL,V001916932
ROCHDALE BOROUGH COUNCIL,13/09/2022,EARLY HELP AND SCHOOLS,YORKSHIRE PURCHASING ORGANISATION,13/09/2022,20.05 ,EQUIPMENT - GENERAL,V001916932
ROCHDALE BOROUGH COUNCIL,13/09/2022,EARLY HELP AND SCHOOLS,YORKSHIRE PURCHASING ORGANISATION,13/09/2022,7.59 ,EQUIPMENT - GENERAL,V001916932
ROCHDALE BOROUGH COUNCIL,13/09/2022,EARLY HELP AND SCHOOLS,YORKSHIRE PURCHASING ORGANISATION,13/09/2022,115.99 ,EQUIPMENT - GENERAL,V001916932
ROCHDALE BOROUGH COUNCIL,13/09/2022,EARLY HELP AND SCHOOLS,YORKSHIRE PURCHASING ORGANISATION,13/09/2022,25.03 ,EQUIPMENT - GENERAL,V001916932
ROCHDALE BOROUGH COUNCIL,13/09/2022,EARLY HELP AND SCHOOLS,YORKSHIRE PURCHASING ORGANISATION,13/09/2022,17.08 ,EQUIPMENT - GENERAL,V001916932
ROCHDALE BOROUGH COUNCIL,13/09/2022,EARLY HELP AND SCHOOLS,YORKSHIRE PURCHASING ORGANISATION,13/09/2022,5.49 ,EQUIPMENT - GENERAL,V001916932
ROCHDALE BOROUGH COUNCIL,13/09/2022,EARLY HELP AND SCHOOLS,YORKSHIRE PURCHASING ORGANISATION,13/09/2022,69.40 ,EQUIPMENT - GENERAL,V001916932
ROCHDALE BOROUGH COUNCIL,05/09/2022,EARLY HELP AND SCHOOLS,PATTERSONS BRISTOL LTD,05/09/2022,65.60 ,CONSUMABLES,V001916933
ROCHDALE BOROUGH COUNCIL,05/09/2022,CHILDREN�S SOCIAL CARE,BALTIMORE CONSULTING LTD,05/09/2022,3330.50 ,AGENCY STAFF,V001916935
ROCHDALE BOROUGH COUNCIL,05/09/2022,ADULT CARE LCO FUNCTIONS,HOIST AND SHOWER CHAIR CO LTD,05/09/2022,3670.50 ,TRANSACTIONS-EXPENDITURE,V001916940
ROCHDALE BOROUGH COUNCIL,05/09/2022,PROPERTY AND HIGHWAYS,ROYAL MAIL GROUP LTD,05/09/2022,1026.40 ,POSTAGE,V001916941
ROCHDALE BOROUGH COUNCIL,05/09/2022,ADULT CARE LCO FUNCTIONS,MI HUB LTD,05/09/2022,25.88 ,"CLOTHES, UNIFORM AND LAUNDRY",V001916943
ROCHDALE BOROUGH COUNCIL,05/09/2022,RESOURCES,PEOPLE ASSET MANAGEMENT LTD,05/09/2022,175.00 ,OCCUPATIONAL HEALTH,V001916946
ROCHDALE BOROUGH COUNCIL,05/09/2022,RESOURCES,CRITIQOM LIMITED,05/09/2022,769.60 ,PRINTING & STATIONERY,V001916947
ROCHDALE BOROUGH COUNCIL,05/09/2022,RESOURCES,CRITIQOM LIMITED,05/09/2022,2526.97 ,POSTAGE,V001916948
ROCHDALE BOROUGH COUNCIL,05/09/2022,EARLY HELP AND SCHOOLS,GL EDUCATION GROUP LTD,05/09/2022,2703.47 ,ACTIVITIES,V001916949
ROCHDALE BOROUGH COUNCIL,05/09/2022,PROPERTY AND HIGHWAYS,ARCO GROUP LIMITED,05/09/2022,131.55 ,"CLOTHES, UNIFORM AND LAUNDRY",V001916950
ROCHDALE BOROUGH COUNCIL,05/09/2022,PROPERTY AND HIGHWAYS,ARCO GROUP LIMITED,05/09/2022,131.55 ,"CLOTHES, UNIFORM AND LAUNDRY",V001916950
ROCHDALE BOROUGH COUNCIL,05/09/2022,PROPERTY AND HIGHWAYS,ARCO GROUP LIMITED,05/09/2022,131.55 ,"CLOTHES, UNIFORM AND LAUNDRY",V001916950
ROCHDALE BOROUGH COUNCIL,05/09/2022,EARLY HELP AND SCHOOLS,NORTHERN CARE ALLIANCE NHS FOUNDATION TRUST,05/09/2022,-8628.00 ,HEALTH AUTH - SERVICE LEVEL AGREEMENT,V001916969
ROCHDALE BOROUGH COUNCIL,01/09/2022,NEIGHBOURHOODS AND ENVIRONMENT,WILKES VENDING SERVICES LIMITED,01/09/2022,87.29 ,VENDING MACHINES,V001916970
ROCHDALE BOROUGH COUNCIL,01/09/2022,NEIGHBOURHOODS AND ENVIRONMENT,WILKES VENDING SERVICES LIMITED,01/09/2022,87.29 ,VENDING MACHINES,V001916970
ROCHDALE BOROUGH COUNCIL,01/09/2022,NEIGHBOURHOODS AND ENVIRONMENT,WILKES VENDING SERVICES LIMITED,01/09/2022,62.20 ,VENDING MACHINES,V001916970
ROCHDALE BOROUGH COUNCIL,01/09/2022,NEIGHBOURHOODS AND ENVIRONMENT,WILKES VENDING SERVICES LIMITED,01/09/2022,62.20 ,VENDING MACHINES,V001916970
ROCHDALE BOROUGH COUNCIL,02/09/2022,RESOURCES,NEC SOFTWARE SOLUTIONS UK LTD,02/09/2022,4320.00 ,AGENCY STAFF,V001916976
ROCHDALE BOROUGH COUNCIL,02/09/2022,NEIGHBOURHOODS AND ENVIRONMENT,MANCHESTER CABINS LIMITED,02/09/2022,110.40 ,CONTRACTS,V001916986
ROCHDALE BOROUGH COUNCIL,05/09/2022,EARLY HELP AND SCHOOLS,KEDLESTON MILL SCHOOL LTD,05/09/2022,736.00 ,OTHER LA`S - SEN PROVISION,V001916988
ROCHDALE BOROUGH COUNCIL,14/09/2022,CHILDREN�S SOCIAL CARE,NEW HORIZONS STOCKPORT LIMITED,14/09/2022,16385.71 ,EBD (EMOT & BEHAV DIFF) PLACEMENTS,V001916989
ROCHDALE BOROUGH COUNCIL,05/09/2022,PUBLIC HEALTH,BIG LIFE CENTRES,05/09/2022,50000.00 ,ACTIVITIES,V001916992
ROCHDALE BOROUGH COUNCIL,01/09/2022,NEIGHBOURHOODS AND ENVIRONMENT,SYNECTICS SECURITY LTD,01/09/2022,20000.00 ,MINOR BUILDING WORKS,V001917008
ROCHDALE BOROUGH COUNCIL,23/09/2022,CHILDREN�S SOCIAL CARE,D A LANGUAGES LIMITED,23/09/2022,98.50 ,TRANSLATION & INTERPRETATION,V001917017
ROCHDALE BOROUGH COUNCIL,05/09/2022,ECONOMY DIRECTORATE,OPUS ENERGY LTD,05/09/2022,17.10 ,GAS,V001917021
ROCHDALE BOROUGH COUNCIL,05/09/2022,NEIGHBOURHOODS AND ENVIRONMENT,TRAVIS PERKINS TRADING CO LTD,05/09/2022,31.50 ,EQUIPMENT - GENERAL,V001917022
ROCHDALE BOROUGH COUNCIL,05/09/2022,PROPERTY AND HIGHWAYS,BANNER GROUP LIMITED,05/09/2022,12.75 ,PRINTING & STATIONERY,V001917025
ROCHDALE BOROUGH COUNCIL,06/09/2022,ECONOMY DIRECTORATE,H H SMITH AND SONS CO LTD,06/09/2022,1556.00 ,MINOR BUILDING WORKS,V001917026
ROCHDALE BOROUGH COUNCIL,05/09/2022,ECONOMY DIRECTORATE,IRWELL STREET METALS,05/09/2022,116.96 ,REFUSE DISPOSAL,V001917028
ROCHDALE BOROUGH COUNCIL,05/09/2022,ECONOMY DIRECTORATE,IRWELL STREET METALS,05/09/2022,92.20 ,REFUSE DISPOSAL,V001917029
ROCHDALE BOROUGH COUNCIL,05/09/2022,NEIGHBOURHOODS AND ENVIRONMENT,GROUNDWORK GREATER MANCHESTER,05/09/2022,680.00 ,CAPITAL SALARIES,V001917030
ROCHDALE BOROUGH COUNCIL,05/09/2022,EARLY HELP AND SCHOOLS,THE TOGETHER TRUST,05/09/2022,2031.70 ,RESIDENTIAL RESPITE - CHILDRENS SERVICES,V001917031
ROCHDALE BOROUGH COUNCIL,02/09/2022,EARLY HELP AND SCHOOLS,STREAMLINE TAXIS,02/09/2022,1280.00 ,TRAVELLING GENERAL EXPENSES,V001917033
ROCHDALE BOROUGH COUNCIL,06/09/2022,ADULT CARE LCO FUNCTIONS,ACCESS UK LTD,06/09/2022,710.10 ,IT EQUIPMENT,V001917040
ROCHDALE BOROUGH COUNCIL,06/09/2022,NEIGHBOURHOODS AND ENVIRONMENT,STEVE WELLS ASSOCIATES LTD,06/09/2022,3000.00 ,ENVIRONMENTAL WORKS LANDSCAPE,V001917043
ROCHDALE BOROUGH COUNCIL,06/09/2022,EARLY HELP AND SCHOOLS,HAMPTONS RESOURCING LTD,06/09/2022,2857.16 ,AGENCY STAFF,V001917044
ROCHDALE BOROUGH COUNCIL,06/09/2022,NEIGHBOURHOODS AND ENVIRONMENT,ELECTRIC CENTER,06/09/2022,98.72 ,BUILDING MATERIALS,V001917048
ROCHDALE BOROUGH COUNCIL,02/09/2022,CHILDREN�S SOCIAL CARE,D A LANGUAGES LIMITED,02/09/2022,225.00 ,TRANSLATION & INTERPRETATION,V001917050
ROCHDALE BOROUGH COUNCIL,02/09/2022,ADULT CARE LCO FUNCTIONS,HOWARTH TIMBER AND BUILDING SUPPLIES LTD,02/09/2022,7.73 ,ADAPTATIONS,V001917055
ROCHDALE BOROUGH COUNCIL,02/09/2022,PROPERTY AND HIGHWAYS,STREETWISE UK,02/09/2022,2760.00 ,TRAFFIC CONTROL,V001917057
ROCHDALE BOROUGH COUNCIL,02/09/2022,EARLY HELP AND SCHOOLS,KEDLESTON MILL SCHOOL LTD,02/09/2022,16461.60 ,OTHER LA`S - SEN PROVISION,V001917061
ROCHDALE BOROUGH COUNCIL,02/09/2022,EARLY HELP AND SCHOOLS,KEDLESTON MILL SCHOOL LTD,02/09/2022,14883.33 ,OTHER LA`S - SEN PROVISION,V001917062
ROCHDALE BOROUGH COUNCIL,02/09/2022,EARLY HELP AND SCHOOLS,KEDLESTON MILL SCHOOL LTD,02/09/2022,1578.27 ,OTHER LA`S - SEN PROVISION,V001917062
ROCHDALE BOROUGH COUNCIL,02/09/2022,NEIGHBOURHOODS AND ENVIRONMENT,FOOD SAFETY DIRECT LIMITED,02/09/2022,57.70 ,EQUIPMENT - GENERAL,V001917064
ROCHDALE BOROUGH COUNCIL,05/09/2022,NEIGHBOURHOODS AND ENVIRONMENT,ELECTRIC CENTER,05/09/2022,32.09 ,BUILDING MATERIALS,V001917065
ROCHDALE BOROUGH COUNCIL,05/09/2022,NEIGHBOURHOODS AND ENVIRONMENT,ELECTRIC CENTER,05/09/2022,30.60 ,BUILDING MATERIALS,V001917066
ROCHDALE BOROUGH COUNCIL,05/09/2022,NEIGHBOURHOODS AND ENVIRONMENT,ELECTRIC CENTER,05/09/2022,2.06 ,BUILDING MATERIALS,V001917067
ROCHDALE BOROUGH COUNCIL,05/09/2022,NEIGHBOURHOODS AND ENVIRONMENT,NORTH WEST PORTABLES,05/09/2022,368.00 ,FEES - PLANT MACHINERY EQUIPMENT,V001917068
ROCHDALE BOROUGH COUNCIL,05/09/2022,NEIGHBOURHOODS AND ENVIRONMENT,TRIANGLE ARCHITECTS LTD,05/09/2022,6000.00 ,ARCHITECTS FEES,V001917069
ROCHDALE BOROUGH COUNCIL,06/09/2022,ECONOMY DIRECTORATE,INTEGRATED WATER SERVICES LIMITED,06/09/2022,76.00 ,REPAIRS & ALTS OF BUILDINGS,V001917075
ROCHDALE BOROUGH COUNCIL,05/09/2022,PROPERTY AND HIGHWAYS,DAWSONGROUP SWEEPERS LTD,05/09/2022,1586.02 ,MINOR BUILDING WORKS,V001917077
ROCHDALE BOROUGH COUNCIL,05/09/2022,PROPERTY AND HIGHWAYS,DAWSONGROUP SWEEPERS LTD,05/09/2022,1586.02 ,MINOR BUILDING WORKS,V001917080
ROCHDALE BOROUGH COUNCIL,05/09/2022,PROPERTY AND HIGHWAYS,DAWSONGROUP SWEEPERS LTD,05/09/2022,1586.02 ,MINOR BUILDING WORKS,V001917082
ROCHDALE BOROUGH COUNCIL,05/09/2022,PROPERTY AND HIGHWAYS,DAWSONGROUP SWEEPERS LTD,05/09/2022,1586.02 ,MINOR BUILDING WORKS,V001917083
ROCHDALE BOROUGH COUNCIL,05/09/2022,PROPERTY AND HIGHWAYS,DAWSONGROUP SWEEPERS LTD,05/09/2022,1586.02 ,MINOR BUILDING WORKS,V001917084
ROCHDALE BOROUGH COUNCIL,05/09/2022,NEIGHBOURHOODS AND ENVIRONMENT,MITAMIRRI LTD,05/09/2022,4000.00 ,SOFTWARE,V001917085
ROCHDALE BOROUGH COUNCIL,06/09/2022,EARLY HELP AND SCHOOLS,REDACTED - PERSONAL DATA,06/09/2022,191.20 ,DIRECT PAYMENTS,V001917094
ROCHDALE BOROUGH COUNCIL,06/09/2022,EARLY HELP AND SCHOOLS,REDACTED - PERSONAL DATA,06/09/2022,938.49 ,DIRECT PAYMENTS,V001917095
ROCHDALE BOROUGH COUNCIL,06/09/2022,EARLY HELP AND SCHOOLS,REDACTED - PERSONAL DATA,06/09/2022,245.42 ,DIRECT PAYMENTS,V001917096
ROCHDALE BOROUGH COUNCIL,05/09/2022,NEIGHBOURHOODS AND ENVIRONMENT,DAWSONGROUP SWEEPERS LTD,05/09/2022,3584.83 ,TRANSACTIONS-EXPENDITURE,V001917114
ROCHDALE BOROUGH COUNCIL,05/09/2022,EARLY HELP AND SCHOOLS,REDACTED - PERSONAL DATA,05/09/2022,21439.52 ,OTHER EST - SEN PROVISION,V001917120
ROCHDALE BOROUGH COUNCIL,05/09/2022,EARLY HELP AND SCHOOLS,APOLLO HOME HEALTHCARE,05/09/2022,400.80 ,HOME CARE - CHILDRENS SERVICES,V001917125
ROCHDALE BOROUGH COUNCIL,05/09/2022,NEIGHBOURHOODS AND ENVIRONMENT,CROMWELL POLYTHENE LIMITED,05/09/2022,26775.00 ,EQUIPMENT - GENERAL,V001917126
ROCHDALE BOROUGH COUNCIL,06/09/2022,NEIGHBOURHOODS AND ENVIRONMENT,LIQUIDLOGIC LTD,06/09/2022,23489.97 ,SOFTWARE,V001917127
ROCHDALE BOROUGH COUNCIL,06/09/2022,EARLY HELP AND SCHOOLS,LIQUIDLOGIC LTD,06/09/2022,53799.50 ,SOFTWARE,V001917127
ROCHDALE BOROUGH COUNCIL,06/09/2022,NEIGHBOURHOODS AND ENVIRONMENT,BANNER GROUP LIMITED,06/09/2022,33.57 ,PRINTING & STATIONERY,V001917128
ROCHDALE BOROUGH COUNCIL,06/09/2022,NEIGHBOURHOODS AND ENVIRONMENT,BANNER GROUP LIMITED,06/09/2022,19.58 ,PRINTING & STATIONERY,V001917128
ROCHDALE BOROUGH COUNCIL,06/09/2022,NEIGHBOURHOODS AND ENVIRONMENT,BANNER GROUP LIMITED,06/09/2022,70.23 ,PRINTING & STATIONERY,V001917128
ROCHDALE BOROUGH COUNCIL,06/09/2022,NEIGHBOURHOODS AND ENVIRONMENT,BANNER GROUP LIMITED,06/09/2022,3.62 ,PRINTING & STATIONERY,V001917128
ROCHDALE BOROUGH COUNCIL,06/09/2022,NEIGHBOURHOODS AND ENVIRONMENT,BANNER GROUP LIMITED,06/09/2022,2.16 ,PRINTING & STATIONERY,V001917128
ROCHDALE BOROUGH COUNCIL,06/09/2022,NEIGHBOURHOODS AND ENVIRONMENT,BANNER GROUP LIMITED,06/09/2022,1.66 ,PRINTING & STATIONERY,V001917128
ROCHDALE BOROUGH COUNCIL,06/09/2022,NEIGHBOURHOODS AND ENVIRONMENT,BANNER GROUP LIMITED,06/09/2022,1.25 ,PRINTING & STATIONERY,V001917128
ROCHDALE BOROUGH COUNCIL,06/09/2022,NEIGHBOURHOODS AND ENVIRONMENT,BANNER GROUP LIMITED,06/09/2022,5.21 ,PRINTING & STATIONERY,V001917128
ROCHDALE BOROUGH COUNCIL,06/09/2022,NEIGHBOURHOODS AND ENVIRONMENT,BANNER GROUP LIMITED,06/09/2022,4.32 ,PRINTING & STATIONERY,V001917128
ROCHDALE BOROUGH COUNCIL,06/09/2022,NEIGHBOURHOODS AND ENVIRONMENT,BANNER GROUP LIMITED,06/09/2022,19.44 ,PRINTING & STATIONERY,V001917128
ROCHDALE BOROUGH COUNCIL,06/09/2022,NEIGHBOURHOODS AND ENVIRONMENT,BANNER GROUP LIMITED,06/09/2022,7.65 ,PRINTING & STATIONERY,V001917128
ROCHDALE BOROUGH COUNCIL,06/09/2022,NEIGHBOURHOODS AND ENVIRONMENT,BANNER GROUP LIMITED,06/09/2022,3.70 ,PRINTING & STATIONERY,V001917128
ROCHDALE BOROUGH COUNCIL,05/09/2022,PROPERTY AND HIGHWAYS,TURNER AND  TOWNSEND,05/09/2022,1829.94 ,ROADWORKS,V001917129
ROCHDALE BOROUGH COUNCIL,05/09/2022,PROPERTY AND HIGHWAYS,CALEDONIAN LIFTS MANCHESTER LTD,05/09/2022,625.00 ,PROPERTY - WORKS ELEMENT,V001917130
ROCHDALE BOROUGH COUNCIL,06/09/2022,NEIGHBOURHOODS AND ENVIRONMENT,YORKSHIRE PURCHASING ORGANISATION,06/09/2022,109.60 ,EQUIPMENT - GENERAL,V001917132
ROCHDALE BOROUGH COUNCIL,06/09/2022,ECONOMY DIRECTORATE,CONSTELLIA CONSULTANCY LTD,06/09/2022,2564.10 ,CONSULTANTS FEES,V001917134
ROCHDALE BOROUGH COUNCIL,26/09/2022,ADULT CARE LCO FUNCTIONS,NONSTOP CONSULTING LTD,26/09/2022,1387.50 ,AGENCY STAFF,V001917135
ROCHDALE BOROUGH COUNCIL,06/09/2022,NEIGHBOURHOODS AND ENVIRONMENT,MASSEY AND HARRIS ENGINEERING LTD,06/09/2022,2140.00 ,ENVIRONMENTAL WORKS LANDSCAPE,V001917136
ROCHDALE BOROUGH COUNCIL,02/09/2022,NEIGHBOURHOODS AND ENVIRONMENT,ACCESS DOOR SYSTEMS LTD,02/09/2022,1680.00 ,REPAIRS & ALTS OF BUILDINGS,V001917137
ROCHDALE BOROUGH COUNCIL,05/09/2022,PROPERTY AND HIGHWAYS,KEN TAYLOR SUPPLIES LTD,05/09/2022,30.46 ,HIGHWAYS CONTRACT,V001917150
ROCHDALE BOROUGH COUNCIL,06/09/2022,CHILDREN�S SOCIAL CARE,FOSTERING SOLUTIONS LTD,06/09/2022,3308.10 ,FOSTER PARENTS BASIC ALLOWANCE,V001917151
ROCHDALE BOROUGH COUNCIL,06/09/2022,CHILDREN�S SOCIAL CARE,FOSTERING SOLUTIONS LTD,06/09/2022,3675.67 ,FOSTER PARENTS BASIC ALLOWANCE,V001917152
ROCHDALE BOROUGH COUNCIL,06/09/2022,PROPERTY AND HIGHWAYS,CONDUENT PUBLIC SECTOR UK LTD,06/09/2022,107.68 ,IT EQUIPMENT,V001917154
ROCHDALE BOROUGH COUNCIL,06/09/2022,RESOURCES,LS SYSTEMS LTD,06/09/2022,0.00 ,INPUT VAT -  ADJUSTMENTS,V001917155
ROCHDALE BOROUGH COUNCIL,06/09/2022,RESOURCES,LS SYSTEMS LTD,06/09/2022,0.00 ,INPUT VAT -  ADJUSTMENTS,V001917156
ROCHDALE BOROUGH COUNCIL,06/09/2022,ADULT CARE LCO FUNCTIONS,PREPAID FINANCIAL SERVICES,06/09/2022,3740.56 ,CONTRACTED SERVICES,V001917157
ROCHDALE BOROUGH COUNCIL,06/09/2022,CHILDREN�S SOCIAL CARE,SHRED STATION,06/09/2022,22.00 ,CONTRACTED SERVICES,V001917158
ROCHDALE BOROUGH COUNCIL,06/09/2022,NEIGHBOURHOODS AND ENVIRONMENT,ALLIANCE DISPOSABLES LIMITED,06/09/2022,26.50 ,EQUIPMENT - GENERAL,V001917159
ROCHDALE BOROUGH COUNCIL,06/09/2022,RESOURCES,FORBES SOLICITORS,06/09/2022,616.50 ,INPUT VAT -  ADJUSTMENTS,V001917160
ROCHDALE BOROUGH COUNCIL,06/09/2022,NEIGHBOURHOODS AND ENVIRONMENT,LICENCE BUREAU LIMITED,06/09/2022,8.40 ,EQUIPMENT - GENERAL,V001917161
ROCHDALE BOROUGH COUNCIL,06/09/2022,CHILDREN�S SOCIAL CARE,PARADIGM PROFESSIONAL CONSULTANCY LTD,06/09/2022,1387.50 ,AGENCY STAFF,V001917165
ROCHDALE BOROUGH COUNCIL,05/09/2022,PROPERTY AND HIGHWAYS,CALEDONIAN LIFTS MANCHESTER LTD,05/09/2022,550.00 ,PROPERTY - WORKS ELEMENT,V001917168
ROCHDALE BOROUGH COUNCIL,06/09/2022,NEIGHBOURHOODS AND ENVIRONMENT,DANDY BOOKSELLERS,06/09/2022,11.93 ,REFERENCE BOOKS/NEWSPAPERS/PERIODICALS,V001917173
ROCHDALE BOROUGH COUNCIL,06/09/2022,NEIGHBOURHOODS AND ENVIRONMENT,DANDY BOOKSELLERS,06/09/2022,11.93 ,REFERENCE BOOKS/NEWSPAPERS/PERIODICALS,V001917173
ROCHDALE BOROUGH COUNCIL,05/09/2022,ECONOMY DIRECTORATE,REACH PUBLISHING SERVICES LTD,05/09/2022,148.93 ,PROFESSIONAL FEES,V001917178
ROCHDALE BOROUGH COUNCIL,05/09/2022,ECONOMY DIRECTORATE,REACH PUBLISHING SERVICES LTD,05/09/2022,46.35 ,PROFESSIONAL FEES,V001917179
ROCHDALE BOROUGH COUNCIL,06/09/2022,EARLY HELP AND SCHOOLS,REDACTED - PERSONAL DATA,06/09/2022,3470.61 ,OTHER EST - SEN PROVISION,V001917180
ROCHDALE BOROUGH COUNCIL,05/09/2022,PROPERTY AND HIGHWAYS,DAWSONGROUP SWEEPERS LTD,05/09/2022,1586.02 ,MINOR BUILDING WORKS,V001917185
ROCHDALE BOROUGH COUNCIL,06/09/2022,ECONOMY DIRECTORATE,G2 RECRUITMENT SOLUTIONS LTD,06/09/2022,1172.80 ,AGENCY STAFF,V001917192
ROCHDALE BOROUGH COUNCIL,05/09/2022,EARLY HELP AND SCHOOLS,REDACTED - PERSONAL DATA,05/09/2022,11545.39 ,OTHER EST - SEN PROVISION,V001917194
ROCHDALE BOROUGH COUNCIL,06/09/2022,NEIGHBOURHOODS AND ENVIRONMENT,RH ENVIRONMENT LTD,06/09/2022,1700.00 ,TRAINING,V001917195
ROCHDALE BOROUGH COUNCIL,06/09/2022,EARLY HELP AND SCHOOLS,ROSSENDALE SCHOOL PRIORY,06/09/2022,22654.49 ,OTHER LA`S - SEN PROVISION,V001917197
ROCHDALE BOROUGH COUNCIL,06/09/2022,EARLY HELP AND SCHOOLS,ROSSENDALE SCHOOL PRIORY,06/09/2022,21189.16 ,OTHER LA`S - SEN PROVISION,V001917198
ROCHDALE BOROUGH COUNCIL,06/09/2022,EARLY HELP AND SCHOOLS,ROSSENDALE SCHOOL PRIORY,06/09/2022,22838.32 ,OTHER LA`S - SEN PROVISION,V001917199
ROCHDALE BOROUGH COUNCIL,06/09/2022,EARLY HELP AND SCHOOLS,ROSSENDALE SCHOOL PRIORY,06/09/2022,25467.00 ,OTHER LA`S - SEN PROVISION,V001917200
ROCHDALE BOROUGH COUNCIL,06/09/2022,EARLY HELP AND SCHOOLS,ROSSENDALE SCHOOL PRIORY,06/09/2022,23828.32 ,OTHER LA`S - SEN PROVISION,V001917201
ROCHDALE BOROUGH COUNCIL,06/09/2022,EARLY HELP AND SCHOOLS,ROSSENDALE SCHOOL PRIORY,06/09/2022,17412.00 ,OTHER LA`S - SEN PROVISION,V001917202
ROCHDALE BOROUGH COUNCIL,06/09/2022,EARLY HELP AND SCHOOLS,ROSSENDALE SCHOOL PRIORY,06/09/2022,21189.16 ,OTHER LA`S - SEN PROVISION,V001917203
ROCHDALE BOROUGH COUNCIL,06/09/2022,EARLY HELP AND SCHOOLS,ROSSENDALE SCHOOL PRIORY,06/09/2022,32936.45 ,OTHER LA`S - SEN PROVISION,V001917204
ROCHDALE BOROUGH COUNCIL,06/09/2022,EARLY HELP AND SCHOOLS,ROSSENDALE SCHOOL PRIORY,06/09/2022,22654.49 ,OTHER EST - SEN PROVISION,V001917205
ROCHDALE BOROUGH COUNCIL,06/09/2022,EARLY HELP AND SCHOOLS,ROSSENDALE SCHOOL PRIORY,06/09/2022,22329.37 ,OTHER LA`S - SEN PROVISION,V001917206
ROCHDALE BOROUGH COUNCIL,06/09/2022,EARLY HELP AND SCHOOLS,OLIVER HOUSE PRIORY,06/09/2022,41112.67 ,OTHER LA`S - SEN PROVISION,V001917207
ROCHDALE BOROUGH COUNCIL,06/09/2022,EARLY HELP AND SCHOOLS,ROSSENDALE SCHOOL PRIORY,06/09/2022,22654.49 ,OTHER EST - SEN PROVISION,V001917209
ROCHDALE BOROUGH COUNCIL,02/09/2022,RESOURCES,BANNER GROUP LIMITED,02/09/2022,19.20 ,PRINTING & STATIONERY,V001917215
ROCHDALE BOROUGH COUNCIL,02/09/2022,RESOURCES,BANNER GROUP LIMITED,02/09/2022,0.43 ,PRINTING & STATIONERY,V001917215
ROCHDALE BOROUGH COUNCIL,02/09/2022,RESOURCES,BANNER GROUP LIMITED,02/09/2022,1.68 ,PRINTING & STATIONERY,V001917215
ROCHDALE BOROUGH COUNCIL,02/09/2022,RESOURCES,BANNER GROUP LIMITED,02/09/2022,176.00 ,PRINTING & STATIONERY,V001917215
ROCHDALE BOROUGH COUNCIL,02/09/2022,RESOURCES,BANNER GROUP LIMITED,02/09/2022,4.46 ,PRINTING & STATIONERY,V001917215
ROCHDALE BOROUGH COUNCIL,02/09/2022,PROPERTY AND HIGHWAYS,BANNER GROUP LIMITED,02/09/2022,5.20 ,PRINTING & STATIONERY,V001917299
ROCHDALE BOROUGH COUNCIL,02/09/2022,PROPERTY AND HIGHWAYS,BANNER GROUP LIMITED,02/09/2022,25.20 ,PRINTING & STATIONERY,V001917299
ROCHDALE BOROUGH COUNCIL,02/09/2022,PROPERTY AND HIGHWAYS,BANNER GROUP LIMITED,02/09/2022,35.30 ,PRINTING & STATIONERY,V001917299
ROCHDALE BOROUGH COUNCIL,02/09/2022,PROPERTY AND HIGHWAYS,BANNER GROUP LIMITED,02/09/2022,4.90 ,PRINTING & STATIONERY,V001917299
ROCHDALE BOROUGH COUNCIL,02/09/2022,PROPERTY AND HIGHWAYS,BANNER GROUP LIMITED,02/09/2022,7.84 ,PRINTING & STATIONERY,V001917299
ROCHDALE BOROUGH COUNCIL,02/09/2022,PROPERTY AND HIGHWAYS,BANNER GROUP LIMITED,02/09/2022,10.04 ,PRINTING & STATIONERY,V001917299
ROCHDALE BOROUGH COUNCIL,02/09/2022,PROPERTY AND HIGHWAYS,BANNER GROUP LIMITED,02/09/2022,32.60 ,PRINTING & STATIONERY,V001917299
ROCHDALE BOROUGH COUNCIL,02/09/2022,PROPERTY AND HIGHWAYS,BANNER GROUP LIMITED,02/09/2022,5.04 ,PRINTING & STATIONERY,V001917299
ROCHDALE BOROUGH COUNCIL,02/09/2022,PROPERTY AND HIGHWAYS,BANNER GROUP LIMITED,02/09/2022,5.00 ,PRINTING & STATIONERY,V001917299
ROCHDALE BOROUGH COUNCIL,02/09/2022,PROPERTY AND HIGHWAYS,BANNER GROUP LIMITED,02/09/2022,7.65 ,PRINTING & STATIONERY,V001917299
ROCHDALE BOROUGH COUNCIL,02/09/2022,PROPERTY AND HIGHWAYS,BANNER GROUP LIMITED,02/09/2022,145.20 ,PRINTING & STATIONERY,V001917299
ROCHDALE BOROUGH COUNCIL,02/09/2022,PROPERTY AND HIGHWAYS,BANNER GROUP LIMITED,02/09/2022,5.10 ,PRINTING & STATIONERY,V001917299
ROCHDALE BOROUGH COUNCIL,06/09/2022,ADULT CARE LCO FUNCTIONS,TF JONES PROPERTY SERVICES LTD,06/09/2022,5109.70 ,MINOR BUILDING WORKS,V001917304
ROCHDALE BOROUGH COUNCIL,02/09/2022,NEIGHBOURHOODS AND ENVIRONMENT,ENTERPRISE FLEX-E-RENT,02/09/2022,2273.44 ,TRANSACTIONS-EXPENDITURE,V001917306
ROCHDALE BOROUGH COUNCIL,05/09/2022,NEIGHBOURHOODS AND ENVIRONMENT,WOLSELEY UK LIMITED,05/09/2022,10.74 ,BUILDING MATERIALS,V001917307
ROCHDALE BOROUGH COUNCIL,05/09/2022,NEIGHBOURHOODS AND ENVIRONMENT,WOLSELEY UK LIMITED,05/09/2022,53.09 ,BUILDING MATERIALS,V001917308
ROCHDALE BOROUGH COUNCIL,05/09/2022,NEIGHBOURHOODS AND ENVIRONMENT,ANIMAL WARDENS LIMITED,05/09/2022,309.60 ,CONTRACTED SERVICES,V001917310
ROCHDALE BOROUGH COUNCIL,06/09/2022,NEIGHBOURHOODS AND ENVIRONMENT,CARRICK SIGNS LTD,06/09/2022,44.00 ,ENVIRONMENTAL WORKS LANDSCAPE,V001917311
ROCHDALE BOROUGH COUNCIL,06/09/2022,EARLY HELP AND SCHOOLS,PROVIDENT RECRUITMENT LTD,06/09/2022,1125.00 ,AGENCY STAFF,V001917312
ROCHDALE BOROUGH COUNCIL,05/09/2022,NEIGHBOURHOODS AND ENVIRONMENT,WOLSELEY UK LIMITED,05/09/2022,43.97 ,BUILDING MATERIALS,V001917315
ROCHDALE BOROUGH COUNCIL,02/09/2022,NEIGHBOURHOODS AND ENVIRONMENT,MANCHESTER CABINS LIMITED,02/09/2022,207.00 ,CONTRACTS,V001917318
ROCHDALE BOROUGH COUNCIL,02/09/2022,CHILDREN�S SOCIAL CARE,D A LANGUAGES LIMITED,02/09/2022,148.00 ,TRANSLATION & INTERPRETATION,V001917320
ROCHDALE BOROUGH COUNCIL,02/09/2022,CHILDREN�S SOCIAL CARE,D A LANGUAGES LIMITED,02/09/2022,90.88 ,TRANSLATION & INTERPRETATION,V001917321
ROCHDALE BOROUGH COUNCIL,02/09/2022,CHILDREN�S SOCIAL CARE,D A LANGUAGES LIMITED,02/09/2022,104.00 ,TRANSLATION & INTERPRETATION,V001917322
ROCHDALE BOROUGH COUNCIL,02/09/2022,CHILDREN�S SOCIAL CARE,D A LANGUAGES LIMITED,02/09/2022,55.62 ,TRANSLATION & INTERPRETATION,V001917324
ROCHDALE BOROUGH COUNCIL,06/09/2022,RESOURCES,CIVICA UK LIMITED,06/09/2022,333.33 ,SOFTWARE,V001917347
ROCHDALE BOROUGH COUNCIL,06/09/2022,ADULT CARE LCO FUNCTIONS,ELDERCARE UK LTD,06/09/2022,432.00 ,SERVICE LEVEL AGREEMENTS,V001917348
ROCHDALE BOROUGH COUNCIL,06/09/2022,ADULT CARE LCO FUNCTIONS,STANNAH LIFT SERVICES LTD,06/09/2022,63.00 ,REMOVAL EXPENDITURE,V001917349
ROCHDALE BOROUGH COUNCIL,06/09/2022,NEIGHBOURHOODS AND ENVIRONMENT,DAISY CORPORATE SERVICES TRADING LTD,06/09/2022,50.69 ,IT MAINTENANCE,V001917350
ROCHDALE BOROUGH COUNCIL,06/09/2022,NEIGHBOURHOODS AND ENVIRONMENT,DAISY CORPORATE SERVICES TRADING LTD,06/09/2022,2673.02 ,IT MAINTENANCE,V001917350
ROCHDALE BOROUGH COUNCIL,06/09/2022,ADULT CARE LCO FUNCTIONS,STANNAH LIFT SERVICES LTD,06/09/2022,3881.00 ,MINOR BUILDING WORKS,V001917351
ROCHDALE BOROUGH COUNCIL,06/09/2022,RESOURCES,LANGUAGE LINE SOLUTIONS,06/09/2022,105.30 ,TRANSLATION & INTERPRETATION,V001917352
ROCHDALE BOROUGH COUNCIL,06/09/2022,NEIGHBOURHOODS AND ENVIRONMENT,XEROX UK LTD,06/09/2022,539.76 ,TRANSACTIONS-EXPENDITURE,V001917353
ROCHDALE BOROUGH COUNCIL,06/09/2022,NEIGHBOURHOODS AND ENVIRONMENT,XEROX UK LTD,06/09/2022,539.76 ,TRANSACTIONS-EXPENDITURE,V001917353
ROCHDALE BOROUGH COUNCIL,06/09/2022,CHILDREN�S SOCIAL CARE,D A LANGUAGES LIMITED,06/09/2022,151.50 ,TRANSLATION & INTERPRETATION,V001917354
ROCHDALE BOROUGH COUNCIL,06/09/2022,CHILDREN�S SOCIAL CARE,PARADIGM PROFESSIONAL CONSULTANCY LTD,06/09/2022,459.00 ,AGENCY STAFF,V001917355
ROCHDALE BOROUGH COUNCIL,06/09/2022,EARLY HELP AND SCHOOLS,HILL DICKINSON LLP,06/09/2022,2921.00 ,LEGAL SERVICES CHILDREN`S SOCIAL CARE,V001917356
ROCHDALE BOROUGH COUNCIL,06/09/2022,CHILDREN�S SOCIAL CARE,PARADIGM PROFESSIONAL CONSULTANCY LTD,06/09/2022,1475.25 ,AGENCY STAFF,V001917357
ROCHDALE BOROUGH COUNCIL,06/09/2022,CHILDREN�S SOCIAL CARE,PARADIGM PROFESSIONAL CONSULTANCY LTD,06/09/2022,772.35 ,AGENCY STAFF,V001917358
ROCHDALE BOROUGH COUNCIL,06/09/2022,CHILDREN�S SOCIAL CARE,PARADIGM PROFESSIONAL CONSULTANCY LTD,06/09/2022,1387.50 ,AGENCY STAFF,V001917359
ROCHDALE BOROUGH COUNCIL,06/09/2022,EARLY HELP AND SCHOOLS,ACTIVE AID LTD,06/09/2022,64.00 ,TRAINING,V001917360
ROCHDALE BOROUGH COUNCIL,06/09/2022,CHILDREN�S SOCIAL CARE,BEDSPACE RESOURCE LTD,06/09/2022,5535.71 ,YOUNG PEOPLES RENTS,V001917362
ROCHDALE BOROUGH COUNCIL,06/09/2022,CHILDREN�S SOCIAL CARE,BEDSPACE RESOURCE LTD,06/09/2022,270.36 ,YOUNGE PERSONS ALLOWANCE,V001917362
ROCHDALE BOROUGH COUNCIL,02/09/2022,EARLY HELP AND SCHOOLS,ROCHDALE TOWN TAXIS LTD,02/09/2022,8.20 ,PUBLIC TRANSPORT,V001917363
ROCHDALE BOROUGH COUNCIL,02/09/2022,EARLY HELP AND SCHOOLS,ROCHDALE TOWN TAXIS LTD,02/09/2022,8.20 ,PUBLIC TRANSPORT,V001917363
ROCHDALE BOROUGH COUNCIL,02/09/2022,EARLY HELP AND SCHOOLS,ROCHDALE TOWN TAXIS LTD,02/09/2022,8.20 ,PUBLIC TRANSPORT,V001917363
ROCHDALE BOROUGH COUNCIL,06/09/2022,EARLY HELP AND SCHOOLS,ROSS CARE,06/09/2022,7869.48 ,EQUIPMENT - GENERAL,V001917365
ROCHDALE BOROUGH COUNCIL,06/09/2022,EARLY HELP AND SCHOOLS,ROSSENDALE SCHOOL PRIORY,06/09/2022,21189.16 ,OTHER LA`S - SEN PROVISION,V001917366
ROCHDALE BOROUGH COUNCIL,06/09/2022,EARLY HELP AND SCHOOLS,TEACHING PERSONNEL LTD,06/09/2022,135.00 ,OTHER LA`S - SEN PROVISION,V001917368
ROCHDALE BOROUGH COUNCIL,06/09/2022,ADULT CARE LCO FUNCTIONS,HOIST AND SHOWER CHAIR CO LTD,06/09/2022,5811.00 ,MINOR BUILDING WORKS,V001917369
ROCHDALE BOROUGH COUNCIL,06/09/2022,NEIGHBOURHOODS AND ENVIRONMENT,AQUACOOL LTD,06/09/2022,40.00 ,EQUIPMENT - GENERAL,V001917370
ROCHDALE BOROUGH COUNCIL,06/09/2022,EARLY HELP AND SCHOOLS,AQUACOOL LTD,06/09/2022,17.29 ,REFRESHMENTS,V001917371
ROCHDALE BOROUGH COUNCIL,06/09/2022,NEIGHBOURHOODS AND ENVIRONMENT,AQUACOOL LTD,06/09/2022,20.00 ,EQUIPMENT - GENERAL,V001917372
ROCHDALE BOROUGH COUNCIL,06/09/2022,NEIGHBOURHOODS AND ENVIRONMENT,VIVEDIA LTD,06/09/2022,665.00 ,MUSIC SERVICE,V001917374
ROCHDALE BOROUGH COUNCIL,06/09/2022,RESOURCES,FORBES SOLICITORS,06/09/2022,2712.00 ,TRANSACTIONS-EXPENDITURE,V001917375
ROCHDALE BOROUGH COUNCIL,06/09/2022,NEIGHBOURHOODS AND ENVIRONMENT,BIBLIOTHECA,06/09/2022,1875.00 ,PURCHASE OF FURNITURE AND EQUIPMENT,V001917379
ROCHDALE BOROUGH COUNCIL,06/09/2022,CHILDREN�S SOCIAL CARE,FORENSIC TESTING SERVICE LTD,06/09/2022,2396.00 ,MEDICAL FEES,V001917380
ROCHDALE BOROUGH COUNCIL,06/09/2022,ECONOMY DIRECTORATE,S SECURITY GROUP LTD,06/09/2022,7722.40 ,SECURITY,V001917381
ROCHDALE BOROUGH COUNCIL,06/09/2022,ECONOMY DIRECTORATE,AQUACOOL LTD,06/09/2022,19.50 ,EXPENSES - GENERAL,V001917383
ROCHDALE BOROUGH COUNCIL,06/09/2022,CHILDREN�S SOCIAL CARE,AQUACOOL LTD,06/09/2022,13.00 ,PROVISIONS,V001917384
ROCHDALE BOROUGH COUNCIL,06/09/2022,EARLY HELP AND SCHOOLS,AQUACOOL LTD,06/09/2022,6.00 ,REFRESHMENTS,V001917385
ROCHDALE BOROUGH COUNCIL,06/09/2022,PROPERTY AND HIGHWAYS,AQUACOOL LTD,06/09/2022,19.50 ,EXPENSES - GENERAL,V001917386
ROCHDALE BOROUGH COUNCIL,06/09/2022,RESOURCES,AQUACOOL LTD,06/09/2022,26.00 ,EQUIPMENT - GENERAL,V001917386
ROCHDALE BOROUGH COUNCIL,06/09/2022,RESOURCES,FORENSICS LTD,06/09/2022,821.75 ,TOXICOLOGY PAYMENTS,V001917387
ROCHDALE BOROUGH COUNCIL,06/09/2022,NEIGHBOURHOODS AND ENVIRONMENT,GMCA,06/09/2022,137.00 ,TRAINING,V001917399
ROCHDALE BOROUGH COUNCIL,06/09/2022,EARLY HELP AND SCHOOLS,GTM ELECTRICAL SERVICES LIMITED,06/09/2022,385.20 ,ELECTRICAL,V001917401
ROCHDALE BOROUGH COUNCIL,15/09/2022,ECONOMY DIRECTORATE,POSSABILITIES CIC TRADING,15/09/2022,6529.76 ,TRAINING-NON QUALIFICATION,V001917402
ROCHDALE BOROUGH COUNCIL,16/09/2022,EARLY HELP AND SCHOOLS,NORMANS BURTON UPON TRENT LTD,16/09/2022,185.00 ,EQUIPMENT - GENERAL,V001917404
ROCHDALE BOROUGH COUNCIL,06/09/2022,NEIGHBOURHOODS AND ENVIRONMENT,SPIN PRINT SOLUTIONS,06/09/2022,53.00 ,PURCHASE OF FURNITURE AND EQUIPMENT,V001917411
ROCHDALE BOROUGH COUNCIL,06/09/2022,PROPERTY AND HIGHWAYS,ROSEHILL POLYMERS LTD,06/09/2022,2037.95 ,REPAIRS & ALTS OF BUILDINGS,V001917413
ROCHDALE BOROUGH COUNCIL,01/09/2022,CHILDREN�S SOCIAL CARE,NORTHERN COMMUNITY PATHWAYS LTD,01/09/2022,95.93 ,YOUNGE PERSONS ALLOWANCE,V001917414
ROCHDALE BOROUGH COUNCIL,15/09/2022,CHILDREN�S SOCIAL CARE,RENTRUCK,15/09/2022,28.50 ,EXTERNAL HIRE,V001917416
ROCHDALE BOROUGH COUNCIL,01/09/2022,CHILDREN�S SOCIAL CARE,NORTHERN COMMUNITY PATHWAYS LTD,01/09/2022,270.36 ,YOUNGE PERSONS ALLOWANCE,V001917418
ROCHDALE BOROUGH COUNCIL,06/09/2022,NEIGHBOURHOODS AND ENVIRONMENT,SPIN PRINT SOLUTIONS,06/09/2022,21.00 ,PURCHASE OF FURNITURE AND EQUIPMENT,V001917422
ROCHDALE BOROUGH COUNCIL,06/09/2022,CHILDREN�S SOCIAL CARE,THE TOGETHER TRUST,06/09/2022,3996.83 ,FOSTER PARENTS BASIC ALLOWANCE,V001917433
ROCHDALE BOROUGH COUNCIL,06/09/2022,ECONOMY DIRECTORATE, WALKER SIME LTD,06/09/2022,5700.00 ,CONSULTANTS FEES,V001917434
ROCHDALE BOROUGH COUNCIL,06/09/2022,PROPERTY AND HIGHWAYS,MAYHURST BOLTON LTD,06/09/2022,999.60 ,TIPPING CHARGES,V001917436
ROCHDALE BOROUGH COUNCIL,05/09/2022,PROPERTY AND HIGHWAYS,BRADSHAW GASS AND HOPE LLP,05/09/2022,375.00 ,CAPITAL SALARIES,V001917438
ROCHDALE BOROUGH COUNCIL,06/09/2022,NEIGHBOURHOODS AND ENVIRONMENT,ELECTRIC CENTER,06/09/2022,5.96 ,BUILDING MATERIALS,V001917442
ROCHDALE BOROUGH COUNCIL,06/09/2022,NEIGHBOURHOODS AND ENVIRONMENT,ELECTRIC CENTER,06/09/2022,8.26 ,BUILDING MATERIALS,V001917443
ROCHDALE BOROUGH COUNCIL,06/09/2022,NEIGHBOURHOODS AND ENVIRONMENT,ELECTRIC CENTER,06/09/2022,82.51 ,BUILDING MATERIALS,V001917444
ROCHDALE BOROUGH COUNCIL,06/09/2022,NEIGHBOURHOODS AND ENVIRONMENT,ELECTRIC CENTER,06/09/2022,25.92 ,BUILDING MATERIALS,V001917445
ROCHDALE BOROUGH COUNCIL,05/09/2022,NEIGHBOURHOODS AND ENVIRONMENT,PHS GROUP PLC,05/09/2022,5.50 ,EQUIPMENT - GENERAL,V001917446
ROCHDALE BOROUGH COUNCIL,05/09/2022,NEIGHBOURHOODS AND ENVIRONMENT,PHS GROUP PLC,05/09/2022,76.25 ,AFTER SCHOOL CLUB,V001917446
ROCHDALE BOROUGH COUNCIL,05/09/2022,RESOURCES,JACOBS,05/09/2022,0.00 ,INPUT VAT -  ADJUSTMENTS,V001917489
ROCHDALE BOROUGH COUNCIL,06/09/2022,CHILDREN�S SOCIAL CARE,SWIIS FOSTER CARE LIMITED,06/09/2022,808.01 ,FOSTER PARENTS BASIC ALLOWANCE,V001917491
ROCHDALE BOROUGH COUNCIL,06/09/2022,CHILDREN�S SOCIAL CARE,SWIIS FOSTER CARE LIMITED,06/09/2022,775.18 ,FOSTER PARENTS BASIC ALLOWANCE,V001917492
ROCHDALE BOROUGH COUNCIL,06/09/2022,PROPERTY AND HIGHWAYS,BANNER GROUP LIMITED,06/09/2022,39.60 ,PRINTING & STATIONERY,V001917493
ROCHDALE BOROUGH COUNCIL,06/09/2022,EARLY HELP AND SCHOOLS,BANNER GROUP LIMITED,06/09/2022,12.99 ,PRINTING & STATIONERY,V001917494
ROCHDALE BOROUGH COUNCIL,01/09/2022,CHILDREN�S SOCIAL CARE,THE TOGETHER TRUST,01/09/2022,18600.00 ,EBD (EMOT & BEHAV DIFF) PLACEMENTS,V001917495
ROCHDALE BOROUGH COUNCIL,02/09/2022,ADULT CARE LCO FUNCTIONS,TUNSTALL HEALTHCARE (UK) LTD,02/09/2022,804.40 ,PURCHASE OF FURNITURE AND EQUIPMENT,V001917504
ROCHDALE BOROUGH COUNCIL,02/09/2022,ADULT CARE LCO FUNCTIONS,TUNSTALL HEALTHCARE (UK) LTD,02/09/2022,140.00 ,PURCHASE OF FURNITURE AND EQUIPMENT,V001917504
ROCHDALE BOROUGH COUNCIL,06/09/2022,PROPERTY AND HIGHWAYS,BSI STANDARDS LIMITED,06/09/2022,1831.00 ,ROADWORKS,V001917506
ROCHDALE BOROUGH COUNCIL,06/09/2022,CHILDREN�S SOCIAL CARE,CHILD ACTION NORTHWEST,06/09/2022,2499.36 ,FOSTER PARENTS BASIC ALLOWANCE,V001917553
ROCHDALE BOROUGH COUNCIL,23/09/2022,ADULT CARE LCO FUNCTIONS,HEALEY CARE LTD,23/09/2022,-2651.00 ,RESIDENTIAL LONG TERM,V001917555
ROCHDALE BOROUGH COUNCIL,23/09/2022,ADULT CARE LCO FUNCTIONS,HEALEY CARE LTD,23/09/2022,-2651.00 ,RESIDENTIAL LONG TERM,V001917555
ROCHDALE BOROUGH COUNCIL,23/09/2022,ADULT CARE LCO FUNCTIONS,HEALEY CARE LTD,23/09/2022,-3374.00 ,RESIDENTIAL LONG TERM,V001917556
ROCHDALE BOROUGH COUNCIL,23/09/2022,ADULT CARE LCO FUNCTIONS,HEALEY CARE LTD,23/09/2022,-3374.00 ,RESIDENTIAL LONG TERM,V001917556
ROCHDALE BOROUGH COUNCIL,23/09/2022,ADULT CARE LCO FUNCTIONS,HEALEY CARE LTD,23/09/2022,-3374.00 ,RESIDENTIAL LONG TERM,V001917557
ROCHDALE BOROUGH COUNCIL,23/09/2022,ADULT CARE LCO FUNCTIONS,HEALEY CARE LTD,23/09/2022,-3374.00 ,RESIDENTIAL LONG TERM,V001917557
ROCHDALE BOROUGH COUNCIL,23/09/2022,ADULT CARE LCO FUNCTIONS,HEALEY CARE LTD,23/09/2022,-3374.00 ,RESIDENTIAL LONG TERM,V001917558
ROCHDALE BOROUGH COUNCIL,23/09/2022,ADULT CARE LCO FUNCTIONS,HEALEY CARE LTD,23/09/2022,-3374.00 ,RESIDENTIAL LONG TERM,V001917558
ROCHDALE BOROUGH COUNCIL,23/09/2022,ADULT CARE LCO FUNCTIONS,HEALEY CARE LTD,23/09/2022,-3374.00 ,RESIDENTIAL LONG TERM,V001917559
ROCHDALE BOROUGH COUNCIL,23/09/2022,ADULT CARE LCO FUNCTIONS,HEALEY CARE LTD,23/09/2022,-3374.00 ,RESIDENTIAL LONG TERM,V001917559
ROCHDALE BOROUGH COUNCIL,23/09/2022,ADULT CARE LCO FUNCTIONS,HEALEY CARE LTD,23/09/2022,-3374.00 ,RESIDENTIAL LONG TERM,V001917560
ROCHDALE BOROUGH COUNCIL,23/09/2022,ADULT CARE LCO FUNCTIONS,HEALEY CARE LTD,23/09/2022,-3374.00 ,RESIDENTIAL LONG TERM,V001917560
ROCHDALE BOROUGH COUNCIL,23/09/2022,ADULT CARE LCO FUNCTIONS,HEALEY CARE LTD,23/09/2022,-3374.00 ,RESIDENTIAL LONG TERM,V001917561
ROCHDALE BOROUGH COUNCIL,23/09/2022,ADULT CARE LCO FUNCTIONS,HEALEY CARE LTD,23/09/2022,-3374.00 ,RESIDENTIAL LONG TERM,V001917561
ROCHDALE BOROUGH COUNCIL,23/09/2022,ADULT CARE LCO FUNCTIONS,HEALEY CARE LTD,23/09/2022,-3374.00 ,RESIDENTIAL LONG TERM,V001917562
ROCHDALE BOROUGH COUNCIL,23/09/2022,ADULT CARE LCO FUNCTIONS,HEALEY CARE LTD,23/09/2022,-3374.00 ,RESIDENTIAL LONG TERM,V001917562
ROCHDALE BOROUGH COUNCIL,23/09/2022,ADULT CARE LCO FUNCTIONS,HEALEY CARE LTD,23/09/2022,-3374.00 ,RESIDENTIAL LONG TERM,V001917563
ROCHDALE BOROUGH COUNCIL,23/09/2022,ADULT CARE LCO FUNCTIONS,HEALEY CARE LTD,23/09/2022,-3374.00 ,RESIDENTIAL LONG TERM,V001917563
ROCHDALE BOROUGH COUNCIL,23/09/2022,ADULT CARE LCO FUNCTIONS,HEALEY CARE LTD,23/09/2022,-3374.00 ,RESIDENTIAL LONG TERM,V001917564
ROCHDALE BOROUGH COUNCIL,23/09/2022,ADULT CARE LCO FUNCTIONS,HEALEY CARE LTD,23/09/2022,-3374.00 ,RESIDENTIAL LONG TERM,V001917564
ROCHDALE BOROUGH COUNCIL,23/09/2022,ADULT CARE LCO FUNCTIONS,HEALEY CARE LTD,23/09/2022,-3374.00 ,RESIDENTIAL LONG TERM,V001917565
ROCHDALE BOROUGH COUNCIL,23/09/2022,ADULT CARE LCO FUNCTIONS,HEALEY CARE LTD,23/09/2022,-3374.00 ,RESIDENTIAL LONG TERM,V001917565
ROCHDALE BOROUGH COUNCIL,23/09/2022,ADULT CARE LCO FUNCTIONS,HEALEY CARE LTD,23/09/2022,-3374.00 ,RESIDENTIAL LONG TERM,V001917566
ROCHDALE BOROUGH COUNCIL,23/09/2022,ADULT CARE LCO FUNCTIONS,HEALEY CARE LTD,23/09/2022,-3374.00 ,RESIDENTIAL LONG TERM,V001917566
ROCHDALE BOROUGH COUNCIL,23/09/2022,ADULT CARE LCO FUNCTIONS,HEALEY CARE LTD,23/09/2022,-3374.00 ,RESIDENTIAL LONG TERM,V001917567
ROCHDALE BOROUGH COUNCIL,23/09/2022,ADULT CARE LCO FUNCTIONS,HEALEY CARE LTD,23/09/2022,-3374.00 ,RESIDENTIAL LONG TERM,V001917567
ROCHDALE BOROUGH COUNCIL,23/09/2022,ADULT CARE LCO FUNCTIONS,HEALEY CARE LTD,23/09/2022,-3374.00 ,RESIDENTIAL LONG TERM,V001917568
ROCHDALE BOROUGH COUNCIL,23/09/2022,ADULT CARE LCO FUNCTIONS,HEALEY CARE LTD,23/09/2022,-3374.00 ,RESIDENTIAL LONG TERM,V001917568
ROCHDALE BOROUGH COUNCIL,23/09/2022,ADULT CARE LCO FUNCTIONS,HEALEY CARE LTD,23/09/2022,-3374.00 ,RESIDENTIAL LONG TERM,V001917569
ROCHDALE BOROUGH COUNCIL,23/09/2022,ADULT CARE LCO FUNCTIONS,HEALEY CARE LTD,23/09/2022,-3374.00 ,RESIDENTIAL LONG TERM,V001917569
ROCHDALE BOROUGH COUNCIL,23/09/2022,ADULT CARE LCO FUNCTIONS,HEALEY CARE LTD,23/09/2022,-3374.00 ,RESIDENTIAL LONG TERM,V001917570
ROCHDALE BOROUGH COUNCIL,23/09/2022,ADULT CARE LCO FUNCTIONS,HEALEY CARE LTD,23/09/2022,-3374.00 ,RESIDENTIAL LONG TERM,V001917570
ROCHDALE BOROUGH COUNCIL,23/09/2022,ADULT CARE LCO FUNCTIONS,HEALEY CARE LTD,23/09/2022,-3374.00 ,RESIDENTIAL LONG TERM,V001917571
ROCHDALE BOROUGH COUNCIL,23/09/2022,ADULT CARE LCO FUNCTIONS,HEALEY CARE LTD,23/09/2022,-3374.00 ,RESIDENTIAL LONG TERM,V001917571
ROCHDALE BOROUGH COUNCIL,23/09/2022,ADULT CARE LCO FUNCTIONS,HEALEY CARE LTD,23/09/2022,-3374.00 ,RESIDENTIAL LONG TERM,V001917572
ROCHDALE BOROUGH COUNCIL,23/09/2022,ADULT CARE LCO FUNCTIONS,HEALEY CARE LTD,23/09/2022,-3374.00 ,RESIDENTIAL LONG TERM,V001917572
ROCHDALE BOROUGH COUNCIL,23/09/2022,ADULT CARE LCO FUNCTIONS,HEALEY CARE LTD,23/09/2022,-3374.00 ,RESIDENTIAL LONG TERM,V001917573
ROCHDALE BOROUGH COUNCIL,23/09/2022,ADULT CARE LCO FUNCTIONS,HEALEY CARE LTD,23/09/2022,-3374.00 ,RESIDENTIAL LONG TERM,V001917573
ROCHDALE BOROUGH COUNCIL,23/09/2022,ADULT CARE LCO FUNCTIONS,HEALEY CARE LTD,23/09/2022,-3374.00 ,RESIDENTIAL LONG TERM,V001917574
ROCHDALE BOROUGH COUNCIL,23/09/2022,ADULT CARE LCO FUNCTIONS,HEALEY CARE LTD,23/09/2022,-3374.00 ,RESIDENTIAL LONG TERM,V001917574
ROCHDALE BOROUGH COUNCIL,23/09/2022,ADULT CARE LCO FUNCTIONS,HEALEY CARE LTD,23/09/2022,-3374.00 ,RESIDENTIAL LONG TERM,V001917575
ROCHDALE BOROUGH COUNCIL,23/09/2022,ADULT CARE LCO FUNCTIONS,HEALEY CARE LTD,23/09/2022,-3374.00 ,RESIDENTIAL LONG TERM,V001917575
ROCHDALE BOROUGH COUNCIL,23/09/2022,ADULT CARE LCO FUNCTIONS,HEALEY CARE LTD,23/09/2022,3476.90 ,RESIDENTIAL LONG TERM,V001917580
ROCHDALE BOROUGH COUNCIL,23/09/2022,ADULT CARE LCO FUNCTIONS,HEALEY CARE LTD,23/09/2022,3752.00 ,RESIDENTIAL LONG TERM,V001917584
ROCHDALE BOROUGH COUNCIL,23/09/2022,ADULT CARE LCO FUNCTIONS,HEALEY CARE LTD,23/09/2022,3752.00 ,RESIDENTIAL LONG TERM,V001917584
ROCHDALE BOROUGH COUNCIL,23/09/2022,ADULT CARE LCO FUNCTIONS,HEALEY CARE LTD,23/09/2022,2274.46 ,RESIDENTIAL LONG TERM,V001917586
ROCHDALE BOROUGH COUNCIL,23/09/2022,ADULT CARE LCO FUNCTIONS,HEALEY CARE LTD,23/09/2022,2274.46 ,RESIDENTIAL LONG TERM,V001917586
ROCHDALE BOROUGH COUNCIL,23/09/2022,ADULT CARE LCO FUNCTIONS,HEALEY CARE LTD,23/09/2022,1412.00 ,NURSING LONG TERM,V001917587
ROCHDALE BOROUGH COUNCIL,23/09/2022,ADULT CARE LCO FUNCTIONS,HEALEY CARE LTD,23/09/2022,3203.18 ,RESIDENTIAL LONG TERM,V001917588
ROCHDALE BOROUGH COUNCIL,23/09/2022,ADULT CARE LCO FUNCTIONS,HEALEY CARE LTD,23/09/2022,3203.18 ,RESIDENTIAL LONG TERM,V001917588
ROCHDALE BOROUGH COUNCIL,23/09/2022,ADULT CARE LCO FUNCTIONS,HEALEY CARE LTD,23/09/2022,2698.00 ,RESIDENTIAL LONG TERM,V001917596
ROCHDALE BOROUGH COUNCIL,23/09/2022,ADULT CARE LCO FUNCTIONS,HEALEY CARE LTD,23/09/2022,2698.00 ,RESIDENTIAL LONG TERM,V001917596
ROCHDALE BOROUGH COUNCIL,23/09/2022,ADULT CARE LCO FUNCTIONS,HEALEY CARE LTD,23/09/2022,2480.80 ,RESIDENTIAL LONG TERM,V001917599
ROCHDALE BOROUGH COUNCIL,23/09/2022,ADULT CARE LCO FUNCTIONS,HEALEY CARE LTD,23/09/2022,2688.00 ,RESIDENTIAL LONG TERM,V001917602
ROCHDALE BOROUGH COUNCIL,02/09/2022,ADULT CARE LCO FUNCTIONS,BEECHWOOD LIVERPOOL LTD,02/09/2022,1204.91 ,RESIDENTIAL LONG TERM,V001917710
ROCHDALE BOROUGH COUNCIL,02/09/2022,ADULT CARE LCO FUNCTIONS,BEECHWOOD LIVERPOOL LTD,02/09/2022,2811.46 ,RESIDENTIAL LONG TERM,V001917711
ROCHDALE BOROUGH COUNCIL,02/09/2022,ADULT CARE LCO FUNCTIONS,BEECHWOOD LIVERPOOL LTD,02/09/2022,2811.46 ,RESIDENTIAL LONG TERM,V001917712
ROCHDALE BOROUGH COUNCIL,02/09/2022,ADULT CARE LCO FUNCTIONS,BEECHWOOD LIVERPOOL LTD,02/09/2022,2811.46 ,RESIDENTIAL LONG TERM,V001917713
ROCHDALE BOROUGH COUNCIL,02/09/2022,ADULT CARE LCO FUNCTIONS,BEECHWOOD LIVERPOOL LTD,02/09/2022,2811.46 ,RESIDENTIAL LONG TERM,V001917714
ROCHDALE BOROUGH COUNCIL,02/09/2022,ADULT CARE LCO FUNCTIONS,BEECHWOOD LIVERPOOL LTD,02/09/2022,2811.46 ,RESIDENTIAL LONG TERM,V001917715
ROCHDALE BOROUGH COUNCIL,05/09/2022,CHILDREN�S SOCIAL CARE,PARALLEL PARENTS,05/09/2022,4030.00 ,FOSTER PARENTS BASIC ALLOWANCE,V001918587
ROCHDALE BOROUGH COUNCIL,09/09/2022,EARLY HELP AND SCHOOLS,MILLENNIUM TRANSLATIONS LTD,09/09/2022,43.25 ,TRANSLATION & INTERPRETATION,V001918855
ROCHDALE BOROUGH COUNCIL,05/09/2022,EARLY HELP AND SCHOOLS,NORTHERN CARE ALLIANCE NHS FOUNDATION TRUST,05/09/2022,4314.00 ,HEALTH AUTH - SERVICE LEVEL AGREEMENT,V001918858
ROCHDALE BOROUGH COUNCIL,06/09/2022,NEIGHBOURHOODS AND ENVIRONMENT,BLUEPRINT GB LTD,06/09/2022,110.00 ,ACTIVITIES,V001918864
ROCHDALE BOROUGH COUNCIL,06/09/2022,EARLY HELP AND SCHOOLS,A AND D DOOR SYSTEMS LTD,06/09/2022,108.00 ,REPAIRS & ALTS OF BUILDINGS,V001918866
ROCHDALE BOROUGH COUNCIL,06/09/2022,NEIGHBOURHOODS AND ENVIRONMENT,A AND D DOOR SYSTEMS LTD,06/09/2022,89.00 ,REPAIRS & ALTS OF BUILDINGS,V001918867
ROCHDALE BOROUGH COUNCIL,06/09/2022,NEIGHBOURHOODS AND ENVIRONMENT,SCREWFIX DIRECT LIMITED,06/09/2022,220.82 ,EQUIPMENT - GENERAL,V001918872
ROCHDALE BOROUGH COUNCIL,06/09/2022,RESOURCES,BATE AND HOLLAND FUNERAL SERVICES LTD,06/09/2022,2700.00 ,UNDERTAKERS COSTS,V001918873
ROCHDALE BOROUGH COUNCIL,06/09/2022,NEIGHBOURHOODS AND ENVIRONMENT,ELECTRIC CENTER,06/09/2022,10.12 ,BUILDING MATERIALS,V001918874
ROCHDALE BOROUGH COUNCIL,06/09/2022,NEIGHBOURHOODS AND ENVIRONMENT,ELECTRIC CENTER,06/09/2022,127.42 ,BUILDING MATERIALS,V001918875
ROCHDALE BOROUGH COUNCIL,06/09/2022,NEIGHBOURHOODS AND ENVIRONMENT,ELECTRIC CENTER,06/09/2022,123.82 ,BUILDING MATERIALS,V001918876
ROCHDALE BOROUGH COUNCIL,06/09/2022,NEIGHBOURHOODS AND ENVIRONMENT,FRANK KEY TOOL HIRE LTD,06/09/2022,36.00 ,BUILDING MATERIALS,V001918877
ROCHDALE BOROUGH COUNCIL,09/09/2022,EARLY HELP AND SCHOOLS,AQUACOOL LTD,09/09/2022,16.25 ,REFRESHMENTS,V001918899
ROCHDALE BOROUGH COUNCIL,15/09/2022,NEIGHBOURHOODS AND ENVIRONMENT,WHISTL UK LTD,15/09/2022,425.76 ,TRANSACTIONS-EXPENDITURE,V001918900
ROCHDALE BOROUGH COUNCIL,09/09/2022,NEIGHBOURHOODS AND ENVIRONMENT,LS SYSTEMS LTD,09/09/2022,14.04 ,"TREES, SHRUBS, PLANTS",V001918902
ROCHDALE BOROUGH COUNCIL,09/09/2022,ECONOMY DIRECTORATE,SEVEN ARCHITECTURE LTD,09/09/2022,1555.00 ,CONSULTANTS FEES,V001918903
ROCHDALE BOROUGH COUNCIL,09/09/2022,NEIGHBOURHOODS AND ENVIRONMENT,COUNTERCULTURE PARTNERSHIP LLP,09/09/2022,9950.00 ,CONSULTANT FEES,V001918904
ROCHDALE BOROUGH COUNCIL,09/09/2022,EARLY HELP AND SCHOOLS,SAICA NATUR UK LTD,09/09/2022,45.00 ,DISPOSAL OF CONFIDENTIAL EQUIPMENT AND W,V001918905
ROCHDALE BOROUGH COUNCIL,09/09/2022,NEIGHBOURHOODS AND ENVIRONMENT,EXCLUSEC,09/09/2022,11267.28 ,SECURITY,V001918906
ROCHDALE BOROUGH COUNCIL,02/09/2022,CHILDREN�S SOCIAL CARE,ROCHDALE TOWN TAXIS LTD,02/09/2022,40.90 ,PUBLIC TRANSPORT,V001918907
ROCHDALE BOROUGH COUNCIL,02/09/2022,CHILDREN�S SOCIAL CARE,ROCHDALE TOWN TAXIS LTD,02/09/2022,40.90 ,PUBLIC TRANSPORT,V001918907
ROCHDALE BOROUGH COUNCIL,02/09/2022,CHILDREN�S SOCIAL CARE,ROCHDALE TOWN TAXIS LTD,02/09/2022,40.90 ,PUBLIC TRANSPORT,V001918907
ROCHDALE BOROUGH COUNCIL,06/09/2022,ADULT CARE LCO FUNCTIONS,SARA MEDICS LTD,06/09/2022,173.37 ,EXPENSES - GENERAL,V001918909
ROCHDALE BOROUGH COUNCIL,06/09/2022,EARLY HELP AND SCHOOLS,RELIANCE MEDICAL,06/09/2022,392.28 ,EQUIPMENT - GENERAL,V001918911
ROCHDALE BOROUGH COUNCIL,06/09/2022,ADULT CARE LCO FUNCTIONS,ROUTES HEALTHCARE NORTH LTD,06/09/2022,94.92 ,HOME CARE - ADULT SERVICES,V001918917
ROCHDALE BOROUGH COUNCIL,06/09/2022,EARLY HELP AND SCHOOLS,D A LANGUAGES LIMITED,06/09/2022,73.12 ,TRANSLATION & INTERPRETATION,V001918918
ROCHDALE BOROUGH COUNCIL,06/09/2022,ADULT CARE LCO FUNCTIONS,ROUTES HEALTHCARE NORTH LTD,06/09/2022,94.92 ,HOME CARE - ADULT SERVICES,V001918919
ROCHDALE BOROUGH COUNCIL,06/09/2022,RESOURCES,MICROFORM IMAGING LIMITED,06/09/2022,500.00 ,SOFTWARE,V001918920
ROCHDALE BOROUGH COUNCIL,06/09/2022,ECONOMY DIRECTORATE,GILLESPIES LLP,06/09/2022,2300.00 ,CONSULTANTS FEES,V001918921
ROCHDALE BOROUGH COUNCIL,06/09/2022,PROPERTY AND HIGHWAYS,ASSOCIATED CLEANING CONTRACTORS,06/09/2022,135.00 ,REPAIRS & ALTS OF BUILDINGS,V001918922
ROCHDALE BOROUGH COUNCIL,06/09/2022,NEIGHBOURHOODS AND ENVIRONMENT,GOOD HELP LTD,06/09/2022,14625.00 ,ACTIVITIES,V001918924
ROCHDALE BOROUGH COUNCIL,02/09/2022,EARLY HELP AND SCHOOLS,STREAMLINE TAXIS,02/09/2022,1300.00 ,TRAVELLING GENERAL EXPENSES,V001918927
ROCHDALE BOROUGH COUNCIL,06/09/2022,PROPERTY AND HIGHWAYS,CAPITA BUSINESS SERVICES LIMITED,06/09/2022,181.86 ,CONTRACTED SERVICES,V001918930
ROCHDALE BOROUGH COUNCIL,06/09/2022,PROPERTY AND HIGHWAYS,CAPITA BUSINESS SERVICES LIMITED,06/09/2022,181.86 ,CONTRACTED SERVICES,V001918930
ROCHDALE BOROUGH COUNCIL,07/09/2022,PROPERTY AND HIGHWAYS,PERMICOAT LTD,07/09/2022,1840.00 ,MINOR BUILDING WORKS,V001918931
ROCHDALE BOROUGH COUNCIL,06/09/2022,PROPERTY AND HIGHWAYS,COMPLETE CONSTRUCTION,06/09/2022,5500.00 ,MINOR BUILDING WORKS,V001918932
ROCHDALE BOROUGH COUNCIL,06/09/2022,PROPERTY AND HIGHWAYS,PATROL,06/09/2022,2136.60 ,FEES / COMMISSION,V001918934
ROCHDALE BOROUGH COUNCIL,06/09/2022,ECONOMY DIRECTORATE,AQUACOOL LTD,06/09/2022,24.00 ,MAINTENANCE,V001918935
ROCHDALE BOROUGH COUNCIL,06/09/2022,ECONOMY DIRECTORATE,INTEGRATED WATER SERVICES LIMITED,06/09/2022,76.00 ,REPAIRS & ALTS OF BUILDINGS,V001918937
ROCHDALE BOROUGH COUNCIL,06/09/2022,EARLY HELP AND SCHOOLS,BUILDING ADDITIONS LTD,06/09/2022,7384.00 ,MINOR BUILDING WORKS,V001918938
ROCHDALE BOROUGH COUNCIL,02/09/2022,PROPERTY AND HIGHWAYS,METRIC GROUP LTD,02/09/2022,697.00 ,EQUIPMENT - GENERAL,V001918946
ROCHDALE BOROUGH COUNCIL,05/09/2022,NEIGHBOURHOODS AND ENVIRONMENT,CROMWELL POLYTHENE LIMITED,05/09/2022,3175.20 ,EQUIPMENT - GENERAL,V001918947
ROCHDALE BOROUGH COUNCIL,06/09/2022,NEIGHBOURHOODS AND ENVIRONMENT,CARRICK SIGNS LTD,06/09/2022,276.20 ,PRINTING,V001918948
ROCHDALE BOROUGH COUNCIL,06/09/2022,ECONOMY DIRECTORATE,INTEGRATED WATER SERVICES LIMITED,06/09/2022,57.00 ,REPAIRS & ALTS OF BUILDINGS,V001918950
ROCHDALE BOROUGH COUNCIL,06/09/2022,NEIGHBOURHOODS AND ENVIRONMENT,JGM AGENCY,06/09/2022,4612.50 ,PUBLICITY,V001918954
ROCHDALE BOROUGH COUNCIL,06/09/2022,ECONOMY DIRECTORATE,BANNER GROUP LIMITED,06/09/2022,3.92 ,PRINTING & STATIONERY,V001918955
ROCHDALE BOROUGH COUNCIL,06/09/2022,NEIGHBOURHOODS AND ENVIRONMENT,MASSEY AND HARRIS ENGINEERING LTD,06/09/2022,135.00 ,MAINTENANCE,V001918956
ROCHDALE BOROUGH COUNCIL,06/09/2022,RESOURCES,BATE AND HOLLAND FUNERAL SERVICES LTD,06/09/2022,1700.00 ,UNDERTAKERS COSTS,V001918957
ROCHDALE BOROUGH COUNCIL,06/09/2022,EARLY HELP AND SCHOOLS,SUEZ RECYCLING AND RECOVERY UK LTD,06/09/2022,118.96 ,REFUSE DISPOSAL,V001918960
ROCHDALE BOROUGH COUNCIL,06/09/2022,RESOURCES,FORBES SOLICITORS,06/09/2022,227.80 ,INPUT VAT -  ADJUSTMENTS,V001918961
ROCHDALE BOROUGH COUNCIL,06/09/2022,PROPERTY AND HIGHWAYS,CONSTELLIA CONSULTANCY LTD,06/09/2022,20000.00 ,MINOR BUILDING WORKS,V001918962
ROCHDALE BOROUGH COUNCIL,06/09/2022,CHILDREN�S SOCIAL CARE,BANNER GROUP LIMITED,06/09/2022,131.94 ,PRINTING & STATIONERY,V001918964
ROCHDALE BOROUGH COUNCIL,06/09/2022,NEIGHBOURHOODS AND ENVIRONMENT,AQUACOOL LTD,06/09/2022,13.00 ,EQUIPMENT - GENERAL,V001918965
ROCHDALE BOROUGH COUNCIL,06/09/2022,NEIGHBOURHOODS AND ENVIRONMENT,ALLIANCE DISPOSABLES LIMITED,06/09/2022,2.38 ,CLEANING EQUIPMENT,V001918966
ROCHDALE BOROUGH COUNCIL,06/09/2022,NEIGHBOURHOODS AND ENVIRONMENT,ALLIANCE DISPOSABLES LIMITED,06/09/2022,2.38 ,CLEANING EQUIPMENT,V001918966
ROCHDALE BOROUGH COUNCIL,06/09/2022,NEIGHBOURHOODS AND ENVIRONMENT,ALLIANCE DISPOSABLES LIMITED,06/09/2022,7.90 ,CLEANING MATERIALS,V001918966
ROCHDALE BOROUGH COUNCIL,06/09/2022,NEIGHBOURHOODS AND ENVIRONMENT,ALLIANCE DISPOSABLES LIMITED,06/09/2022,6.25 ,CLEANING MATERIALS,V001918966
ROCHDALE BOROUGH COUNCIL,06/09/2022,NEIGHBOURHOODS AND ENVIRONMENT,ALLIANCE DISPOSABLES LIMITED,06/09/2022,11.95 ,CONSUMABLES,V001918966
ROCHDALE BOROUGH COUNCIL,06/09/2022,NEIGHBOURHOODS AND ENVIRONMENT,ALLIANCE DISPOSABLES LIMITED,06/09/2022,11.70 ,CONSUMABLES,V001918966
ROCHDALE BOROUGH COUNCIL,06/09/2022,NEIGHBOURHOODS AND ENVIRONMENT,ALLIANCE DISPOSABLES LIMITED,06/09/2022,15.50 ,CONSUMABLES,V001918966
ROCHDALE BOROUGH COUNCIL,06/09/2022,NEIGHBOURHOODS AND ENVIRONMENT,ALLIANCE DISPOSABLES LIMITED,06/09/2022,17.50 ,CONSUMABLES,V001918966
ROCHDALE BOROUGH COUNCIL,06/09/2022,NEIGHBOURHOODS AND ENVIRONMENT,ELECTRIC CENTER,06/09/2022,17.19 ,BUILDING MATERIALS,V001918967
ROCHDALE BOROUGH COUNCIL,09/09/2022,NEIGHBOURHOODS AND ENVIRONMENT,GROUNDWORK GREATER MANCHESTER,09/09/2022,680.00 ,CAPITAL SALARIES,V001918968
ROCHDALE BOROUGH COUNCIL,02/09/2022,NEIGHBOURHOODS AND ENVIRONMENT,HAMILTON HASTINGS LTD,02/09/2022,193.33 ,STAFF TRAVELLING EXPENSES,V001918973
ROCHDALE BOROUGH COUNCIL,06/09/2022,ECONOMY DIRECTORATE,GILLESPIES LLP,06/09/2022,1850.00 ,CONSULTANTS FEES,V001918974
ROCHDALE BOROUGH COUNCIL,06/09/2022,NEIGHBOURHOODS AND ENVIRONMENT,THE RIVERSIDE GROUP LIMITED,06/09/2022,23750.00 ,GRANTS TO OTHER BODIES,V001919009
ROCHDALE BOROUGH COUNCIL,06/09/2022,NEIGHBOURHOODS AND ENVIRONMENT,THE RIVERSIDE GROUP LIMITED,06/09/2022,23750.00 ,GRANTS TO OTHER BODIES,V001919010
ROCHDALE BOROUGH COUNCIL,06/09/2022,ECONOMY DIRECTORATE,ENVIRONMENTAL RENAISSANCE LTD,06/09/2022,40.00 ,SUPPLIES AND SERVICES PROVISION,V001919011
ROCHDALE BOROUGH COUNCIL,06/09/2022,ECONOMY DIRECTORATE,ENVIRONMENTAL RENAISSANCE LTD,06/09/2022,40.00 ,SUPPLIES AND SERVICES PROVISION,V001919011
ROCHDALE BOROUGH COUNCIL,15/09/2022,CHILDREN�S SOCIAL CARE,NEW HORIZONS STOCKPORT LIMITED,15/09/2022,21779.71 ,EBD (EMOT & BEHAV DIFF) PLACEMENTS,V001919014
ROCHDALE BOROUGH COUNCIL,06/09/2022,CHILDREN�S SOCIAL CARE,THE ADOLESCENT AND CHILDRENS TRUST,06/09/2022,3362.57 ,FOSTER PARENTS BASIC ALLOWANCE,V001919029
ROCHDALE BOROUGH COUNCIL,06/09/2022,NEIGHBOURHOODS AND ENVIRONMENT,ALLIANCE DISPOSABLES LIMITED,06/09/2022,4.14 ,CLEANING EQUIPMENT,V001919030
ROCHDALE BOROUGH COUNCIL,06/09/2022,NEIGHBOURHOODS AND ENVIRONMENT,ALLIANCE DISPOSABLES LIMITED,06/09/2022,4.76 ,CLEANING EQUIPMENT,V001919030
ROCHDALE BOROUGH COUNCIL,06/09/2022,NEIGHBOURHOODS AND ENVIRONMENT,ALLIANCE DISPOSABLES LIMITED,06/09/2022,13.50 ,CLEANING MATERIALS,V001919030
ROCHDALE BOROUGH COUNCIL,06/09/2022,NEIGHBOURHOODS AND ENVIRONMENT,ALLIANCE DISPOSABLES LIMITED,06/09/2022,7.90 ,CLEANING MATERIALS,V001919030
ROCHDALE BOROUGH COUNCIL,06/09/2022,NEIGHBOURHOODS AND ENVIRONMENT,ALLIANCE DISPOSABLES LIMITED,06/09/2022,12.50 ,CLEANING MATERIALS,V001919030
ROCHDALE BOROUGH COUNCIL,06/09/2022,NEIGHBOURHOODS AND ENVIRONMENT,ALLIANCE DISPOSABLES LIMITED,06/09/2022,23.90 ,CONSUMABLES,V001919030
ROCHDALE BOROUGH COUNCIL,06/09/2022,NEIGHBOURHOODS AND ENVIRONMENT,ALLIANCE DISPOSABLES LIMITED,06/09/2022,5.75 ,CONSUMABLES,V001919030
ROCHDALE BOROUGH COUNCIL,06/09/2022,NEIGHBOURHOODS AND ENVIRONMENT,ALLIANCE DISPOSABLES LIMITED,06/09/2022,14.75 ,CLEANING EQUIPMENT,V001919030
ROCHDALE BOROUGH COUNCIL,06/09/2022,NEIGHBOURHOODS AND ENVIRONMENT,ALLIANCE DISPOSABLES LIMITED,06/09/2022,62.00 ,CONSUMABLES,V001919030
ROCHDALE BOROUGH COUNCIL,06/09/2022,NEIGHBOURHOODS AND ENVIRONMENT,ALLIANCE DISPOSABLES LIMITED,06/09/2022,9.25 ,CONSUMABLES,V001919030
ROCHDALE BOROUGH COUNCIL,06/09/2022,NEIGHBOURHOODS AND ENVIRONMENT,ALLIANCE DISPOSABLES LIMITED,06/09/2022,52.50 ,CONSUMABLES,V001919030
ROCHDALE BOROUGH COUNCIL,06/09/2022,NEIGHBOURHOODS AND ENVIRONMENT,ALLIANCE DISPOSABLES LIMITED,06/09/2022,14.95 ,CLEANING MATERIALS,V001919031
ROCHDALE BOROUGH COUNCIL,06/09/2022,NEIGHBOURHOODS AND ENVIRONMENT,ALLIANCE DISPOSABLES LIMITED,06/09/2022,6.84 ,CLEANING EQUIPMENT,V001919032
ROCHDALE BOROUGH COUNCIL,06/09/2022,NEIGHBOURHOODS AND ENVIRONMENT,ALLIANCE DISPOSABLES LIMITED,06/09/2022,7.14 ,CLEANING EQUIPMENT,V001919032
ROCHDALE BOROUGH COUNCIL,06/09/2022,NEIGHBOURHOODS AND ENVIRONMENT,ALLIANCE DISPOSABLES LIMITED,06/09/2022,70.00 ,CLEANING MATERIALS,V001919032
ROCHDALE BOROUGH COUNCIL,06/09/2022,NEIGHBOURHOODS AND ENVIRONMENT,ALLIANCE DISPOSABLES LIMITED,06/09/2022,10.50 ,CLEANING MATERIALS,V001919035
ROCHDALE BOROUGH COUNCIL,06/09/2022,NEIGHBOURHOODS AND ENVIRONMENT,ALLIANCE DISPOSABLES LIMITED,06/09/2022,18.00 ,CLEANING MATERIALS,V001919035
ROCHDALE BOROUGH COUNCIL,06/09/2022,NEIGHBOURHOODS AND ENVIRONMENT,ALLIANCE DISPOSABLES LIMITED,06/09/2022,7.48 ,CLEANING MATERIALS,V001919035
ROCHDALE BOROUGH COUNCIL,06/09/2022,NEIGHBOURHOODS AND ENVIRONMENT,ALLIANCE DISPOSABLES LIMITED,06/09/2022,15.00 ,CLEANING MATERIALS,V001919035
ROCHDALE BOROUGH COUNCIL,15/09/2022,CHILDREN�S SOCIAL CARE,SAFEHOUSES NORTH LTD,15/09/2022,3782.22 ,FOSTER PARENTS BASIC ALLOWANCE,V001919036
ROCHDALE BOROUGH COUNCIL,05/09/2022,EARLY HELP AND SCHOOLS,REDACTED - PERSONAL DATA,05/09/2022,1806.92 ,OTHER EST - SEN PROVISION,V001919037
ROCHDALE BOROUGH COUNCIL,05/09/2022,EARLY HELP AND SCHOOLS,REDACTED - PERSONAL DATA,05/09/2022,1156.87 ,OTHER EST - SEN PROVISION,V001919038
ROCHDALE BOROUGH COUNCIL,06/09/2022,NEIGHBOURHOODS AND ENVIRONMENT,ENVIRONMENTAL LEADERSHIP LTD,06/09/2022,77.00 ,EQUIPMENT - GENERAL,V001919041
ROCHDALE BOROUGH COUNCIL,06/09/2022,EARLY HELP AND SCHOOLS,PANORAMIC ASSOCIATES LTD,06/09/2022,1600.00 ,AGENCY STAFF,V001919042
ROCHDALE BOROUGH COUNCIL,06/09/2022,CHILDREN�S SOCIAL CARE,INSPIRE CHILDRENS SERVICES LTD,06/09/2022,13619.54 ,EBD (EMOT & BEHAV DIFF) PLACEMENTS,V001919043
ROCHDALE BOROUGH COUNCIL,15/09/2022,CHILDREN�S SOCIAL CARE,COMPASS CHILDRENS HOMES LTD,15/09/2022,19042.99 ,EBD (EMOT & BEHAV DIFF) PLACEMENTS,V001919047
ROCHDALE BOROUGH COUNCIL,05/09/2022,NEIGHBOURHOODS AND ENVIRONMENT,OASIS UK LTD,05/09/2022,2596.77 ,TRANSACTIONS-EXPENDITURE,V001919048
ROCHDALE BOROUGH COUNCIL,06/09/2022,NEIGHBOURHOODS AND ENVIRONMENT,AQUACOOL LTD,06/09/2022,80.00 ,EQUIPMENT - GENERAL,V001919049
ROCHDALE BOROUGH COUNCIL,06/09/2022,NEIGHBOURHOODS AND ENVIRONMENT,BANNER GROUP LIMITED,06/09/2022,220.00 ,PRINTING & STATIONERY,V001919050
ROCHDALE BOROUGH COUNCIL,06/09/2022,NEIGHBOURHOODS AND ENVIRONMENT,VIVEDIA LTD,06/09/2022,170.00 ,MUSIC SERVICE,V001919071
ROCHDALE BOROUGH COUNCIL,09/09/2022,ADULT CARE LCO FUNCTIONS,TF JONES PROPERTY SERVICES LTD,09/09/2022,1995.04 ,TRANSACTIONS-EXPENDITURE,V001919074
ROCHDALE BOROUGH COUNCIL,09/09/2022,NEIGHBOURHOODS AND ENVIRONMENT,JGM AGENCY,09/09/2022,140.00 ,MARKETING EXPENDITURE,V001919076
ROCHDALE BOROUGH COUNCIL,09/09/2022,NEIGHBOURHOODS AND ENVIRONMENT,STANDARD FUEL OILS,09/09/2022,30000.00 ,TRANSACTIONS-EXPENDITURE,V001919077
ROCHDALE BOROUGH COUNCIL,09/09/2022,NEIGHBOURHOODS AND ENVIRONMENT,STANDARD FUEL OILS,09/09/2022,15564.00 ,TRANSACTIONS-EXPENDITURE,V001919077
ROCHDALE BOROUGH COUNCIL,09/09/2022,EARLY HELP AND SCHOOLS,AXIOM EDUCATION ROCHDALE LIMITED,09/09/2022,5171.74 ,"DEV CAP - NEW CONSTRUCTION,CONVERSION",V001919079
ROCHDALE BOROUGH COUNCIL,09/09/2022,EARLY HELP AND SCHOOLS,AXIOM EDUCATION ROCHDALE LIMITED,09/09/2022,99.00 ,"DEV CAP - NEW CONSTRUCTION,CONVERSION",V001919080
ROCHDALE BOROUGH COUNCIL,09/09/2022,EARLY HELP AND SCHOOLS,AXIOM EDUCATION ROCHDALE LIMITED,09/09/2022,396.00 ,"DEV CAP - NEW CONSTRUCTION,CONVERSION",V001919081
ROCHDALE BOROUGH COUNCIL,09/09/2022,EARLY HELP AND SCHOOLS,AXIOM EDUCATION ROCHDALE LIMITED,09/09/2022,2045.01 ,"DEV CAP - NEW CONSTRUCTION,CONVERSION",V001919082
ROCHDALE BOROUGH COUNCIL,09/09/2022,EARLY HELP AND SCHOOLS,AXIOM EDUCATION ROCHDALE LIMITED,09/09/2022,47320.95 ,PFI SCHEMES RPIX,V001919083
ROCHDALE BOROUGH COUNCIL,02/09/2022,CHILDREN�S SOCIAL CARE,ROCHDALE TOWN TAXIS LTD,02/09/2022,12.40 ,PUBLIC TRANSPORT,V001919084
ROCHDALE BOROUGH COUNCIL,02/09/2022,CHILDREN�S SOCIAL CARE,ROCHDALE TOWN TAXIS LTD,02/09/2022,12.40 ,PUBLIC TRANSPORT,V001919084
ROCHDALE BOROUGH COUNCIL,02/09/2022,CHILDREN�S SOCIAL CARE,ROCHDALE TOWN TAXIS LTD,02/09/2022,12.40 ,PUBLIC TRANSPORT,V001919084
ROCHDALE BOROUGH COUNCIL,02/09/2022,NEIGHBOURHOODS AND ENVIRONMENT,LANCASHIRE LOCK AND SAFE COMPANY LIMITED,02/09/2022,15.00 ,EQUIPMENT - GENERAL,V001919085
ROCHDALE BOROUGH COUNCIL,09/09/2022,PROPERTY AND HIGHWAYS,ENVIROFLOW MANAGEMENT LTD,09/09/2022,2572.79 ,MAINTENANCE,V001919090
ROCHDALE BOROUGH COUNCIL,09/09/2022,PROPERTY AND HIGHWAYS,ENVIROFLOW MANAGEMENT LTD,09/09/2022,1200.00 ,MAINTENANCE,V001919090
ROCHDALE BOROUGH COUNCIL,09/09/2022,PROPERTY AND HIGHWAYS,ENVIROFLOW MANAGEMENT LTD,09/09/2022,2311.24 ,MAINTENANCE,V001919090
ROCHDALE BOROUGH COUNCIL,06/09/2022,PROPERTY AND HIGHWAYS,MAYHURST BOLTON LTD,06/09/2022,350.36 ,TIPPING CHARGES,V001919092
ROCHDALE BOROUGH COUNCIL,06/09/2022,PROPERTY AND HIGHWAYS,AGGREGATE INDUSTRIES UK LIMITED,06/09/2022,1155.54 ,HIGHWAYS CONTRACT,V001919093
ROCHDALE BOROUGH COUNCIL,09/09/2022,PROPERTY AND HIGHWAYS,ENVIROFLOW MANAGEMENT LTD,09/09/2022,4000.00 ,MAINTENANCE,V001919094
ROCHDALE BOROUGH COUNCIL,09/09/2022,PROPERTY AND HIGHWAYS,ENVIROFLOW MANAGEMENT LTD,09/09/2022,4000.00 ,MAINTENANCE,V001919094
ROCHDALE BOROUGH COUNCIL,09/09/2022,PROPERTY AND HIGHWAYS,ENVIROFLOW MANAGEMENT LTD,09/09/2022,4214.06 ,MAINTENANCE,V001919094
ROCHDALE BOROUGH COUNCIL,06/09/2022,PROPERTY AND HIGHWAYS,AQUACOOL LTD,06/09/2022,51.87 ,MINOR BUILDING WORKS,V001919095
ROCHDALE BOROUGH COUNCIL,07/09/2022,PROPERTY AND HIGHWAYS,AQUACOOL LTD,07/09/2022,36.00 ,MINOR BUILDING WORKS,V001919096
ROCHDALE BOROUGH COUNCIL,09/09/2022,PROPERTY AND HIGHWAYS,AQUACOOL LTD,09/09/2022,48.00 ,MINOR BUILDING WORKS,V001919097
ROCHDALE BOROUGH COUNCIL,06/09/2022,PROPERTY AND HIGHWAYS,JETCHEM SYSTEMS LTD,06/09/2022,1869.00 ,MINOR BUILDING WORKS,V001919098
ROCHDALE BOROUGH COUNCIL,09/09/2022,ADULT CARE LCO FUNCTIONS,TF JONES PROPERTY SERVICES LTD,09/09/2022,6126.77 ,TRANSACTIONS-EXPENDITURE,V001919100
ROCHDALE BOROUGH COUNCIL,09/09/2022,ECONOMY DIRECTORATE,WINTON FLOORING LIMITED,09/09/2022,4494.47 ,REPAIRS & ALTS OF BUILDINGS,V001919105
ROCHDALE BOROUGH COUNCIL,06/09/2022,RESOURCES,FORENSICS LTD,06/09/2022,372.88 ,TOXICOLOGY PAYMENTS,V001919112
ROCHDALE BOROUGH COUNCIL,06/09/2022,PROPERTY AND HIGHWAYS,BIKE RIGHT LTD,06/09/2022,10350.00 ,ACTIVITIES,V001919114
ROCHDALE BOROUGH COUNCIL,06/09/2022,PROPERTY AND HIGHWAYS,BIKE RIGHT LTD,06/09/2022,10350.00 ,ACTIVITIES,V001919114
ROCHDALE BOROUGH COUNCIL,09/09/2022,PROPERTY AND HIGHWAYS,BIKE RIGHT LTD,09/09/2022,1035.00 ,ACTIVITIES,V001919115
ROCHDALE BOROUGH COUNCIL,09/09/2022,PROPERTY AND HIGHWAYS,BIKE RIGHT LTD,09/09/2022,1035.00 ,ACTIVITIES,V001919115
ROCHDALE BOROUGH COUNCIL,09/09/2022,ECONOMY DIRECTORATE,DWF LAW LLP,09/09/2022,5280.50 ,PROFESSIONAL FEES,V001919124
ROCHDALE BOROUGH COUNCIL,09/09/2022,ECONOMY DIRECTORATE,DWF LAW LLP,09/09/2022,3708.00 ,PROFESSIONAL FEES,V001919125
ROCHDALE BOROUGH COUNCIL,09/09/2022,ECONOMY DIRECTORATE,DESIGN FIRE CONSULTANTS LTD,09/09/2022,1960.00 ,CONSULTANTS FEES,V001919127
ROCHDALE BOROUGH COUNCIL,09/09/2022,EARLY HELP AND SCHOOLS,BEVAN BRITTAN LLP,09/09/2022,1356.50 ,ACTIVITIES,V001919128
ROCHDALE BOROUGH COUNCIL,05/09/2022,PROPERTY AND HIGHWAYS,PHOENIX SOFTWARE LIMITED,05/09/2022,263.20 ,SOFTWARE,V001919130
ROCHDALE BOROUGH COUNCIL,05/09/2022,PROPERTY AND HIGHWAYS,PHOENIX SOFTWARE LIMITED,05/09/2022,263.20 ,SOFTWARE,V001919130
ROCHDALE BOROUGH COUNCIL,05/09/2022,RESOURCES,PHOENIX SOFTWARE LIMITED,05/09/2022,1316.00 ,SOFTWARE,V001919130
ROCHDALE BOROUGH COUNCIL,05/09/2022,RESOURCES,PHOENIX SOFTWARE LIMITED,05/09/2022,1316.00 ,SOFTWARE,V001919130
ROCHDALE BOROUGH COUNCIL,05/09/2022,EARLY HELP AND SCHOOLS,PHOENIX SOFTWARE LIMITED,05/09/2022,791.08 ,SOFTWARE,V001919131
ROCHDALE BOROUGH COUNCIL,05/09/2022,EARLY HELP AND SCHOOLS,PHOENIX SOFTWARE LIMITED,05/09/2022,791.08 ,SOFTWARE,V001919131
ROCHDALE BOROUGH COUNCIL,05/09/2022,CHILDREN�S SOCIAL CARE,PHOENIX SOFTWARE LIMITED,05/09/2022,395.54 ,SOFTWARE,V001919131
ROCHDALE BOROUGH COUNCIL,05/09/2022,CHILDREN�S SOCIAL CARE,PHOENIX SOFTWARE LIMITED,05/09/2022,395.54 ,SOFTWARE,V001919131
ROCHDALE BOROUGH COUNCIL,05/09/2022,PROPERTY AND HIGHWAYS,PHOENIX SOFTWARE LIMITED,05/09/2022,395.54 ,SOFTWARE,V001919131
ROCHDALE BOROUGH COUNCIL,05/09/2022,PROPERTY AND HIGHWAYS,PHOENIX SOFTWARE LIMITED,05/09/2022,395.54 ,SOFTWARE,V001919131
ROCHDALE BOROUGH COUNCIL,05/09/2022,NEIGHBOURHOODS AND ENVIRONMENT,PHOENIX SOFTWARE LIMITED,05/09/2022,395.54 ,SOFTWARE,V001919131
ROCHDALE BOROUGH COUNCIL,05/09/2022,NEIGHBOURHOODS AND ENVIRONMENT,PHOENIX SOFTWARE LIMITED,05/09/2022,395.54 ,SOFTWARE,V001919131
ROCHDALE BOROUGH COUNCIL,05/09/2022,CHILDREN�S SOCIAL CARE,PHOENIX SOFTWARE LIMITED,05/09/2022,791.08 ,SOFTWARE,V001919131
ROCHDALE BOROUGH COUNCIL,05/09/2022,CHILDREN�S SOCIAL CARE,PHOENIX SOFTWARE LIMITED,05/09/2022,791.08 ,SOFTWARE,V001919131
ROCHDALE BOROUGH COUNCIL,05/09/2022,NEIGHBOURHOODS AND ENVIRONMENT,PHOENIX SOFTWARE LIMITED,05/09/2022,789.60 ,SOFTWARE,V001919132
ROCHDALE BOROUGH COUNCIL,05/09/2022,NEIGHBOURHOODS AND ENVIRONMENT,PHOENIX SOFTWARE LIMITED,05/09/2022,789.60 ,SOFTWARE,V001919132
ROCHDALE BOROUGH COUNCIL,06/09/2022,RESOURCES,COMPUTACENTER UK LIMITED,06/09/2022,11.56 ,IT EQUIPMENT,V001919136
ROCHDALE BOROUGH COUNCIL,06/09/2022,RESOURCES,COMPUTACENTER UK LIMITED,06/09/2022,11.56 ,IT EQUIPMENT,V001919136
ROCHDALE BOROUGH COUNCIL,06/09/2022,RESOURCES,SPIN PRINT SOLUTIONS,06/09/2022,227.00 ,PRINTING,V001919138
ROCHDALE BOROUGH COUNCIL,06/09/2022,RESOURCES,STUART ROBERTSON AND ASSOCIATES LTD,06/09/2022,625.00 ,EXPENSES - GENERAL,V001919139
ROCHDALE BOROUGH COUNCIL,06/09/2022,NEIGHBOURHOODS AND ENVIRONMENT,GREENFINGERS LANDSCAPE LTD,06/09/2022,6382.35 ,CONTRACTS,V001919140
ROCHDALE BOROUGH COUNCIL,06/09/2022,NEIGHBOURHOODS AND ENVIRONMENT,ALLIANCE DISPOSABLES LIMITED,06/09/2022,15.80 ,CLEANING MATERIALS,V001919141
ROCHDALE BOROUGH COUNCIL,06/09/2022,NEIGHBOURHOODS AND ENVIRONMENT,ALLIANCE DISPOSABLES LIMITED,06/09/2022,14.96 ,CLEANING MATERIALS,V001919141
ROCHDALE BOROUGH COUNCIL,06/09/2022,NEIGHBOURHOODS AND ENVIRONMENT,ALLIANCE DISPOSABLES LIMITED,06/09/2022,23.20 ,CLEANING MATERIALS,V001919141
ROCHDALE BOROUGH COUNCIL,06/09/2022,NEIGHBOURHOODS AND ENVIRONMENT,ALLIANCE DISPOSABLES LIMITED,06/09/2022,29.00 ,CLEANING MATERIALS,V001919141
ROCHDALE BOROUGH COUNCIL,06/09/2022,NEIGHBOURHOODS AND ENVIRONMENT,ALLIANCE DISPOSABLES LIMITED,06/09/2022,12.55 ,CLEANING MATERIALS,V001919142
ROCHDALE BOROUGH COUNCIL,06/09/2022,NEIGHBOURHOODS AND ENVIRONMENT,ALLIANCE DISPOSABLES LIMITED,06/09/2022,7.48 ,CLEANING MATERIALS,V001919142
ROCHDALE BOROUGH COUNCIL,06/09/2022,NEIGHBOURHOODS AND ENVIRONMENT,ALLIANCE DISPOSABLES LIMITED,06/09/2022,9.25 ,CLEANING MATERIALS,V001919142
ROCHDALE BOROUGH COUNCIL,06/09/2022,NEIGHBOURHOODS AND ENVIRONMENT,SCHNEIDER ELECTRIC LIMITED,06/09/2022,1666.50 ,SPECIFIED MAINTENANCE,V001919143
ROCHDALE BOROUGH COUNCIL,06/09/2022,NEIGHBOURHOODS AND ENVIRONMENT,ALLIANCE DISPOSABLES LIMITED,06/09/2022,3.95 ,CLEANING MATERIALS,V001919144
ROCHDALE BOROUGH COUNCIL,06/09/2022,NEIGHBOURHOODS AND ENVIRONMENT,ALLIANCE DISPOSABLES LIMITED,06/09/2022,11.95 ,CONSUMABLES,V001919144
ROCHDALE BOROUGH COUNCIL,06/09/2022,NEIGHBOURHOODS AND ENVIRONMENT,ALLIANCE DISPOSABLES LIMITED,06/09/2022,18.50 ,CONSUMABLES,V001919144
ROCHDALE BOROUGH COUNCIL,06/09/2022,NEIGHBOURHOODS AND ENVIRONMENT,ALLIANCE DISPOSABLES LIMITED,06/09/2022,36.50 ,CONSUMABLES,V001919144
ROCHDALE BOROUGH COUNCIL,06/09/2022,NEIGHBOURHOODS AND ENVIRONMENT,ALLIANCE DISPOSABLES LIMITED,06/09/2022,7.90 ,CLEANING MATERIALS,V001919145
ROCHDALE BOROUGH COUNCIL,06/09/2022,NEIGHBOURHOODS AND ENVIRONMENT,ALLIANCE DISPOSABLES LIMITED,06/09/2022,15.00 ,CLEANING MATERIALS,V001919145
ROCHDALE BOROUGH COUNCIL,06/09/2022,NEIGHBOURHOODS AND ENVIRONMENT,ALLIANCE DISPOSABLES LIMITED,06/09/2022,12.50 ,CLEANING MATERIALS,V001919145
ROCHDALE BOROUGH COUNCIL,06/09/2022,NEIGHBOURHOODS AND ENVIRONMENT,ALLIANCE DISPOSABLES LIMITED,06/09/2022,37.00 ,CONSUMABLES,V001919145
ROCHDALE BOROUGH COUNCIL,06/09/2022,NEIGHBOURHOODS AND ENVIRONMENT,ALLIANCE DISPOSABLES LIMITED,06/09/2022,2.90 ,CLEANING MATERIALS,V001919146
ROCHDALE BOROUGH COUNCIL,06/09/2022,NEIGHBOURHOODS AND ENVIRONMENT,ALLIANCE DISPOSABLES LIMITED,06/09/2022,5.50 ,CLEANING MATERIALS,V001919146
ROCHDALE BOROUGH COUNCIL,06/09/2022,NEIGHBOURHOODS AND ENVIRONMENT,ALLIANCE DISPOSABLES LIMITED,06/09/2022,15.80 ,CLEANING MATERIALS,V001919146
ROCHDALE BOROUGH COUNCIL,06/09/2022,NEIGHBOURHOODS AND ENVIRONMENT,ALLIANCE DISPOSABLES LIMITED,06/09/2022,3.74 ,CLEANING MATERIALS,V001919146
ROCHDALE BOROUGH COUNCIL,06/09/2022,NEIGHBOURHOODS AND ENVIRONMENT,ALLIANCE DISPOSABLES LIMITED,06/09/2022,7.25 ,CLEANING MATERIALS,V001919146
ROCHDALE BOROUGH COUNCIL,06/09/2022,NEIGHBOURHOODS AND ENVIRONMENT,ALLIANCE DISPOSABLES LIMITED,06/09/2022,14.00 ,CLEANING MATERIALS,V001919146
ROCHDALE BOROUGH COUNCIL,06/09/2022,NEIGHBOURHOODS AND ENVIRONMENT,ALLIANCE DISPOSABLES LIMITED,06/09/2022,59.00 ,CLEANING EQUIPMENT,V001919146
ROCHDALE BOROUGH COUNCIL,06/09/2022,NEIGHBOURHOODS AND ENVIRONMENT,ALLIANCE DISPOSABLES LIMITED,06/09/2022,59.00 ,CLEANING EQUIPMENT,V001919146
ROCHDALE BOROUGH COUNCIL,06/09/2022,NEIGHBOURHOODS AND ENVIRONMENT,ALLIANCE DISPOSABLES LIMITED,06/09/2022,29.50 ,CLEANING EQUIPMENT,V001919147
ROCHDALE BOROUGH COUNCIL,06/09/2022,NEIGHBOURHOODS AND ENVIRONMENT,ALLIANCE DISPOSABLES LIMITED,06/09/2022,29.50 ,CLEANING EQUIPMENT,V001919147
ROCHDALE BOROUGH COUNCIL,09/09/2022,COMMISSIONING AND STATUTORY,SOCHA CONSULTING LTD,09/09/2022,2000.00 ,PROFESSIONAL FEES,V001919148
ROCHDALE BOROUGH COUNCIL,09/09/2022,NEIGHBOURHOODS AND ENVIRONMENT,ALLIANCE DISPOSABLES LIMITED,09/09/2022,27.75 ,CONSUMABLES,V001919149
ROCHDALE BOROUGH COUNCIL,09/09/2022,NEIGHBOURHOODS AND ENVIRONMENT,ALLIANCE DISPOSABLES LIMITED,09/09/2022,46.74 ,CLEANING EQUIPMENT,V001919150
ROCHDALE BOROUGH COUNCIL,09/09/2022,NEIGHBOURHOODS AND ENVIRONMENT,ALLIANCE DISPOSABLES LIMITED,09/09/2022,44.85 ,CLEANING MATERIALS,V001919151
ROCHDALE BOROUGH COUNCIL,09/09/2022,NEIGHBOURHOODS AND ENVIRONMENT,ALLIANCE DISPOSABLES LIMITED,09/09/2022,3.80 ,CLEANING EQUIPMENT,V001919152
ROCHDALE BOROUGH COUNCIL,09/09/2022,NEIGHBOURHOODS AND ENVIRONMENT,ALLIANCE DISPOSABLES LIMITED,09/09/2022,15.00 ,CLEANING MATERIALS,V001919153
ROCHDALE BOROUGH COUNCIL,09/09/2022,NEIGHBOURHOODS AND ENVIRONMENT,ALLIANCE DISPOSABLES LIMITED,09/09/2022,10.36 ,CLEANING MATERIALS,V001919153
ROCHDALE BOROUGH COUNCIL,09/09/2022,RESOURCES,FINASTRA,09/09/2022,258.52 ,SOFTWARE,V001919154
ROCHDALE BOROUGH COUNCIL,09/09/2022,NEIGHBOURHOODS AND ENVIRONMENT,EXCLUSEC,09/09/2022,7204.17 ,SECURITY,V001919155
ROCHDALE BOROUGH COUNCIL,09/09/2022,NEIGHBOURHOODS AND ENVIRONMENT,EXCLUSEC,09/09/2022,558.42 ,SECURITY,V001919156
ROCHDALE BOROUGH COUNCIL,07/09/2022,NEIGHBOURHOODS AND ENVIRONMENT,ALLIANCE DISPOSABLES LIMITED,07/09/2022,5.50 ,CLEANING MATERIALS,V001919157
ROCHDALE BOROUGH COUNCIL,07/09/2022,NEIGHBOURHOODS AND ENVIRONMENT,ALLIANCE DISPOSABLES LIMITED,07/09/2022,12.50 ,CLEANING MATERIALS,V001919157
ROCHDALE BOROUGH COUNCIL,07/09/2022,NEIGHBOURHOODS AND ENVIRONMENT,ALLIANCE DISPOSABLES LIMITED,07/09/2022,2.95 ,CLEANING EQUIPMENT,V001919157
ROCHDALE BOROUGH COUNCIL,07/09/2022,NEIGHBOURHOODS AND ENVIRONMENT,ALLIANCE DISPOSABLES LIMITED,07/09/2022,29.50 ,CLEANING EQUIPMENT,V001919157
ROCHDALE BOROUGH COUNCIL,07/09/2022,NEIGHBOURHOODS AND ENVIRONMENT,ALLIANCE DISPOSABLES LIMITED,07/09/2022,31.00 ,CONSUMABLES,V001919157
ROCHDALE BOROUGH COUNCIL,07/09/2022,NEIGHBOURHOODS AND ENVIRONMENT,ALLIANCE DISPOSABLES LIMITED,07/09/2022,35.00 ,CONSUMABLES,V001919157
ROCHDALE BOROUGH COUNCIL,07/09/2022,NEIGHBOURHOODS AND ENVIRONMENT,ALLIANCE DISPOSABLES LIMITED,07/09/2022,70.00 ,CONSUMABLES,V001919157
ROCHDALE BOROUGH COUNCIL,09/09/2022,NEIGHBOURHOODS AND ENVIRONMENT,ALLIANCE DISPOSABLES LIMITED,09/09/2022,14.10 ,CLEANING EQUIPMENT,V001919158
ROCHDALE BOROUGH COUNCIL,09/09/2022,NEIGHBOURHOODS AND ENVIRONMENT,ALLIANCE DISPOSABLES LIMITED,09/09/2022,5.70 ,CLEANING EQUIPMENT,V001919158
ROCHDALE BOROUGH COUNCIL,09/09/2022,NEIGHBOURHOODS AND ENVIRONMENT,ALLIANCE DISPOSABLES LIMITED,09/09/2022,6.25 ,CLEANING EQUIPMENT,V001919158
ROCHDALE BOROUGH COUNCIL,09/09/2022,NEIGHBOURHOODS AND ENVIRONMENT,ALLIANCE DISPOSABLES LIMITED,09/09/2022,11.90 ,CLEANING EQUIPMENT,V001919158
ROCHDALE BOROUGH COUNCIL,09/09/2022,NEIGHBOURHOODS AND ENVIRONMENT,ALLIANCE DISPOSABLES LIMITED,09/09/2022,2.90 ,CLEANING MATERIALS,V001919158
ROCHDALE BOROUGH COUNCIL,09/09/2022,NEIGHBOURHOODS AND ENVIRONMENT,ALLIANCE DISPOSABLES LIMITED,09/09/2022,27.50 ,CLEANING MATERIALS,V001919158
ROCHDALE BOROUGH COUNCIL,09/09/2022,NEIGHBOURHOODS AND ENVIRONMENT,ALLIANCE DISPOSABLES LIMITED,09/09/2022,44.88 ,CLEANING EQUIPMENT,V001919158
ROCHDALE BOROUGH COUNCIL,09/09/2022,NEIGHBOURHOODS AND ENVIRONMENT,ALLIANCE DISPOSABLES LIMITED,09/09/2022,26.00 ,CLEANING EQUIPMENT,V001919158
ROCHDALE BOROUGH COUNCIL,09/09/2022,NEIGHBOURHOODS AND ENVIRONMENT,ALLIANCE DISPOSABLES LIMITED,09/09/2022,45.40 ,CONSUMABLES,V001919158
ROCHDALE BOROUGH COUNCIL,09/09/2022,NEIGHBOURHOODS AND ENVIRONMENT,ALLIANCE DISPOSABLES LIMITED,09/09/2022,5.75 ,CONSUMABLES,V001919158
ROCHDALE BOROUGH COUNCIL,09/09/2022,NEIGHBOURHOODS AND ENVIRONMENT,ALLIANCE DISPOSABLES LIMITED,09/09/2022,74.91 ,CONSUMABLES,V001919158
ROCHDALE BOROUGH COUNCIL,09/09/2022,NEIGHBOURHOODS AND ENVIRONMENT,ALLIANCE DISPOSABLES LIMITED,09/09/2022,2.25 ,CLEANING EQUIPMENT,V001919158
ROCHDALE BOROUGH COUNCIL,09/09/2022,NEIGHBOURHOODS AND ENVIRONMENT,ALLIANCE DISPOSABLES LIMITED,09/09/2022,3.75 ,CLEANING EQUIPMENT,V001919158
ROCHDALE BOROUGH COUNCIL,09/09/2022,NEIGHBOURHOODS AND ENVIRONMENT,ALLIANCE DISPOSABLES LIMITED,09/09/2022,18.50 ,CONSUMABLES,V001919158
ROCHDALE BOROUGH COUNCIL,09/09/2022,NEIGHBOURHOODS AND ENVIRONMENT,ALLIANCE DISPOSABLES LIMITED,09/09/2022,35.00 ,CONSUMABLES,V001919158
ROCHDALE BOROUGH COUNCIL,09/09/2022,NEIGHBOURHOODS AND ENVIRONMENT,ALLIANCE DISPOSABLES LIMITED,09/09/2022,36.50 ,CONSUMABLES,V001919158
ROCHDALE BOROUGH COUNCIL,09/09/2022,NEIGHBOURHOODS AND ENVIRONMENT,ALLIANCE DISPOSABLES LIMITED,09/09/2022,15.58 ,CLEANING EQUIPMENT,V001919158
ROCHDALE BOROUGH COUNCIL,06/09/2022,EARLY HELP AND SCHOOLS,D A LANGUAGES LIMITED,06/09/2022,83.25 ,TRANSLATION & INTERPRETATION,V001919160
ROCHDALE BOROUGH COUNCIL,06/09/2022,ECONOMY DIRECTORATE,GILLESPIES LLP,06/09/2022,3000.00 ,CONSULTANTS FEES,V001919161
ROCHDALE BOROUGH COUNCIL,09/09/2022,ECONOMY DIRECTORATE,PHOENIX SOFTWARE LIMITED,09/09/2022,395.54 ,SOFTWARE,V001919163
ROCHDALE BOROUGH COUNCIL,09/09/2022,ECONOMY DIRECTORATE,PHOENIX SOFTWARE LIMITED,09/09/2022,395.54 ,SOFTWARE,V001919163
ROCHDALE BOROUGH COUNCIL,09/09/2022,RESOURCES,PHOENIX SOFTWARE LIMITED,09/09/2022,263.20 ,SOFTWARE,V001919164
ROCHDALE BOROUGH COUNCIL,09/09/2022,RESOURCES,PHOENIX SOFTWARE LIMITED,09/09/2022,263.20 ,SOFTWARE,V001919164
ROCHDALE BOROUGH COUNCIL,09/09/2022,RESOURCES,MHR,09/09/2022,1500.00 ,SOFTWARE,V001919165
ROCHDALE BOROUGH COUNCIL,09/09/2022,ECONOMY DIRECTORATE,PHOENIX SOFTWARE LIMITED,09/09/2022,395.54 ,SOFTWARE,V001919166
ROCHDALE BOROUGH COUNCIL,09/09/2022,ECONOMY DIRECTORATE,PHOENIX SOFTWARE LIMITED,09/09/2022,395.54 ,SOFTWARE,V001919166
ROCHDALE BOROUGH COUNCIL,09/09/2022,RESOURCES,PHOENIX SOFTWARE LIMITED,09/09/2022,263.20 ,SOFTWARE,V001919167
ROCHDALE BOROUGH COUNCIL,09/09/2022,RESOURCES,PHOENIX SOFTWARE LIMITED,09/09/2022,263.20 ,SOFTWARE,V001919167
ROCHDALE BOROUGH COUNCIL,09/09/2022,ECONOMY DIRECTORATE,PHOENIX SOFTWARE LIMITED,09/09/2022,263.20 ,SOFTWARE,V001919168
ROCHDALE BOROUGH COUNCIL,09/09/2022,ECONOMY DIRECTORATE,PHOENIX SOFTWARE LIMITED,09/09/2022,263.20 ,SOFTWARE,V001919168
ROCHDALE BOROUGH COUNCIL,09/09/2022,PROPERTY AND HIGHWAYS,PHOENIX SOFTWARE LIMITED,09/09/2022,395.54 ,SOFTWARE,V001919169
ROCHDALE BOROUGH COUNCIL,09/09/2022,PROPERTY AND HIGHWAYS,PHOENIX SOFTWARE LIMITED,09/09/2022,395.54 ,SOFTWARE,V001919169
ROCHDALE BOROUGH COUNCIL,09/09/2022,EARLY HELP AND SCHOOLS,ARJO UK LTD,09/09/2022,54.00 ,SPECIFIED MAINTENANCE,V001919171
ROCHDALE BOROUGH COUNCIL,09/09/2022,NEIGHBOURHOODS AND ENVIRONMENT,BANNER GROUP LIMITED,09/09/2022,1.18 ,PRINTING & STATIONERY,V001919173
ROCHDALE BOROUGH COUNCIL,09/09/2022,NEIGHBOURHOODS AND ENVIRONMENT,BANNER GROUP LIMITED,09/09/2022,10.76 ,PRINTING & STATIONERY,V001919173
ROCHDALE BOROUGH COUNCIL,09/09/2022,NEIGHBOURHOODS AND ENVIRONMENT,BANNER GROUP LIMITED,09/09/2022,1.31 ,PRINTING & STATIONERY,V001919173
ROCHDALE BOROUGH COUNCIL,09/09/2022,NEIGHBOURHOODS AND ENVIRONMENT,BANNER GROUP LIMITED,09/09/2022,3.53 ,PRINTING & STATIONERY,V001919173
ROCHDALE BOROUGH COUNCIL,02/09/2022,ECONOMY DIRECTORATE,ARCADIS,02/09/2022,19552.17 ,CONSULTANT FEES,V001919190
ROCHDALE BOROUGH COUNCIL,06/09/2022,NEIGHBOURHOODS AND ENVIRONMENT,ELECTRIC CENTER,06/09/2022,175.45 ,BUILDING MATERIALS,V001919201
ROCHDALE BOROUGH COUNCIL,02/09/2022,CHILDREN�S SOCIAL CARE,THE BIG WORD,02/09/2022,28.50 ,TRANSLATION & INTERPRETATION,V001919412
ROCHDALE BOROUGH COUNCIL,02/09/2022,CHILDREN�S SOCIAL CARE,THE BIG WORD,02/09/2022,36.00 ,TRANSLATION & INTERPRETATION,V001919412
ROCHDALE BOROUGH COUNCIL,02/09/2022,CHILDREN�S SOCIAL CARE,THE BIG WORD,02/09/2022,42.00 ,TRANSLATION & INTERPRETATION,V001919412
ROCHDALE BOROUGH COUNCIL,02/09/2022,CHILDREN�S SOCIAL CARE,THE BIG WORD,02/09/2022,44.00 ,TRANSLATION & INTERPRETATION,V001919412
ROCHDALE BOROUGH COUNCIL,02/09/2022,CHILDREN�S SOCIAL CARE,THE BIG WORD,02/09/2022,36.00 ,TRANSLATION & INTERPRETATION,V001919412
ROCHDALE BOROUGH COUNCIL,02/09/2022,CHILDREN�S SOCIAL CARE,THE BIG WORD,02/09/2022,30.50 ,TRANSLATION & INTERPRETATION,V001919412
ROCHDALE BOROUGH COUNCIL,02/09/2022,CHILDREN�S SOCIAL CARE,THE BIG WORD,02/09/2022,36.00 ,TRANSLATION & INTERPRETATION,V001919412
ROCHDALE BOROUGH COUNCIL,02/09/2022,CHILDREN�S SOCIAL CARE,THE BIG WORD,02/09/2022,30.50 ,TRANSLATION & INTERPRETATION,V001919412
ROCHDALE BOROUGH COUNCIL,02/09/2022,CHILDREN�S SOCIAL CARE,THE BIG WORD,02/09/2022,36.00 ,TRANSLATION & INTERPRETATION,V001919412
ROCHDALE BOROUGH COUNCIL,02/09/2022,CHILDREN�S SOCIAL CARE,THE BIG WORD,02/09/2022,30.50 ,TRANSLATION & INTERPRETATION,V001919412
ROCHDALE BOROUGH COUNCIL,02/09/2022,CHILDREN�S SOCIAL CARE,THE BIG WORD,02/09/2022,36.00 ,TRANSLATION & INTERPRETATION,V001919412
ROCHDALE BOROUGH COUNCIL,02/09/2022,CHILDREN�S SOCIAL CARE,THE BIG WORD,02/09/2022,35.25 ,TRANSLATION & INTERPRETATION,V001919412
ROCHDALE BOROUGH COUNCIL,02/09/2022,CHILDREN�S SOCIAL CARE,THE BIG WORD,02/09/2022,55.50 ,TRANSLATION & INTERPRETATION,V001919412
ROCHDALE BOROUGH COUNCIL,02/09/2022,CHILDREN�S SOCIAL CARE,THE BIG WORD,02/09/2022,36.00 ,TRANSLATION & INTERPRETATION,V001919412
ROCHDALE BOROUGH COUNCIL,02/09/2022,EARLY HELP AND SCHOOLS,THE BIG WORD,02/09/2022,37.25 ,TRANSLATION & INTERPRETATION,V001919412
ROCHDALE BOROUGH COUNCIL,02/09/2022,EARLY HELP AND SCHOOLS,THE BIG WORD,02/09/2022,36.00 ,TRANSLATION & INTERPRETATION,V001919412
ROCHDALE BOROUGH COUNCIL,02/09/2022,CHILDREN�S SOCIAL CARE,THE BIG WORD,02/09/2022,30.50 ,TRANSLATION & INTERPRETATION,V001919412
ROCHDALE BOROUGH COUNCIL,02/09/2022,CHILDREN�S SOCIAL CARE,THE BIG WORD,02/09/2022,36.00 ,TRANSLATION & INTERPRETATION,V001919412
ROCHDALE BOROUGH COUNCIL,02/09/2022,CHILDREN�S SOCIAL CARE,THE BIG WORD,02/09/2022,69.00 ,TRANSLATION & INTERPRETATION,V001919412
ROCHDALE BOROUGH COUNCIL,02/09/2022,CHILDREN�S SOCIAL CARE,THE BIG WORD,02/09/2022,36.00 ,TRANSLATION & INTERPRETATION,V001919412
ROCHDALE BOROUGH COUNCIL,02/09/2022,ADULT CARE LCO FUNCTIONS,THE BIG WORD,02/09/2022,30.50 ,TRANSLATION & INTERPRETATION,V001919412
ROCHDALE BOROUGH COUNCIL,02/09/2022,ADULT CARE LCO FUNCTIONS,THE BIG WORD,02/09/2022,36.00 ,TRANSLATION & INTERPRETATION,V001919412
ROCHDALE BOROUGH COUNCIL,02/09/2022,CHILDREN�S SOCIAL CARE,THE BIG WORD,02/09/2022,35.25 ,TRANSLATION & INTERPRETATION,V001919412
ROCHDALE BOROUGH COUNCIL,02/09/2022,CHILDREN�S SOCIAL CARE,THE BIG WORD,02/09/2022,36.00 ,TRANSLATION & INTERPRETATION,V001919412
ROCHDALE BOROUGH COUNCIL,02/09/2022,CHILDREN�S SOCIAL CARE,THE BIG WORD,02/09/2022,28.50 ,TRANSLATION & INTERPRETATION,V001919412
ROCHDALE BOROUGH COUNCIL,02/09/2022,CHILDREN�S SOCIAL CARE,THE BIG WORD,02/09/2022,36.00 ,TRANSLATION & INTERPRETATION,V001919412
ROCHDALE BOROUGH COUNCIL,02/09/2022,EARLY HELP AND SCHOOLS,THE BIG WORD,02/09/2022,42.00 ,TRANSLATION & INTERPRETATION,V001919412
ROCHDALE BOROUGH COUNCIL,02/09/2022,EARLY HELP AND SCHOOLS,THE BIG WORD,02/09/2022,8.00 ,TRANSLATION & INTERPRETATION,V001919412
ROCHDALE BOROUGH COUNCIL,02/09/2022,CHILDREN�S SOCIAL CARE,THE BIG WORD,02/09/2022,57.50 ,TRANSLATION & INTERPRETATION,V001919412
ROCHDALE BOROUGH COUNCIL,02/09/2022,CHILDREN�S SOCIAL CARE,THE BIG WORD,02/09/2022,36.00 ,TRANSLATION & INTERPRETATION,V001919412
ROCHDALE BOROUGH COUNCIL,02/09/2022,CHILDREN�S SOCIAL CARE,THE BIG WORD,02/09/2022,28.50 ,TRANSLATION & INTERPRETATION,V001919412
ROCHDALE BOROUGH COUNCIL,02/09/2022,EARLY HELP AND SCHOOLS,THE BIG WORD,02/09/2022,55.50 ,TRANSLATION & INTERPRETATION,V001919412
ROCHDALE BOROUGH COUNCIL,02/09/2022,EARLY HELP AND SCHOOLS,THE BIG WORD,02/09/2022,36.00 ,TRANSLATION & INTERPRETATION,V001919412
ROCHDALE BOROUGH COUNCIL,02/09/2022,CHILDREN�S SOCIAL CARE,THE BIG WORD,02/09/2022,28.50 ,TRANSLATION & INTERPRETATION,V001919412
ROCHDALE BOROUGH COUNCIL,02/09/2022,CHILDREN�S SOCIAL CARE,THE BIG WORD,02/09/2022,28.50 ,TRANSLATION & INTERPRETATION,V001919412
ROCHDALE BOROUGH COUNCIL,02/09/2022,CHILDREN�S SOCIAL CARE,THE BIG WORD,02/09/2022,36.00 ,TRANSLATION & INTERPRETATION,V001919412
ROCHDALE BOROUGH COUNCIL,02/09/2022,CHILDREN�S SOCIAL CARE,THE BIG WORD,02/09/2022,2.00 ,TRANSLATION & INTERPRETATION,V001919412
ROCHDALE BOROUGH COUNCIL,02/09/2022,CHILDREN�S SOCIAL CARE,THE BIG WORD,02/09/2022,42.00 ,TRANSLATION & INTERPRETATION,V001919412
ROCHDALE BOROUGH COUNCIL,02/09/2022,CHILDREN�S SOCIAL CARE,THE BIG WORD,02/09/2022,16.00 ,TRANSLATION & INTERPRETATION,V001919412
ROCHDALE BOROUGH COUNCIL,02/09/2022,CHILDREN�S SOCIAL CARE,THE BIG WORD,02/09/2022,69.00 ,TRANSLATION & INTERPRETATION,V001919412
ROCHDALE BOROUGH COUNCIL,02/09/2022,CHILDREN�S SOCIAL CARE,THE BIG WORD,02/09/2022,36.00 ,TRANSLATION & INTERPRETATION,V001919412
ROCHDALE BOROUGH COUNCIL,02/09/2022,CHILDREN�S SOCIAL CARE,THE BIG WORD,02/09/2022,62.25 ,TRANSLATION & INTERPRETATION,V001919412
ROCHDALE BOROUGH COUNCIL,02/09/2022,CHILDREN�S SOCIAL CARE,THE BIG WORD,02/09/2022,36.00 ,TRANSLATION & INTERPRETATION,V001919412
ROCHDALE BOROUGH COUNCIL,02/09/2022,CHILDREN�S SOCIAL CARE,THE BIG WORD,02/09/2022,48.75 ,TRANSLATION & INTERPRETATION,V001919412
ROCHDALE BOROUGH COUNCIL,02/09/2022,CHILDREN�S SOCIAL CARE,THE BIG WORD,02/09/2022,36.00 ,TRANSLATION & INTERPRETATION,V001919412
ROCHDALE BOROUGH COUNCIL,02/09/2022,CHILDREN�S SOCIAL CARE,THE BIG WORD,02/09/2022,2.00 ,TRANSLATION & INTERPRETATION,V001919412
ROCHDALE BOROUGH COUNCIL,02/09/2022,CHILDREN�S SOCIAL CARE,THE BIG WORD,02/09/2022,42.00 ,TRANSLATION & INTERPRETATION,V001919412
ROCHDALE BOROUGH COUNCIL,02/09/2022,EARLY HELP AND SCHOOLS,THE BIG WORD,02/09/2022,48.75 ,TRANSLATION & INTERPRETATION,V001919412
ROCHDALE BOROUGH COUNCIL,02/09/2022,EARLY HELP AND SCHOOLS,THE BIG WORD,02/09/2022,36.00 ,TRANSLATION & INTERPRETATION,V001919412
ROCHDALE BOROUGH COUNCIL,02/09/2022,EARLY HELP AND SCHOOLS,THE BIG WORD,02/09/2022,62.25 ,TRANSLATION & INTERPRETATION,V001919412
ROCHDALE BOROUGH COUNCIL,02/09/2022,EARLY HELP AND SCHOOLS,THE BIG WORD,02/09/2022,36.00 ,TRANSLATION & INTERPRETATION,V001919412
ROCHDALE BOROUGH COUNCIL,02/09/2022,CHILDREN�S SOCIAL CARE,THE BIG WORD,02/09/2022,57.50 ,TRANSLATION & INTERPRETATION,V001919412
ROCHDALE BOROUGH COUNCIL,02/09/2022,CHILDREN�S SOCIAL CARE,THE BIG WORD,02/09/2022,36.00 ,TRANSLATION & INTERPRETATION,V001919412
ROCHDALE BOROUGH COUNCIL,02/09/2022,CHILDREN�S SOCIAL CARE,THE BIG WORD,02/09/2022,71.00 ,TRANSLATION & INTERPRETATION,V001919412
ROCHDALE BOROUGH COUNCIL,02/09/2022,CHILDREN�S SOCIAL CARE,THE BIG WORD,02/09/2022,36.00 ,TRANSLATION & INTERPRETATION,V001919412
ROCHDALE BOROUGH COUNCIL,02/09/2022,CHILDREN�S SOCIAL CARE,THE BIG WORD,02/09/2022,2.00 ,TRANSLATION & INTERPRETATION,V001919412
ROCHDALE BOROUGH COUNCIL,02/09/2022,CHILDREN�S SOCIAL CARE,THE BIG WORD,02/09/2022,30.50 ,TRANSLATION & INTERPRETATION,V001919412
ROCHDALE BOROUGH COUNCIL,02/09/2022,CHILDREN�S SOCIAL CARE,THE BIG WORD,02/09/2022,42.00 ,TRANSLATION & INTERPRETATION,V001919412
ROCHDALE BOROUGH COUNCIL,02/09/2022,CHILDREN�S SOCIAL CARE,THE BIG WORD,02/09/2022,36.00 ,TRANSLATION & INTERPRETATION,V001919412
ROCHDALE BOROUGH COUNCIL,02/09/2022,CHILDREN�S SOCIAL CARE,THE BIG WORD,02/09/2022,2.00 ,TRANSLATION & INTERPRETATION,V001919412
ROCHDALE BOROUGH COUNCIL,02/09/2022,EARLY HELP AND SCHOOLS,THE BIG WORD,02/09/2022,42.00 ,TRANSLATION & INTERPRETATION,V001919412
ROCHDALE BOROUGH COUNCIL,02/09/2022,EARLY HELP AND SCHOOLS,THE BIG WORD,02/09/2022,36.00 ,TRANSLATION & INTERPRETATION,V001919412
ROCHDALE BOROUGH COUNCIL,02/09/2022,ADULT CARE LCO FUNCTIONS,THE BIG WORD,02/09/2022,50.75 ,TRANSLATION & INTERPRETATION,V001919412
ROCHDALE BOROUGH COUNCIL,02/09/2022,ADULT CARE LCO FUNCTIONS,THE BIG WORD,02/09/2022,36.00 ,TRANSLATION & INTERPRETATION,V001919412
ROCHDALE BOROUGH COUNCIL,02/09/2022,CHILDREN�S SOCIAL CARE,THE BIG WORD,02/09/2022,84.50 ,TRANSLATION & INTERPRETATION,V001919412
ROCHDALE BOROUGH COUNCIL,02/09/2022,CHILDREN�S SOCIAL CARE,THE BIG WORD,02/09/2022,36.00 ,TRANSLATION & INTERPRETATION,V001919412
ROCHDALE BOROUGH COUNCIL,02/09/2022,CHILDREN�S SOCIAL CARE,THE BIG WORD,02/09/2022,28.50 ,TRANSLATION & INTERPRETATION,V001919412
ROCHDALE BOROUGH COUNCIL,02/09/2022,CHILDREN�S SOCIAL CARE,THE BIG WORD,02/09/2022,36.00 ,TRANSLATION & INTERPRETATION,V001919412
ROCHDALE BOROUGH COUNCIL,02/09/2022,CHILDREN�S SOCIAL CARE,THE BIG WORD,02/09/2022,2.00 ,TRANSLATION & INTERPRETATION,V001919412
ROCHDALE BOROUGH COUNCIL,02/09/2022,ADULT CARE LCO FUNCTIONS,THE BIG WORD,02/09/2022,30.50 ,TRANSLATION & INTERPRETATION,V001919412
ROCHDALE BOROUGH COUNCIL,02/09/2022,ADULT CARE LCO FUNCTIONS,THE BIG WORD,02/09/2022,36.00 ,TRANSLATION & INTERPRETATION,V001919412
ROCHDALE BOROUGH COUNCIL,02/09/2022,CHILDREN�S SOCIAL CARE,THE BIG WORD,02/09/2022,55.50 ,TRANSLATION & INTERPRETATION,V001919412
ROCHDALE BOROUGH COUNCIL,02/09/2022,CHILDREN�S SOCIAL CARE,THE BIG WORD,02/09/2022,37.25 ,TRANSLATION & INTERPRETATION,V001919412
ROCHDALE BOROUGH COUNCIL,02/09/2022,CHILDREN�S SOCIAL CARE,THE BIG WORD,02/09/2022,36.00 ,TRANSLATION & INTERPRETATION,V001919412
ROCHDALE BOROUGH COUNCIL,02/09/2022,CHILDREN�S SOCIAL CARE,THE BIG WORD,02/09/2022,37.25 ,TRANSLATION & INTERPRETATION,V001919412
ROCHDALE BOROUGH COUNCIL,02/09/2022,CHILDREN�S SOCIAL CARE,THE BIG WORD,02/09/2022,36.00 ,TRANSLATION & INTERPRETATION,V001919412
ROCHDALE BOROUGH COUNCIL,02/09/2022,CHILDREN�S SOCIAL CARE,THE BIG WORD,02/09/2022,37.25 ,TRANSLATION & INTERPRETATION,V001919412
ROCHDALE BOROUGH COUNCIL,02/09/2022,CHILDREN�S SOCIAL CARE,THE BIG WORD,02/09/2022,36.00 ,TRANSLATION & INTERPRETATION,V001919412
ROCHDALE BOROUGH COUNCIL,02/09/2022,CHILDREN�S SOCIAL CARE,THE BIG WORD,02/09/2022,28.50 ,TRANSLATION & INTERPRETATION,V001919412
ROCHDALE BOROUGH COUNCIL,02/09/2022,CHILDREN�S SOCIAL CARE,THE BIG WORD,02/09/2022,36.00 ,TRANSLATION & INTERPRETATION,V001919412
ROCHDALE BOROUGH COUNCIL,02/09/2022,CHILDREN�S SOCIAL CARE,THE BIG WORD,02/09/2022,42.00 ,TRANSLATION & INTERPRETATION,V001919412
ROCHDALE BOROUGH COUNCIL,02/09/2022,CHILDREN�S SOCIAL CARE,THE BIG WORD,02/09/2022,36.00 ,TRANSLATION & INTERPRETATION,V001919412
ROCHDALE BOROUGH COUNCIL,02/09/2022,CHILDREN�S SOCIAL CARE,THE BIG WORD,02/09/2022,2.00 ,TRANSLATION & INTERPRETATION,V001919412
ROCHDALE BOROUGH COUNCIL,02/09/2022,CHILDREN�S SOCIAL CARE,THE BIG WORD,02/09/2022,42.00 ,TRANSLATION & INTERPRETATION,V001919412
ROCHDALE BOROUGH COUNCIL,02/09/2022,CHILDREN�S SOCIAL CARE,THE BIG WORD,02/09/2022,36.00 ,TRANSLATION & INTERPRETATION,V001919412
ROCHDALE BOROUGH COUNCIL,02/09/2022,ADULT CARE LCO FUNCTIONS,THE BIG WORD,02/09/2022,55.50 ,TRANSLATION & INTERPRETATION,V001919412
ROCHDALE BOROUGH COUNCIL,02/09/2022,ADULT CARE LCO FUNCTIONS,THE BIG WORD,02/09/2022,36.00 ,TRANSLATION & INTERPRETATION,V001919412
ROCHDALE BOROUGH COUNCIL,02/09/2022,ADULT CARE LCO FUNCTIONS,THE BIG WORD,02/09/2022,28.50 ,TRANSLATION & INTERPRETATION,V001919412
ROCHDALE BOROUGH COUNCIL,02/09/2022,ADULT CARE LCO FUNCTIONS,THE BIG WORD,02/09/2022,36.00 ,TRANSLATION & INTERPRETATION,V001919412
ROCHDALE BOROUGH COUNCIL,02/09/2022,ADULT CARE LCO FUNCTIONS,THE BIG WORD,02/09/2022,30.50 ,TRANSLATION & INTERPRETATION,V001919412
ROCHDALE BOROUGH COUNCIL,02/09/2022,ADULT CARE LCO FUNCTIONS,THE BIG WORD,02/09/2022,36.00 ,TRANSLATION & INTERPRETATION,V001919412
ROCHDALE BOROUGH COUNCIL,02/09/2022,CHILDREN�S SOCIAL CARE,THE BIG WORD,02/09/2022,30.50 ,TRANSLATION & INTERPRETATION,V001919412
ROCHDALE BOROUGH COUNCIL,02/09/2022,CHILDREN�S SOCIAL CARE,THE BIG WORD,02/09/2022,35.25 ,TRANSLATION & INTERPRETATION,V001919412
ROCHDALE BOROUGH COUNCIL,02/09/2022,CHILDREN�S SOCIAL CARE,THE BIG WORD,02/09/2022,36.00 ,TRANSLATION & INTERPRETATION,V001919412
ROCHDALE BOROUGH COUNCIL,02/09/2022,CHILDREN�S SOCIAL CARE,THE BIG WORD,02/09/2022,28.50 ,REGIONAL SERVICE,V001919412
ROCHDALE BOROUGH COUNCIL,02/09/2022,CHILDREN�S SOCIAL CARE,THE BIG WORD,02/09/2022,48.75 ,TRANSLATION & INTERPRETATION,V001919412
ROCHDALE BOROUGH COUNCIL,02/09/2022,ADULT CARE LCO FUNCTIONS,THE BIG WORD,02/09/2022,28.50 ,TRANSLATION & INTERPRETATION,V001919412
ROCHDALE BOROUGH COUNCIL,02/09/2022,ADULT CARE LCO FUNCTIONS,THE BIG WORD,02/09/2022,36.00 ,TRANSLATION & INTERPRETATION,V001919412
ROCHDALE BOROUGH COUNCIL,02/09/2022,CHILDREN�S SOCIAL CARE,THE BIG WORD,02/09/2022,55.50 ,TRANSLATION & INTERPRETATION,V001919412
ROCHDALE BOROUGH COUNCIL,02/09/2022,CHILDREN�S SOCIAL CARE,THE BIG WORD,02/09/2022,36.00 ,TRANSLATION & INTERPRETATION,V001919412
ROCHDALE BOROUGH COUNCIL,02/09/2022,CHILDREN�S SOCIAL CARE,THE BIG WORD,02/09/2022,2.00 ,TRANSLATION & INTERPRETATION,V001919412
ROCHDALE BOROUGH COUNCIL,02/09/2022,EARLY HELP AND SCHOOLS,THE BIG WORD,02/09/2022,30.50 ,TRANSLATION & INTERPRETATION,V001919412
ROCHDALE BOROUGH COUNCIL,02/09/2022,EARLY HELP AND SCHOOLS,THE BIG WORD,02/09/2022,36.00 ,TRANSLATION & INTERPRETATION,V001919412
ROCHDALE BOROUGH COUNCIL,02/09/2022,EARLY HELP AND SCHOOLS,THE BIG WORD,02/09/2022,2.00 ,TRANSLATION & INTERPRETATION,V001919412
ROCHDALE BOROUGH COUNCIL,02/09/2022,EARLY HELP AND SCHOOLS,THE BIG WORD,02/09/2022,44.00 ,TRANSLATION & INTERPRETATION,V001919412
ROCHDALE BOROUGH COUNCIL,02/09/2022,EARLY HELP AND SCHOOLS,THE BIG WORD,02/09/2022,36.00 ,TRANSLATION & INTERPRETATION,V001919412
ROCHDALE BOROUGH COUNCIL,02/09/2022,EARLY HELP AND SCHOOLS,THE BIG WORD,02/09/2022,2.00 ,TRANSLATION & INTERPRETATION,V001919412
ROCHDALE BOROUGH COUNCIL,02/09/2022,CHILDREN�S SOCIAL CARE,THE BIG WORD,02/09/2022,28.50 ,TRANSLATION & INTERPRETATION,V001919412
ROCHDALE BOROUGH COUNCIL,02/09/2022,CHILDREN�S SOCIAL CARE,THE BIG WORD,02/09/2022,36.00 ,TRANSLATION & INTERPRETATION,V001919412
ROCHDALE BOROUGH COUNCIL,02/09/2022,CHILDREN�S SOCIAL CARE,THE BIG WORD,02/09/2022,28.50 ,TRANSLATION & INTERPRETATION,V001919412
ROCHDALE BOROUGH COUNCIL,02/09/2022,CHILDREN�S SOCIAL CARE,THE BIG WORD,02/09/2022,14.00 ,TRANSLATION & INTERPRETATION,V001919412
ROCHDALE BOROUGH COUNCIL,02/09/2022,CHILDREN�S SOCIAL CARE,THE BIG WORD,02/09/2022,42.00 ,TRANSLATION & INTERPRETATION,V001919412
ROCHDALE BOROUGH COUNCIL,02/09/2022,CHILDREN�S SOCIAL CARE,THE BIG WORD,02/09/2022,36.00 ,TRANSLATION & INTERPRETATION,V001919412
ROCHDALE BOROUGH COUNCIL,02/09/2022,CHILDREN�S SOCIAL CARE,THE BIG WORD,02/09/2022,2.00 ,TRANSLATION & INTERPRETATION,V001919412
ROCHDALE BOROUGH COUNCIL,02/09/2022,ADULT CARE LCO FUNCTIONS,THE BIG WORD,02/09/2022,30.50 ,TRANSLATION & INTERPRETATION,V001919412
ROCHDALE BOROUGH COUNCIL,02/09/2022,ADULT CARE LCO FUNCTIONS,THE BIG WORD,02/09/2022,36.00 ,TRANSLATION & INTERPRETATION,V001919412
ROCHDALE BOROUGH COUNCIL,02/09/2022,CHILDREN�S SOCIAL CARE,THE BIG WORD,02/09/2022,28.50 ,TRANSLATION & INTERPRETATION,V001919412
ROCHDALE BOROUGH COUNCIL,02/09/2022,CHILDREN�S SOCIAL CARE,THE BIG WORD,02/09/2022,36.00 ,TRANSLATION & INTERPRETATION,V001919412
ROCHDALE BOROUGH COUNCIL,02/09/2022,CHILDREN�S SOCIAL CARE,THE BIG WORD,02/09/2022,48.75 ,TRANSLATION & INTERPRETATION,V001919412
ROCHDALE BOROUGH COUNCIL,02/09/2022,CHILDREN�S SOCIAL CARE,THE BIG WORD,02/09/2022,36.00 ,TRANSLATION & INTERPRETATION,V001919412
ROCHDALE BOROUGH COUNCIL,02/09/2022,CHILDREN�S SOCIAL CARE,THE BIG WORD,02/09/2022,2.00 ,TRANSLATION & INTERPRETATION,V001919412
ROCHDALE BOROUGH COUNCIL,02/09/2022,NEIGHBOURHOODS AND ENVIRONMENT,THE BIG WORD,02/09/2022,57.50 ,TRANSLATION & INTERPRETATION,V001919412
ROCHDALE BOROUGH COUNCIL,02/09/2022,NEIGHBOURHOODS AND ENVIRONMENT,THE BIG WORD,02/09/2022,36.00 ,TRANSLATION & INTERPRETATION,V001919412
ROCHDALE BOROUGH COUNCIL,02/09/2022,EARLY HELP AND SCHOOLS,THE BIG WORD,02/09/2022,55.50 ,TRANSLATION & INTERPRETATION,V001919412
ROCHDALE BOROUGH COUNCIL,02/09/2022,EARLY HELP AND SCHOOLS,THE BIG WORD,02/09/2022,36.00 ,TRANSLATION & INTERPRETATION,V001919412
ROCHDALE BOROUGH COUNCIL,02/09/2022,CHILDREN�S SOCIAL CARE,THE BIG WORD,02/09/2022,55.50 ,TRANSLATION & INTERPRETATION,V001919412
ROCHDALE BOROUGH COUNCIL,02/09/2022,CHILDREN�S SOCIAL CARE,THE BIG WORD,02/09/2022,42.00 ,TRANSLATION & INTERPRETATION,V001919412
ROCHDALE BOROUGH COUNCIL,02/09/2022,CHILDREN�S SOCIAL CARE,THE BIG WORD,02/09/2022,36.00 ,TRANSLATION & INTERPRETATION,V001919412
ROCHDALE BOROUGH COUNCIL,02/09/2022,CHILDREN�S SOCIAL CARE,THE BIG WORD,02/09/2022,69.00 ,TRANSLATION & INTERPRETATION,V001919412
ROCHDALE BOROUGH COUNCIL,02/09/2022,EARLY HELP AND SCHOOLS,THE BIG WORD,02/09/2022,28.50 ,TRANSLATION & INTERPRETATION,V001919412
ROCHDALE BOROUGH COUNCIL,02/09/2022,EARLY HELP AND SCHOOLS,THE BIG WORD,02/09/2022,16.00 ,TRANSLATION & INTERPRETATION,V001919412
ROCHDALE BOROUGH COUNCIL,02/09/2022,EARLY HELP AND SCHOOLS,THE BIG WORD,02/09/2022,28.50 ,TRANSLATION & INTERPRETATION,V001919412
ROCHDALE BOROUGH COUNCIL,02/09/2022,EARLY HELP AND SCHOOLS,THE BIG WORD,02/09/2022,36.00 ,TRANSLATION & INTERPRETATION,V001919412
ROCHDALE BOROUGH COUNCIL,02/09/2022,CHILDREN�S SOCIAL CARE,THE BIG WORD,02/09/2022,28.50 ,TRANSLATION & INTERPRETATION,V001919412
ROCHDALE BOROUGH COUNCIL,02/09/2022,CHILDREN�S SOCIAL CARE,THE BIG WORD,02/09/2022,28.50 ,TRANSLATION & INTERPRETATION,V001919412
ROCHDALE BOROUGH COUNCIL,02/09/2022,ADULT CARE LCO FUNCTIONS,THE BIG WORD,02/09/2022,57.50 ,TRANSLATION & INTERPRETATION,V001919412
ROCHDALE BOROUGH COUNCIL,02/09/2022,CHILDREN�S SOCIAL CARE,THE BIG WORD,02/09/2022,28.50 ,TRANSLATION & INTERPRETATION,V001919412
ROCHDALE BOROUGH COUNCIL,02/09/2022,CHILDREN�S SOCIAL CARE,THE BIG WORD,02/09/2022,36.00 ,TRANSLATION & INTERPRETATION,V001919412
ROCHDALE BOROUGH COUNCIL,02/09/2022,CHILDREN�S SOCIAL CARE,THE BIG WORD,02/09/2022,2.00 ,TRANSLATION & INTERPRETATION,V001919412
ROCHDALE BOROUGH COUNCIL,02/09/2022,ADULT CARE LCO FUNCTIONS,THE BIG WORD,02/09/2022,57.50 ,TRANSLATION & INTERPRETATION,V001919412
ROCHDALE BOROUGH COUNCIL,02/09/2022,ADULT CARE LCO FUNCTIONS,THE BIG WORD,02/09/2022,16.00 ,TRANSLATION & INTERPRETATION,V001919412
ROCHDALE BOROUGH COUNCIL,02/09/2022,ADULT CARE LCO FUNCTIONS,THE BIG WORD,02/09/2022,28.50 ,TRANSLATION & INTERPRETATION,V001919412
ROCHDALE BOROUGH COUNCIL,02/09/2022,ADULT CARE LCO FUNCTIONS,THE BIG WORD,02/09/2022,16.00 ,TRANSLATION & INTERPRETATION,V001919412
ROCHDALE BOROUGH COUNCIL,02/09/2022,CHILDREN�S SOCIAL CARE,THE BIG WORD,02/09/2022,28.50 ,TRANSLATION & INTERPRETATION,V001919412
ROCHDALE BOROUGH COUNCIL,02/09/2022,CHILDREN�S SOCIAL CARE,THE BIG WORD,02/09/2022,36.00 ,TRANSLATION & INTERPRETATION,V001919412
ROCHDALE BOROUGH COUNCIL,02/09/2022,CHILDREN�S SOCIAL CARE,THE BIG WORD,02/09/2022,2.00 ,TRANSLATION & INTERPRETATION,V001919412
ROCHDALE BOROUGH COUNCIL,02/09/2022,RESOURCES,CORONERS SOCIETY OF ENGLAND AND WALES,02/09/2022,750.00 ,CONFERENCE,V001919413
ROCHDALE BOROUGH COUNCIL,06/09/2022,NEIGHBOURHOODS AND ENVIRONMENT,ROYAL MAIL GROUP LTD,06/09/2022,10.26 ,EQUIPMENT - GENERAL,V001919417
ROCHDALE BOROUGH COUNCIL,02/09/2022,CHILDREN�S SOCIAL CARE,YOUNG FOUNDATIONS LTD,02/09/2022,41141.43 ,EBD (EMOT & BEHAV DIFF) PLACEMENTS,V001919418
ROCHDALE BOROUGH COUNCIL,02/09/2022,CHILDREN�S SOCIAL CARE,COMPASS CHILDRENS HOMES LTD,02/09/2022,19042.99 ,EBD (EMOT & BEHAV DIFF) PLACEMENTS,V001919419
ROCHDALE BOROUGH COUNCIL,02/09/2022,CHILDREN�S SOCIAL CARE,CARITAS CARE LTD,02/09/2022,2214.33 ,FOSTER PARENTS BASIC ALLOWANCE,V001919420
ROCHDALE BOROUGH COUNCIL,02/09/2022,CHILDREN�S SOCIAL CARE,CARITAS CARE LTD,02/09/2022,2214.33 ,FOSTER PARENTS BASIC ALLOWANCE,V001919420
ROCHDALE BOROUGH COUNCIL,02/09/2022,CHILDREN�S SOCIAL CARE,CARITAS CARE LTD,02/09/2022,2214.33 ,FOSTER PARENTS BASIC ALLOWANCE,V001919421
ROCHDALE BOROUGH COUNCIL,02/09/2022,CHILDREN�S SOCIAL CARE,CARITAS CARE LTD,02/09/2022,2214.33 ,FOSTER PARENTS BASIC ALLOWANCE,V001919421
ROCHDALE BOROUGH COUNCIL,09/09/2022,PROPERTY AND HIGHWAYS,PTSG ELECTRICAL SERVICES LTD,09/09/2022,75.00 ,ROAD SAFETY,V001919425
ROCHDALE BOROUGH COUNCIL,05/09/2022,CHILDREN�S SOCIAL CARE,EXCEPTIONAL CARE LTD,05/09/2022,25242.87 ,EBD (EMOT & BEHAV DIFF) PLACEMENTS,V001919427
ROCHDALE BOROUGH COUNCIL,02/09/2022,EARLY HELP AND SCHOOLS,BELMONT SCHOOL LIMITED,02/09/2022,24373.34 ,OTHER LA`S - SEN PROVISION,V001919441
ROCHDALE BOROUGH COUNCIL,09/09/2022,PROPERTY AND HIGHWAYS,REACH PUBLISHING SERVICES LTD,09/09/2022,120.51 ,LEGAL SERVICES INTERNAL,V001919443
ROCHDALE BOROUGH COUNCIL,09/09/2022,PROPERTY AND HIGHWAYS,REACH PUBLISHING SERVICES LTD,09/09/2022,101.97 ,LEGAL SERVICES INTERNAL,V001919445
ROCHDALE BOROUGH COUNCIL,09/09/2022,PROPERTY AND HIGHWAYS,REACH PUBLISHING SERVICES LTD,09/09/2022,111.24 ,REPAIRS & ALTS OF BUILDINGS,V001919446
ROCHDALE BOROUGH COUNCIL,09/09/2022,PROPERTY AND HIGHWAYS,REACH PUBLISHING SERVICES LTD,09/09/2022,148.93 ,LEGAL SERVICES INTERNAL,V001919449
ROCHDALE BOROUGH COUNCIL,09/09/2022,PROPERTY AND HIGHWAYS,REACH PUBLISHING SERVICES LTD,09/09/2022,127.66 ,LEGAL SERVICES INTERNAL,V001919451
ROCHDALE BOROUGH COUNCIL,05/09/2022,CHILDREN�S SOCIAL CARE,EASY AVENUES LTD,05/09/2022,102.50 ,TRAVELLING GENERAL EXPENSES,V001919455
ROCHDALE BOROUGH COUNCIL,09/09/2022,ECONOMY DIRECTORATE,TALKTALK BUSINESS,09/09/2022,413.49 ,TELEPHONE EXPENDITURE,V001919456
ROCHDALE BOROUGH COUNCIL,09/09/2022,NEIGHBOURHOODS AND ENVIRONMENT,VIEWTOUCH LIMITED,09/09/2022,233.31 ,MATERIAL - GENERAL,V001919457
ROCHDALE BOROUGH COUNCIL,09/09/2022,NEIGHBOURHOODS AND ENVIRONMENT,VIEWTOUCH LIMITED,09/09/2022,233.31 ,MATERIAL - GENERAL,V001919457
ROCHDALE BOROUGH COUNCIL,09/09/2022,NEIGHBOURHOODS AND ENVIRONMENT,VIEWTOUCH LIMITED,09/09/2022,114.75 ,MATERIAL - GENERAL,V001919458
ROCHDALE BOROUGH COUNCIL,09/09/2022,NEIGHBOURHOODS AND ENVIRONMENT,VIEWTOUCH LIMITED,09/09/2022,114.75 ,MATERIAL - GENERAL,V001919458
ROCHDALE BOROUGH COUNCIL,05/09/2022,NEIGHBOURHOODS AND ENVIRONMENT,ROCHDALE TOWN TAXIS LTD,05/09/2022,669.90 ,TAXI HIRE,V001919459
ROCHDALE BOROUGH COUNCIL,05/09/2022,NEIGHBOURHOODS AND ENVIRONMENT,ROCHDALE TOWN TAXIS LTD,05/09/2022,669.90 ,TAXI HIRE,V001919459
ROCHDALE BOROUGH COUNCIL,05/09/2022,NEIGHBOURHOODS AND ENVIRONMENT,ROCHDALE TOWN TAXIS LTD,05/09/2022,669.90 ,TAXI HIRE,V001919459
ROCHDALE BOROUGH COUNCIL,09/09/2022,NEIGHBOURHOODS AND ENVIRONMENT,VPS UK LTD,09/09/2022,20.45 ,REPAIRS & ALTS OF BUILDINGS,V001919460
ROCHDALE BOROUGH COUNCIL,09/09/2022,ECONOMY DIRECTORATE,VPS UK LTD,09/09/2022,14723.76 ,SECURITY,V001919461
ROCHDALE BOROUGH COUNCIL,08/09/2022,PROPERTY AND HIGHWAYS,FISHERS CLEANING SERVICES LIMITED,08/09/2022,560.00 ,MINOR BUILDING WORKS,V001919462
ROCHDALE BOROUGH COUNCIL,09/09/2022,NEIGHBOURHOODS AND ENVIRONMENT,TELESHORE UK LTD,09/09/2022,318.00 ,MATERIAL - GENERAL,V001919463
ROCHDALE BOROUGH COUNCIL,09/09/2022,CHILDREN�S SOCIAL CARE,LMC LTD,09/09/2022,600.00 ,TRAINING,V001919464
ROCHDALE BOROUGH COUNCIL,09/09/2022,EARLY HELP AND SCHOOLS,SECURITY PLUS LIMITED,09/09/2022,854.70 ,TRANSACTIONS-EXPENDITURE,V001919466
ROCHDALE BOROUGH COUNCIL,02/09/2022,NEIGHBOURHOODS AND ENVIRONMENT,DDH FABRICATIONS NW LTD,02/09/2022,300.00 ,BUILDING MATERIALS,V001919467
ROCHDALE BOROUGH COUNCIL,02/09/2022,NEIGHBOURHOODS AND ENVIRONMENT,DDH FABRICATIONS NW LTD,02/09/2022,120.00 ,BUILDING MATERIALS,V001919467
ROCHDALE BOROUGH COUNCIL,08/09/2022,ADULT CARE LCO FUNCTIONS,B AND M WASTE SERVICES,08/09/2022,38.56 ,REFUSE DISPOSAL,V001919471
ROCHDALE BOROUGH COUNCIL,09/09/2022,PUBLIC HEALTH,NHS HEYWOOD MIDDLETON AND ROCHDALE CCG,09/09/2022,6328.61 ,BASIC SALARIES,V001919475
ROCHDALE BOROUGH COUNCIL,09/09/2022,PUBLIC HEALTH,NHS HEYWOOD MIDDLETON AND ROCHDALE CCG,09/09/2022,565.74 ,NAT INS SALARIES,V001919475
ROCHDALE BOROUGH COUNCIL,09/09/2022,PUBLIC HEALTH,NHS HEYWOOD MIDDLETON AND ROCHDALE CCG,09/09/2022,913.36 ,SUPERANN - SALARIES,V001919475
ROCHDALE BOROUGH COUNCIL,09/09/2022,ADULT CARE LCO FUNCTIONS,ABUKA,09/09/2022,195.00 ,TRAINING,V001919476
ROCHDALE BOROUGH COUNCIL,05/09/2022,CHILDREN�S SOCIAL CARE,MILLENNIUM TRANSLATIONS LTD,05/09/2022,88.00 ,TRANSLATION & INTERPRETATION,V001919477
ROCHDALE BOROUGH COUNCIL,09/09/2022,EARLY HELP AND SCHOOLS,FIRST AFFINITY FOSTERING SERVICES LTD,09/09/2022,80.00 ,CURRICULUM DEVELOPMENT,V001919478
ROCHDALE BOROUGH COUNCIL,05/09/2022,ECONOMY DIRECTORATE,FISHERS CLEANING SERVICES LIMITED,05/09/2022,630.00 ,CLEANING AND DOMESTIC SUPPLIES,V001919479
ROCHDALE BOROUGH COUNCIL,26/09/2022,ECONOMY DIRECTORATE,ENVIROCARE MAINTENANCE SOLUTIONS LTD,26/09/2022,28.00 ,GROUNDS MAINTENANCE GENERAL,V001919480
ROCHDALE BOROUGH COUNCIL,26/09/2022,ECONOMY DIRECTORATE,ENVIROCARE MAINTENANCE SOLUTIONS LTD,26/09/2022,10.50 ,GROUNDS MAINTENANCE GENERAL,V001919480
ROCHDALE BOROUGH COUNCIL,02/09/2022,ECONOMY DIRECTORATE,ENVIROCARE MAINTENANCE SOLUTIONS LTD,02/09/2022,38.50 ,GROUNDS MAINTENANCE GENERAL,V001919481
ROCHDALE BOROUGH COUNCIL,02/09/2022,ECONOMY DIRECTORATE,ENVIROCARE MAINTENANCE SOLUTIONS LTD,02/09/2022,141.17 ,GROUNDS MAINTENANCE GENERAL,V001919482
ROCHDALE BOROUGH COUNCIL,02/09/2022,ECONOMY DIRECTORATE,ENVIROCARE MAINTENANCE SOLUTIONS LTD,02/09/2022,141.17 ,GROUNDS MAINTENANCE GENERAL,V001919483
ROCHDALE BOROUGH COUNCIL,02/09/2022,ECONOMY DIRECTORATE,ENVIROCARE MAINTENANCE SOLUTIONS LTD,02/09/2022,38.50 ,GROUNDS MAINTENANCE GENERAL,V001919484
ROCHDALE BOROUGH COUNCIL,02/09/2022,ECONOMY DIRECTORATE,ENVIROCARE MAINTENANCE SOLUTIONS LTD,02/09/2022,77.00 ,GROUNDS MAINTENANCE GENERAL,V001919485
ROCHDALE BOROUGH COUNCIL,02/09/2022,ECONOMY DIRECTORATE,ENVIROCARE MAINTENANCE SOLUTIONS LTD,02/09/2022,352.92 ,GROUNDS MAINTENANCE GENERAL,V001919486
ROCHDALE BOROUGH COUNCIL,26/09/2022,ECONOMY DIRECTORATE,ENVIROCARE MAINTENANCE SOLUTIONS LTD,26/09/2022,102.66 ,GROUNDS MAINTENANCE GENERAL,V001919487
ROCHDALE BOROUGH COUNCIL,26/09/2022,ECONOMY DIRECTORATE,ENVIROCARE MAINTENANCE SOLUTIONS LTD,26/09/2022,38.51 ,GROUNDS MAINTENANCE GENERAL,V001919487
ROCHDALE BOROUGH COUNCIL,02/09/2022,ECONOMY DIRECTORATE,ENVIROCARE MAINTENANCE SOLUTIONS LTD,02/09/2022,38.50 ,GROUNDS MAINTENANCE GENERAL,V001919489
ROCHDALE BOROUGH COUNCIL,02/09/2022,CHILDREN�S SOCIAL CARE,CARE 4 CHILDREN RESIDENTIAL SERVICES,02/09/2022,3236.09 ,FOSTER PARENTS BASIC ALLOWANCE,V001919490
ROCHDALE BOROUGH COUNCIL,02/09/2022,CHILDREN�S SOCIAL CARE,SAFEHOUSES NORTH LTD,02/09/2022,3782.22 ,FOSTER PARENTS BASIC ALLOWANCE,V001919492
ROCHDALE BOROUGH COUNCIL,02/09/2022,ADULT CARE LCO FUNCTIONS,STANNAH LIFT SERVICES LTD,02/09/2022,3580.00 ,MINOR BUILDING WORKS,V001919493
ROCHDALE BOROUGH COUNCIL,01/09/2022,CHILDREN�S SOCIAL CARE,NORTHERN COMMUNITY PATHWAYS LTD,01/09/2022,1815.49 ,YOUNG PEOPLES RENTS,V001919494
ROCHDALE BOROUGH COUNCIL,01/09/2022,CHILDREN�S SOCIAL CARE,NORTHERN COMMUNITY PATHWAYS LTD,01/09/2022,26.14 ,YOUNGE PERSONS ALLOWANCE,V001919495
ROCHDALE BOROUGH COUNCIL,02/09/2022,CHILDREN�S SOCIAL CARE,SHRED STATION,02/09/2022,22.00 ,CONTRACTED SERVICES,V001919499
ROCHDALE BOROUGH COUNCIL,05/09/2022,EARLY HELP AND SCHOOLS,PROJECT INC,05/09/2022,8000.00 ,OTHER EST - SEN PROVISION,V001919500
ROCHDALE BOROUGH COUNCIL,05/09/2022,EARLY HELP AND SCHOOLS,PROJECT INC,05/09/2022,8000.00 ,OTHER EST - SEN PROVISION,V001919500
ROCHDALE BOROUGH COUNCIL,05/09/2022,CHILDREN�S SOCIAL CARE,THREE CIRCLES FOSTERING,05/09/2022,3697.86 ,FOSTER PARENTS BASIC ALLOWANCE,V001919501
ROCHDALE BOROUGH COUNCIL,05/09/2022,CHILDREN�S SOCIAL CARE,THREE CIRCLES FOSTERING,05/09/2022,3534.00 ,FOSTER PARENTS BASIC ALLOWANCE,V001919502
ROCHDALE BOROUGH COUNCIL,05/09/2022,CHILDREN�S SOCIAL CARE,THREE CIRCLES FOSTERING,05/09/2022,3445.43 ,FOSTER PARENTS BASIC ALLOWANCE,V001919503
ROCHDALE BOROUGH COUNCIL,05/09/2022,CHILDREN�S SOCIAL CARE,THREE CIRCLES FOSTERING,05/09/2022,3534.00 ,FOSTER PARENTS BASIC ALLOWANCE,V001919504
ROCHDALE BOROUGH COUNCIL,13/09/2022,ADULT CARE LCO FUNCTIONS,CLOSOMAT LTD,13/09/2022,195.00 ,ADAPTATIONS,V001919508
ROCHDALE BOROUGH COUNCIL,09/09/2022,RESOURCES,BANNER GROUP LIMITED,09/09/2022,12.90 ,PRINTING & STATIONERY,V001919509
ROCHDALE BOROUGH COUNCIL,09/09/2022,RESOURCES,BANNER GROUP LIMITED,09/09/2022,56.90 ,PRINTING & STATIONERY,V001919509
ROCHDALE BOROUGH COUNCIL,09/09/2022,RESOURCES,BANNER GROUP LIMITED,09/09/2022,3.82 ,PRINTING & STATIONERY,V001919509
ROCHDALE BOROUGH COUNCIL,09/09/2022,RESOURCES,BANNER GROUP LIMITED,09/09/2022,43.65 ,PRINTING & STATIONERY,V001919509
ROCHDALE BOROUGH COUNCIL,09/09/2022,PROPERTY AND HIGHWAYS,INSTARMAC GROUP PLC,09/09/2022,1092.00 ,MINOR BUILDING WORKS,V001919510
ROCHDALE BOROUGH COUNCIL,09/09/2022,PROPERTY AND HIGHWAYS,JOHN SISK  AND SON LTD,09/09/2022,579662.13 ,ROADWORKS,V001919511
ROCHDALE BOROUGH COUNCIL,05/09/2022,ECONOMY DIRECTORATE, WALKER SIME LTD,05/09/2022,1200.00 ,CONSULTANTS FEES,V001919513
ROCHDALE BOROUGH COUNCIL,05/09/2022,ECONOMY DIRECTORATE,ENVIRONMENTAL RENAISSANCE LTD,05/09/2022,40.00 ,REPAIRS & ALTS OF BUILDINGS,V001919514
ROCHDALE BOROUGH COUNCIL,05/09/2022,ECONOMY DIRECTORATE,ENVIRONMENTAL RENAISSANCE LTD,05/09/2022,40.00 ,REPAIRS & ALTS OF BUILDINGS,V001919514
ROCHDALE BOROUGH COUNCIL,05/09/2022,NEIGHBOURHOODS AND ENVIRONMENT,VPS UK LTD,05/09/2022,529.72 ,REPAIRS & ALTS OF BUILDINGS,V001919515
ROCHDALE BOROUGH COUNCIL,05/09/2022,NEIGHBOURHOODS AND ENVIRONMENT,VPS UK LTD,05/09/2022,1993.88 ,REPAIRS & ALTS OF BUILDINGS,V001919515
ROCHDALE BOROUGH COUNCIL,05/09/2022,NEIGHBOURHOODS AND ENVIRONMENT,ORCHARD RECYCLING SERVICE LTD,05/09/2022,2299.50 ,CONTRACTS,V001919517
ROCHDALE BOROUGH COUNCIL,08/09/2022,NEIGHBOURHOODS AND ENVIRONMENT,PARR ROCHDALE LIMITED,08/09/2022,20.40 ,BUILDING MATERIALS,V001919520
ROCHDALE BOROUGH COUNCIL,09/09/2022,NEIGHBOURHOODS AND ENVIRONMENT,GAMMA BUSINESS COMMUNICATIONS,09/09/2022,705.57 ,TELEPHONE EXPENDITURE,V001919521
ROCHDALE BOROUGH COUNCIL,02/09/2022,RESOURCES,CONTACT GROUP,02/09/2022,0.00 ,INPUT VAT -  ADJUSTMENTS,V001919522
ROCHDALE BOROUGH COUNCIL,06/09/2022,CHILDREN�S SOCIAL CARE,PARADIGM PROFESSIONAL CONSULTANCY LTD,06/09/2022,658.95 ,AGENCY STAFF,V001919524
ROCHDALE BOROUGH COUNCIL,06/09/2022,RESOURCES,CASTLEFIELD RECRUITMENT LTD,06/09/2022,2000.00 ,AGENCY STAFF,V001919525
ROCHDALE BOROUGH COUNCIL,16/09/2022,EARLY HELP AND SCHOOLS,BANNER GROUP LIMITED,16/09/2022,22.14 ,PRINTING & STATIONERY,V001919530
ROCHDALE BOROUGH COUNCIL,16/09/2022,EARLY HELP AND SCHOOLS,BANNER GROUP LIMITED,16/09/2022,11.20 ,PRINTING & STATIONERY,V001919530
ROCHDALE BOROUGH COUNCIL,16/09/2022,EARLY HELP AND SCHOOLS,BANNER GROUP LIMITED,16/09/2022,9.89 ,PRINTING & STATIONERY,V001919530
ROCHDALE BOROUGH COUNCIL,16/09/2022,EARLY HELP AND SCHOOLS,BANNER GROUP LIMITED,16/09/2022,6.76 ,PRINTING & STATIONERY,V001919530
ROCHDALE BOROUGH COUNCIL,16/09/2022,EARLY HELP AND SCHOOLS,BANNER GROUP LIMITED,16/09/2022,3.37 ,PRINTING & STATIONERY,V001919530
ROCHDALE BOROUGH COUNCIL,16/09/2022,EARLY HELP AND SCHOOLS,BANNER GROUP LIMITED,16/09/2022,7.68 ,PRINTING & STATIONERY,V001919530
ROCHDALE BOROUGH COUNCIL,16/09/2022,EARLY HELP AND SCHOOLS,BANNER GROUP LIMITED,16/09/2022,6.23 ,PRINTING & STATIONERY,V001919530
ROCHDALE BOROUGH COUNCIL,09/09/2022,NEIGHBOURHOODS AND ENVIRONMENT,STHREE PARTNERSHIP LLP,09/09/2022,1125.00 ,CAPITAL - STAFFING AGENCY PAYMENTS,V001919531
ROCHDALE BOROUGH COUNCIL,05/09/2022,NEIGHBOURHOODS AND ENVIRONMENT,ALLIANCE DISPOSABLES LIMITED,05/09/2022,55.00 ,CLEANING MATERIALS,V001919533
ROCHDALE BOROUGH COUNCIL,05/09/2022,NEIGHBOURHOODS AND ENVIRONMENT,ALLIANCE DISPOSABLES LIMITED,05/09/2022,62.32 ,CLEANING EQUIPMENT,V001919533
ROCHDALE BOROUGH COUNCIL,05/09/2022,NEIGHBOURHOODS AND ENVIRONMENT,ALLIANCE DISPOSABLES LIMITED,05/09/2022,59.32 ,CLEANING EQUIPMENT,V001919533
ROCHDALE BOROUGH COUNCIL,05/09/2022,NEIGHBOURHOODS AND ENVIRONMENT,ALLIANCE DISPOSABLES LIMITED,05/09/2022,47.85 ,CLEANING EQUIPMENT,V001919533
ROCHDALE BOROUGH COUNCIL,05/09/2022,NEIGHBOURHOODS AND ENVIRONMENT,ALLIANCE DISPOSABLES LIMITED,05/09/2022,13.50 ,CLEANING MATERIALS,V001919533
ROCHDALE BOROUGH COUNCIL,05/09/2022,NEIGHBOURHOODS AND ENVIRONMENT,ALLIANCE DISPOSABLES LIMITED,05/09/2022,11.60 ,CLEANING MATERIALS,V001919533
ROCHDALE BOROUGH COUNCIL,05/09/2022,NEIGHBOURHOODS AND ENVIRONMENT,ALLIANCE DISPOSABLES LIMITED,05/09/2022,22.50 ,CONSUMABLES,V001919533
ROCHDALE BOROUGH COUNCIL,05/09/2022,NEIGHBOURHOODS AND ENVIRONMENT,ALLIANCE DISPOSABLES LIMITED,05/09/2022,108.60 ,CONSUMABLES,V001919533
ROCHDALE BOROUGH COUNCIL,05/09/2022,NEIGHBOURHOODS AND ENVIRONMENT,ALLIANCE DISPOSABLES LIMITED,05/09/2022,14.00 ,CLEANING MATERIALS,V001919534
ROCHDALE BOROUGH COUNCIL,05/09/2022,NEIGHBOURHOODS AND ENVIRONMENT,ALLIANCE DISPOSABLES LIMITED,05/09/2022,27.75 ,CONSUMABLES,V001919534
ROCHDALE BOROUGH COUNCIL,05/09/2022,NEIGHBOURHOODS AND ENVIRONMENT,ALLIANCE DISPOSABLES LIMITED,05/09/2022,198.00 ,CLEANING MATERIALS,V001919534
ROCHDALE BOROUGH COUNCIL,09/09/2022,NEIGHBOURHOODS AND ENVIRONMENT,FAUN ZOELLER UK LTD,09/09/2022,181565.22 ,PURCHASE OF VEHICLES,V001919535
ROCHDALE BOROUGH COUNCIL,09/09/2022,CHILDREN�S SOCIAL CARE,BALTIMORE CONSULTING LTD,09/09/2022,1100.60 ,AGENCY STAFF,V001919537
ROCHDALE BOROUGH COUNCIL,05/09/2022,NEIGHBOURHOODS AND ENVIRONMENT,ICCM,05/09/2022,405.00 ,EQUIPMENT - GENERAL,V001919538
ROCHDALE BOROUGH COUNCIL,13/09/2022,RESOURCES,NORTH WEST ASSESSMENTS LTD,13/09/2022,345.00 ,CONSULTANT FEES,V001919539
ROCHDALE BOROUGH COUNCIL,06/09/2022,ADULT CARE LCO FUNCTIONS,ELDERCARE UK LTD,06/09/2022,3934.21 ,SERVICE LEVEL AGREEMENTS,V001919540
ROCHDALE BOROUGH COUNCIL,06/09/2022,RESOURCES,MUNICIPAL MUTUAL INSURANCE LTD,06/09/2022,146.00 ,PROVISIONS UTILISED IN YEAR,V001919543
ROCHDALE BOROUGH COUNCIL,06/09/2022,CHILDREN�S SOCIAL CARE,CARE AND COMMUNITY LTD,06/09/2022,1250.00 ,YOUNG PEOPLES RENTS,V001919544
ROCHDALE BOROUGH COUNCIL,02/09/2022,CHILDREN�S SOCIAL CARE,CAR 2000 HEYWOOD LLP,02/09/2022,903.70 ,PUBLIC TRANSPORT,V001919546
ROCHDALE BOROUGH COUNCIL,09/09/2022,PROPERTY AND HIGHWAYS,WINTON FLOORING LIMITED,09/09/2022,707.34 ,PROPERTY - WORKS ELEMENT,V001919547
ROCHDALE BOROUGH COUNCIL,13/09/2022,NEIGHBOURHOODS AND ENVIRONMENT,HOWDENS JOINERY CO LIMITED,13/09/2022,7.41 ,BUILDING MATERIALS,V001919548
ROCHDALE BOROUGH COUNCIL,09/09/2022,ECONOMY DIRECTORATE,MARKETING MANCHESTER,09/09/2022,1000.00 ,MARKETING EXPENDITURE,V001919549
ROCHDALE BOROUGH COUNCIL,09/09/2022,ECONOMY DIRECTORATE,MARKETING MANCHESTER,09/09/2022,1000.00 ,MARKETING EXPENDITURE,V001919549
ROCHDALE BOROUGH COUNCIL,09/09/2022,ECONOMY DIRECTORATE,MARKETING MANCHESTER,09/09/2022,1460.00 ,MARKETING EXPENDITURE,V001919549
ROCHDALE BOROUGH COUNCIL,09/09/2022,ECONOMY DIRECTORATE,MARKETING MANCHESTER,09/09/2022,1460.00 ,MARKETING EXPENDITURE,V001919549
ROCHDALE BOROUGH COUNCIL,09/09/2022,EARLY HELP AND SCHOOLS,PENNINE CARE IN PATIENT SERVICES PRIORY,09/09/2022,1406.25 ,OTHER EST - SEN PROVISION,V001919550
ROCHDALE BOROUGH COUNCIL,02/09/2022,EARLY HELP AND SCHOOLS,PRESTIGE NURSING AND CARE,02/09/2022,977.04 ,HOME CARE - CHILDRENS SERVICES,V001919551
ROCHDALE BOROUGH COUNCIL,09/09/2022,EARLY HELP AND SCHOOLS,REDACTED - PERSONAL DATA,09/09/2022,2309.08 ,OTHER EST - SEN PROVISION,V001919959
ROCHDALE BOROUGH COUNCIL,09/09/2022,EARLY HELP AND SCHOOLS,REDACTED - PERSONAL DATA,09/09/2022,4290.98 ,OTHER EST - SEN PROVISION,V001921011
ROCHDALE BOROUGH COUNCIL,09/09/2022,EARLY HELP AND SCHOOLS,REDACTED - PERSONAL DATA,09/09/2022,694.12 ,OTHER EST - SEN PROVISION,V001921846
ROCHDALE BOROUGH COUNCIL,09/09/2022,EARLY HELP AND SCHOOLS,REDACTED - PERSONAL DATA,09/09/2022,231.37 ,OTHER EST - SEN PROVISION,V001922623
ROCHDALE BOROUGH COUNCIL,09/09/2022,EARLY HELP AND SCHOOLS,REDACTED - PERSONAL DATA,09/09/2022,361.38 ,OTHER EST - SEN PROVISION,V001924467
ROCHDALE BOROUGH COUNCIL,09/09/2022,NEIGHBOURHOODS AND ENVIRONMENT,ORCHARD RECYCLING SERVICE LTD,09/09/2022,2230.50 ,CONTRACTS,V001925902
ROCHDALE BOROUGH COUNCIL,09/09/2022,NEIGHBOURHOODS AND ENVIRONMENT,FW SHERRATT LTD,09/09/2022,251534.55 ,MINOR BUILDING WORKS,V001925911
ROCHDALE BOROUGH COUNCIL,06/09/2022,NEIGHBOURHOODS AND ENVIRONMENT,WILKES VENDING SERVICES LIMITED,06/09/2022,185.64 ,VENDING MACHINES,V001925912
ROCHDALE BOROUGH COUNCIL,06/09/2022,NEIGHBOURHOODS AND ENVIRONMENT,WILKES VENDING SERVICES LIMITED,06/09/2022,185.64 ,VENDING MACHINES,V001925912
ROCHDALE BOROUGH COUNCIL,06/09/2022,NEIGHBOURHOODS AND ENVIRONMENT,AQUACOOL LTD,06/09/2022,20.00 ,EQUIPMENT - GENERAL,V001925914
ROCHDALE BOROUGH COUNCIL,13/09/2022,EARLY HELP AND SCHOOLS,BANNER GROUP LIMITED,13/09/2022,95.65 ,PRINTING & STATIONERY,V001925920
ROCHDALE BOROUGH COUNCIL,13/09/2022,EARLY HELP AND SCHOOLS,BANNER GROUP LIMITED,13/09/2022,16.30 ,PRINTING & STATIONERY,V001925920
ROCHDALE BOROUGH COUNCIL,16/09/2022,EARLY HELP AND SCHOOLS,PATTERSONS BRISTOL LTD,16/09/2022,68.12 ,EQUIPMENT - GENERAL,V001925922
ROCHDALE BOROUGH COUNCIL,16/09/2022,EARLY HELP AND SCHOOLS,PATTERSONS BRISTOL LTD,16/09/2022,21.03 ,EQUIPMENT - GENERAL,V001925922
ROCHDALE BOROUGH COUNCIL,16/09/2022,EARLY HELP AND SCHOOLS,PATTERSONS BRISTOL LTD,16/09/2022,35.69 ,EQUIPMENT - GENERAL,V001925922
ROCHDALE BOROUGH COUNCIL,13/09/2022,EARLY HELP AND SCHOOLS,HAMPTONS RESOURCING LTD,13/09/2022,2857.16 ,AGENCY STAFF,V001925927
ROCHDALE BOROUGH COUNCIL,06/09/2022,EARLY HELP AND SCHOOLS,GPD TRAVEL,06/09/2022,475.00 ,EXTERNAL HIRE,V001925930
ROCHDALE BOROUGH COUNCIL,09/09/2022,PROPERTY AND HIGHWAYS,H2O FLOWTECH LTD,09/09/2022,105.46 ,MINOR BUILDING WORKS,V001925932
ROCHDALE BOROUGH COUNCIL,09/09/2022,PROPERTY AND HIGHWAYS,H2O FLOWTECH LTD,09/09/2022,105.46 ,MINOR BUILDING WORKS,V001925933
ROCHDALE BOROUGH COUNCIL,13/09/2022,RESOURCES,MANCHESTER UNIVERSITY NHS FOUNDATION TRUST MFT,13/09/2022,303.31 ,CHILDRENS POST MORTEMS,V001925937
ROCHDALE BOROUGH COUNCIL,23/09/2022,ADULT CARE LCO FUNCTIONS,XMA LIMITED,23/09/2022,125.44 ,EQUIPMENT - GENERAL,V001925943
ROCHDALE BOROUGH COUNCIL,23/09/2022,ADULT CARE LCO FUNCTIONS,XMA LIMITED,23/09/2022,75.00 ,EQUIPMENT - GENERAL,V001925944
ROCHDALE BOROUGH COUNCIL,23/09/2022,ADULT CARE LCO FUNCTIONS,XMA LIMITED,23/09/2022,20.00 ,EQUIPMENT - GENERAL,V001925944
ROCHDALE BOROUGH COUNCIL,05/09/2022,CHILDREN�S SOCIAL CARE,CARITAS CARE LTD,05/09/2022,4240.18 ,FOSTER PARENTS BASIC ALLOWANCE,V001925948
ROCHDALE BOROUGH COUNCIL,05/09/2022,CHILDREN�S SOCIAL CARE,CARITAS CARE LTD,05/09/2022,4240.18 ,FOSTER PARENTS BASIC ALLOWANCE,V001925948
ROCHDALE BOROUGH COUNCIL,05/09/2022,CHILDREN�S SOCIAL CARE,PARALLEL PARENTS,05/09/2022,3908.48 ,FOSTER PARENTS BASIC ALLOWANCE,V001925955
ROCHDALE BOROUGH COUNCIL,05/09/2022,CHILDREN�S SOCIAL CARE,PEOPLE WHO FOSTER,05/09/2022,1039.25 ,FOSTER PARENTS BASIC ALLOWANCE,V001925956
ROCHDALE BOROUGH COUNCIL,05/09/2022,ADULT CARE LCO FUNCTIONS,TF JONES PROPERTY SERVICES LTD,05/09/2022,6468.28 ,MINOR BUILDING WORKS,V001925957
ROCHDALE BOROUGH COUNCIL,13/09/2022,NEIGHBOURHOODS AND ENVIRONMENT,247 HOTEL,13/09/2022,3071.25 ,ACCOMMODATION,V001925963
ROCHDALE BOROUGH COUNCIL,05/09/2022,CHILDREN�S SOCIAL CARE,PEOPLE WHO FOSTER,05/09/2022,505.75 ,FOSTER PARENTS BASIC ALLOWANCE,V001925965
ROCHDALE BOROUGH COUNCIL,05/09/2022,CHILDREN�S SOCIAL CARE,THE NATIONAL FOSTERING AGENCY LIMITED,05/09/2022,4687.20 ,FOSTER PARENTS BASIC ALLOWANCE,V001925966
ROCHDALE BOROUGH COUNCIL,05/09/2022,RESOURCES,ROSSENDALES,05/09/2022,0.00 ,INPUT VAT -  ADJUSTMENTS,V001925967
ROCHDALE BOROUGH COUNCIL,05/09/2022,RESOURCES,JACOBS,05/09/2022,0.00 ,INPUT VAT -  ADJUSTMENTS,V001925968
ROCHDALE BOROUGH COUNCIL,06/09/2022,NEIGHBOURHOODS AND ENVIRONMENT,VIVEDIA LTD,06/09/2022,695.00 ,MUSIC SERVICE,V001925971
ROCHDALE BOROUGH COUNCIL,06/09/2022,ECONOMY DIRECTORATE, WALKER SIME LTD,06/09/2022,7215.00 ,CONSULTANTS FEES,V001925972
ROCHDALE BOROUGH COUNCIL,09/09/2022,NEIGHBOURHOODS AND ENVIRONMENT,G AND A TAYLOR HOTELS LTD,09/09/2022,9950.50 ,ACCOMMODATION,V001925980
ROCHDALE BOROUGH COUNCIL,09/09/2022,NEIGHBOURHOODS AND ENVIRONMENT,G AND A TAYLOR HOTELS LTD,09/09/2022,9970.50 ,ACCOMMODATION,V001925985
ROCHDALE BOROUGH COUNCIL,05/09/2022,CHILDREN�S SOCIAL CARE,THE BIG WORD,05/09/2022,2.37 ,TRANSLATION & INTERPRETATION,V001925989
ROCHDALE BOROUGH COUNCIL,05/09/2022,CHILDREN�S SOCIAL CARE,THE BIG WORD,05/09/2022,0.47 ,TRANSLATION & INTERPRETATION,V001925989
ROCHDALE BOROUGH COUNCIL,05/09/2022,CHILDREN�S SOCIAL CARE,THE BIG WORD,05/09/2022,6.38 ,TRANSLATION & INTERPRETATION,V001925989
ROCHDALE BOROUGH COUNCIL,05/09/2022,CHILDREN�S SOCIAL CARE,THE BIG WORD,05/09/2022,0.81 ,TRANSLATION & INTERPRETATION,V001925989
ROCHDALE BOROUGH COUNCIL,05/09/2022,CHILDREN�S SOCIAL CARE,THE BIG WORD,05/09/2022,0.36 ,TRANSLATION & INTERPRETATION,V001925989
ROCHDALE BOROUGH COUNCIL,05/09/2022,CHILDREN�S SOCIAL CARE,THE BIG WORD,05/09/2022,56.41 ,TRANSLATION & INTERPRETATION,V001925989
ROCHDALE BOROUGH COUNCIL,05/09/2022,CHILDREN�S SOCIAL CARE,THE BIG WORD,05/09/2022,30.80 ,TRANSLATION & INTERPRETATION,V001925989
ROCHDALE BOROUGH COUNCIL,05/09/2022,CHILDREN�S SOCIAL CARE,THE BIG WORD,05/09/2022,115.71 ,TRANSLATION & INTERPRETATION,V001925989
ROCHDALE BOROUGH COUNCIL,05/09/2022,CHILDREN�S SOCIAL CARE,THE BIG WORD,05/09/2022,14.25 ,TRANSLATION & INTERPRETATION,V001925989
ROCHDALE BOROUGH COUNCIL,05/09/2022,ADULT CARE LCO FUNCTIONS,THE BIG WORD,05/09/2022,3.06 ,TRANSLATION & INTERPRETATION,V001925989
ROCHDALE BOROUGH COUNCIL,05/09/2022,ADULT CARE LCO FUNCTIONS,THE BIG WORD,05/09/2022,7.43 ,TRANSLATION & INTERPRETATION,V001925989
ROCHDALE BOROUGH COUNCIL,05/09/2022,ADULT CARE LCO FUNCTIONS,THE BIG WORD,05/09/2022,18.75 ,TRANSLATION & INTERPRETATION,V001925989
ROCHDALE BOROUGH COUNCIL,05/09/2022,CHILDREN�S SOCIAL CARE,THE BIG WORD,05/09/2022,42.37 ,TRANSLATION & INTERPRETATION,V001925989
ROCHDALE BOROUGH COUNCIL,05/09/2022,CHILDREN�S SOCIAL CARE,THE BIG WORD,05/09/2022,3.50 ,TRANSLATION & INTERPRETATION,V001925989
ROCHDALE BOROUGH COUNCIL,05/09/2022,CHILDREN�S SOCIAL CARE,THE BIG WORD,05/09/2022,27.85 ,TRANSLATION & INTERPRETATION,V001925989
ROCHDALE BOROUGH COUNCIL,05/09/2022,CHILDREN�S SOCIAL CARE,THE BIG WORD,05/09/2022,8.28 ,TRANSLATION & INTERPRETATION,V001925989
ROCHDALE BOROUGH COUNCIL,05/09/2022,CHILDREN�S SOCIAL CARE,THE BIG WORD,05/09/2022,0.81 ,TRANSLATION & INTERPRETATION,V001925989
ROCHDALE BOROUGH COUNCIL,05/09/2022,CHILDREN�S SOCIAL CARE,THE BIG WORD,05/09/2022,34.56 ,TRANSLATION & INTERPRETATION,V001925989
ROCHDALE BOROUGH COUNCIL,05/09/2022,NEIGHBOURHOODS AND ENVIRONMENT,THE BIG WORD,05/09/2022,17.46 ,TRANSLATION & INTERPRETATION,V001925989
ROCHDALE BOROUGH COUNCIL,05/09/2022,EARLY HELP AND SCHOOLS,THE BIG WORD,05/09/2022,0.27 ,TRANSLATION & INTERPRETATION,V001925989
ROCHDALE BOROUGH COUNCIL,05/09/2022,ADULT CARE LCO FUNCTIONS,THE BIG WORD,05/09/2022,1.31 ,TRANSLATION & INTERPRETATION,V001925989
ROCHDALE BOROUGH COUNCIL,05/09/2022,ADULT CARE LCO FUNCTIONS,THE BIG WORD,05/09/2022,2.77 ,TRANSLATION & INTERPRETATION,V001925989
ROCHDALE BOROUGH COUNCIL,05/09/2022,EARLY HELP AND SCHOOLS,THE BIG WORD,05/09/2022,41.09 ,TRANSLATION & INTERPRETATION,V001925989
ROCHDALE BOROUGH COUNCIL,05/09/2022,CHILDREN�S SOCIAL CARE,THE BIG WORD,05/09/2022,7.62 ,TRANSLATION & INTERPRETATION,V001925989
ROCHDALE BOROUGH COUNCIL,05/09/2022,CHILDREN�S SOCIAL CARE,THE BIG WORD,05/09/2022,5.94 ,TRANSLATION & INTERPRETATION,V001925989
ROCHDALE BOROUGH COUNCIL,05/09/2022,CHILDREN�S SOCIAL CARE,THE BIG WORD,05/09/2022,10.66 ,TRANSLATION & INTERPRETATION,V001925989
ROCHDALE BOROUGH COUNCIL,05/09/2022,CHILDREN�S SOCIAL CARE,THE BIG WORD,05/09/2022,21.15 ,TRANSLATION & INTERPRETATION,V001925989
ROCHDALE BOROUGH COUNCIL,05/09/2022,CHILDREN�S SOCIAL CARE,THE BIG WORD,05/09/2022,6.00 ,TRANSLATION & INTERPRETATION,V001925989
ROCHDALE BOROUGH COUNCIL,05/09/2022,CHILDREN�S SOCIAL CARE,THE BIG WORD,05/09/2022,1.12 ,TRANSLATION & INTERPRETATION,V001925989
ROCHDALE BOROUGH COUNCIL,05/09/2022,CHILDREN�S SOCIAL CARE,THE BIG WORD,05/09/2022,3.28 ,TRANSLATION & INTERPRETATION,V001925989
ROCHDALE BOROUGH COUNCIL,05/09/2022,ADULT CARE LCO FUNCTIONS,THE BIG WORD,05/09/2022,1.00 ,TRANSLATION & INTERPRETATION,V001925989
ROCHDALE BOROUGH COUNCIL,05/09/2022,ADULT CARE LCO FUNCTIONS,THE BIG WORD,05/09/2022,0.55 ,TRANSLATION & INTERPRETATION,V001925989
ROCHDALE BOROUGH COUNCIL,05/09/2022,ADULT CARE LCO FUNCTIONS,THE BIG WORD,05/09/2022,1.28 ,TRANSLATION & INTERPRETATION,V001925989
ROCHDALE BOROUGH COUNCIL,05/09/2022,ADULT CARE LCO FUNCTIONS,THE BIG WORD,05/09/2022,0.85 ,TRANSLATION & INTERPRETATION,V001925989
ROCHDALE BOROUGH COUNCIL,05/09/2022,CHILDREN�S SOCIAL CARE,THE BIG WORD,05/09/2022,71.11 ,TRANSLATION & INTERPRETATION,V001925989
ROCHDALE BOROUGH COUNCIL,05/09/2022,ADULT CARE LCO FUNCTIONS,THE BIG WORD,05/09/2022,4.41 ,TRANSLATION & INTERPRETATION,V001925989
ROCHDALE BOROUGH COUNCIL,05/09/2022,CHILDREN�S SOCIAL CARE,THE BIG WORD,05/09/2022,28.79 ,TRANSLATION & INTERPRETATION,V001925989
ROCHDALE BOROUGH COUNCIL,05/09/2022,CHILDREN�S SOCIAL CARE,THE BIG WORD,05/09/2022,17.72 ,TRANSLATION & INTERPRETATION,V001925989
ROCHDALE BOROUGH COUNCIL,05/09/2022,ADULT CARE LCO FUNCTIONS,THE BIG WORD,05/09/2022,5.87 ,TRANSLATION & INTERPRETATION,V001925989
ROCHDALE BOROUGH COUNCIL,05/09/2022,ADULT CARE LCO FUNCTIONS,THE BIG WORD,05/09/2022,1.16 ,TRANSLATION & INTERPRETATION,V001925989
ROCHDALE BOROUGH COUNCIL,05/09/2022,ADULT CARE LCO FUNCTIONS,THE BIG WORD,05/09/2022,0.38 ,TRANSLATION & INTERPRETATION,V001925989
ROCHDALE BOROUGH COUNCIL,05/09/2022,ADULT CARE LCO FUNCTIONS,THE BIG WORD,05/09/2022,0.78 ,TRANSLATION & INTERPRETATION,V001925989
ROCHDALE BOROUGH COUNCIL,05/09/2022,ADULT CARE LCO FUNCTIONS,THE BIG WORD,05/09/2022,1.38 ,TRANSLATION & INTERPRETATION,V001925989
ROCHDALE BOROUGH COUNCIL,05/09/2022,CHILDREN�S SOCIAL CARE,THE BIG WORD,05/09/2022,75.26 ,TRANSLATION & INTERPRETATION,V001925989
ROCHDALE BOROUGH COUNCIL,05/09/2022,CHILDREN�S SOCIAL CARE,THE BIG WORD,05/09/2022,9.10 ,TRANSLATION & INTERPRETATION,V001925989
ROCHDALE BOROUGH COUNCIL,05/09/2022,CHILDREN�S SOCIAL CARE,THE BIG WORD,05/09/2022,38.65 ,TRANSLATION & INTERPRETATION,V001925989
ROCHDALE BOROUGH COUNCIL,05/09/2022,CHILDREN�S SOCIAL CARE,THE BIG WORD,05/09/2022,8.00 ,TRANSLATION & INTERPRETATION,V001925989
ROCHDALE BOROUGH COUNCIL,05/09/2022,ADULT CARE LCO FUNCTIONS,THE BIG WORD,05/09/2022,0.72 ,TRANSLATION & INTERPRETATION,V001925989
ROCHDALE BOROUGH COUNCIL,05/09/2022,ADULT CARE LCO FUNCTIONS,THE BIG WORD,05/09/2022,0.42 ,TRANSLATION & INTERPRETATION,V001925989
ROCHDALE BOROUGH COUNCIL,05/09/2022,CHILDREN�S SOCIAL CARE,THE BIG WORD,05/09/2022,26.03 ,TRANSLATION & INTERPRETATION,V001925989
ROCHDALE BOROUGH COUNCIL,05/09/2022,ADULT CARE LCO FUNCTIONS,THE BIG WORD,05/09/2022,1.86 ,TRANSLATION & INTERPRETATION,V001925989
ROCHDALE BOROUGH COUNCIL,05/09/2022,ADULT CARE LCO FUNCTIONS,THE BIG WORD,05/09/2022,1.41 ,TRANSLATION & INTERPRETATION,V001925989
ROCHDALE BOROUGH COUNCIL,05/09/2022,ADULT CARE LCO FUNCTIONS,THE BIG WORD,05/09/2022,1.54 ,TRANSLATION & INTERPRETATION,V001925989
ROCHDALE BOROUGH COUNCIL,05/09/2022,NEIGHBOURHOODS AND ENVIRONMENT,THE BIG WORD,05/09/2022,15.35 ,TRANSLATION & INTERPRETATION,V001925989
ROCHDALE BOROUGH COUNCIL,05/09/2022,ADULT CARE LCO FUNCTIONS,THE BIG WORD,05/09/2022,2.28 ,TRANSLATION & INTERPRETATION,V001925989
ROCHDALE BOROUGH COUNCIL,05/09/2022,CHILDREN�S SOCIAL CARE,THE BIG WORD,05/09/2022,25.37 ,TRANSLATION & INTERPRETATION,V001925989
ROCHDALE BOROUGH COUNCIL,05/09/2022,CHILDREN�S SOCIAL CARE,THE BIG WORD,05/09/2022,18.92 ,TRANSLATION & INTERPRETATION,V001925989
ROCHDALE BOROUGH COUNCIL,05/09/2022,CHILDREN�S SOCIAL CARE,THE BIG WORD,05/09/2022,54.49 ,TRANSLATION & INTERPRETATION,V001925989
ROCHDALE BOROUGH COUNCIL,05/09/2022,CHILDREN�S SOCIAL CARE,THE BIG WORD,05/09/2022,18.41 ,TRANSLATION & INTERPRETATION,V001925989
ROCHDALE BOROUGH COUNCIL,05/09/2022,NEIGHBOURHOODS AND ENVIRONMENT,THE BIG WORD,05/09/2022,5.21 ,TRANSLATION & INTERPRETATION,V001925989
ROCHDALE BOROUGH COUNCIL,05/09/2022,EARLY HELP AND SCHOOLS,THE BIG WORD,05/09/2022,3.63 ,TRANSLATION & INTERPRETATION,V001925989
ROCHDALE BOROUGH COUNCIL,05/09/2022,CHILDREN�S SOCIAL CARE,THE BIG WORD,05/09/2022,29.28 ,TRANSLATION & INTERPRETATION,V001925989
ROCHDALE BOROUGH COUNCIL,05/09/2022,CHILDREN�S SOCIAL CARE,THE BIG WORD,05/09/2022,16.67 ,TRANSLATION & INTERPRETATION,V001925989
ROCHDALE BOROUGH COUNCIL,05/09/2022,CHILDREN�S SOCIAL CARE,THE BIG WORD,05/09/2022,27.38 ,TRANSLATION & INTERPRETATION,V001925989
ROCHDALE BOROUGH COUNCIL,05/09/2022,ADULT CARE LCO FUNCTIONS,THE BIG WORD,05/09/2022,3.23 ,TRANSLATION & INTERPRETATION,V001925989
ROCHDALE BOROUGH COUNCIL,05/09/2022,ADULT CARE LCO FUNCTIONS,THE BIG WORD,05/09/2022,1.50 ,TRANSLATION & INTERPRETATION,V001925989
ROCHDALE BOROUGH COUNCIL,05/09/2022,ADULT CARE LCO FUNCTIONS,THE BIG WORD,05/09/2022,5.78 ,TRANSLATION & INTERPRETATION,V001925989
ROCHDALE BOROUGH COUNCIL,05/09/2022,ADULT CARE LCO FUNCTIONS,THE BIG WORD,05/09/2022,0.40 ,TRANSLATION & INTERPRETATION,V001925989
ROCHDALE BOROUGH COUNCIL,05/09/2022,ADULT CARE LCO FUNCTIONS,THE BIG WORD,05/09/2022,0.14 ,TRANSLATION & INTERPRETATION,V001925989
ROCHDALE BOROUGH COUNCIL,05/09/2022,ADULT CARE LCO FUNCTIONS,THE BIG WORD,05/09/2022,22.69 ,TRANSLATION & INTERPRETATION,V001925989
ROCHDALE BOROUGH COUNCIL,05/09/2022,CHILDREN�S SOCIAL CARE,THE BIG WORD,05/09/2022,1.73 ,TRANSLATION & INTERPRETATION,V001925989
ROCHDALE BOROUGH COUNCIL,05/09/2022,EARLY HELP AND SCHOOLS,THE BIG WORD,05/09/2022,53.11 ,TRANSLATION & INTERPRETATION,V001925989
ROCHDALE BOROUGH COUNCIL,05/09/2022,NEIGHBOURHOODS AND ENVIRONMENT,THE BIG WORD,05/09/2022,15.85 ,TRANSLATION & INTERPRETATION,V001925989
ROCHDALE BOROUGH COUNCIL,05/09/2022,CHILDREN�S SOCIAL CARE,THE BIG WORD,05/09/2022,11.38 ,TRANSLATION & INTERPRETATION,V001925989
ROCHDALE BOROUGH COUNCIL,05/09/2022,CHILDREN�S SOCIAL CARE,THE BIG WORD,05/09/2022,4.67 ,TRANSLATION & INTERPRETATION,V001925989
ROCHDALE BOROUGH COUNCIL,05/09/2022,CHILDREN�S SOCIAL CARE,THE BIG WORD,05/09/2022,20.85 ,TRANSLATION & INTERPRETATION,V001925989
ROCHDALE BOROUGH COUNCIL,05/09/2022,CHILDREN�S SOCIAL CARE,THE BIG WORD,05/09/2022,21.49 ,TRANSLATION & INTERPRETATION,V001925989
ROCHDALE BOROUGH COUNCIL,05/09/2022,CHILDREN�S SOCIAL CARE,THE BIG WORD,05/09/2022,0.68 ,TRANSLATION & INTERPRETATION,V001925989
ROCHDALE BOROUGH COUNCIL,05/09/2022,CHILDREN�S SOCIAL CARE,THE BIG WORD,05/09/2022,0.63 ,TRANSLATION & INTERPRETATION,V001925989
ROCHDALE BOROUGH COUNCIL,05/09/2022,CHILDREN�S SOCIAL CARE,THE BIG WORD,05/09/2022,27.42 ,TRANSLATION & INTERPRETATION,V001925989
ROCHDALE BOROUGH COUNCIL,05/09/2022,CHILDREN�S SOCIAL CARE,THE BIG WORD,05/09/2022,32.30 ,TRANSLATION & INTERPRETATION,V001925989
ROCHDALE BOROUGH COUNCIL,05/09/2022,CHILDREN�S SOCIAL CARE,THE BIG WORD,05/09/2022,35.17 ,TRANSLATION & INTERPRETATION,V001925989
ROCHDALE BOROUGH COUNCIL,05/09/2022,ADULT CARE LCO FUNCTIONS,THE BIG WORD,05/09/2022,0.51 ,TRANSLATION & INTERPRETATION,V001925989
ROCHDALE BOROUGH COUNCIL,05/09/2022,ADULT CARE LCO FUNCTIONS,THE BIG WORD,05/09/2022,16.04 ,TRANSLATION & INTERPRETATION,V001925989
ROCHDALE BOROUGH COUNCIL,05/09/2022,EARLY HELP AND SCHOOLS,THE BIG WORD,05/09/2022,42.61 ,TRANSLATION & INTERPRETATION,V001925989
ROCHDALE BOROUGH COUNCIL,05/09/2022,EARLY HELP AND SCHOOLS,THE BIG WORD,05/09/2022,1.76 ,TRANSLATION & INTERPRETATION,V001925989
ROCHDALE BOROUGH COUNCIL,05/09/2022,CHILDREN�S SOCIAL CARE,THE BIG WORD,05/09/2022,3.44 ,TRANSLATION & INTERPRETATION,V001925989
ROCHDALE BOROUGH COUNCIL,05/09/2022,CHILDREN�S SOCIAL CARE,THE BIG WORD,05/09/2022,15.58 ,TRANSLATION & INTERPRETATION,V001925989
ROCHDALE BOROUGH COUNCIL,05/09/2022,CHILDREN�S SOCIAL CARE,THE BIG WORD,05/09/2022,0.93 ,TRANSLATION & INTERPRETATION,V001925989
ROCHDALE BOROUGH COUNCIL,05/09/2022,CHILDREN�S SOCIAL CARE,THE BIG WORD,05/09/2022,0.80 ,TRANSLATION & INTERPRETATION,V001925989
ROCHDALE BOROUGH COUNCIL,05/09/2022,CHILDREN�S SOCIAL CARE,THE BIG WORD,05/09/2022,7.43 ,TRANSLATION & INTERPRETATION,V001925989
ROCHDALE BOROUGH COUNCIL,05/09/2022,CHILDREN�S SOCIAL CARE,THE BIG WORD,05/09/2022,11.78 ,TRANSLATION & INTERPRETATION,V001925989
ROCHDALE BOROUGH COUNCIL,05/09/2022,CHILDREN�S SOCIAL CARE,THE BIG WORD,05/09/2022,46.38 ,TRANSLATION & INTERPRETATION,V001925989
ROCHDALE BOROUGH COUNCIL,05/09/2022,CHILDREN�S SOCIAL CARE,THE BIG WORD,05/09/2022,12.18 ,TRANSLATION & INTERPRETATION,V001925989
ROCHDALE BOROUGH COUNCIL,05/09/2022,ADULT CARE LCO FUNCTIONS,THE BIG WORD,05/09/2022,1.08 ,TRANSLATION & INTERPRETATION,V001925989
ROCHDALE BOROUGH COUNCIL,05/09/2022,CHILDREN�S SOCIAL CARE,THE BIG WORD,05/09/2022,45.39 ,TRANSLATION & INTERPRETATION,V001925989
ROCHDALE BOROUGH COUNCIL,05/09/2022,ADULT CARE LCO FUNCTIONS,THE BIG WORD,05/09/2022,2.07 ,TRANSLATION & INTERPRETATION,V001925989
ROCHDALE BOROUGH COUNCIL,05/09/2022,ADULT CARE LCO FUNCTIONS,THE BIG WORD,05/09/2022,1.19 ,TRANSLATION & INTERPRETATION,V001925989
ROCHDALE BOROUGH COUNCIL,05/09/2022,ADULT CARE LCO FUNCTIONS,THE BIG WORD,05/09/2022,1.24 ,TRANSLATION & INTERPRETATION,V001925989
ROCHDALE BOROUGH COUNCIL,05/09/2022,ADULT CARE LCO FUNCTIONS,THE BIG WORD,05/09/2022,1.19 ,TRANSLATION & INTERPRETATION,V001925989
ROCHDALE BOROUGH COUNCIL,05/09/2022,CHILDREN�S SOCIAL CARE,THE BIG WORD,05/09/2022,70.87 ,TRANSLATION & INTERPRETATION,V001925989
ROCHDALE BOROUGH COUNCIL,05/09/2022,NEIGHBOURHOODS AND ENVIRONMENT,THE BIG WORD,05/09/2022,1.37 ,TRANSLATION & INTERPRETATION,V001925989
ROCHDALE BOROUGH COUNCIL,05/09/2022,CHILDREN�S SOCIAL CARE,THE BIG WORD,05/09/2022,3.19 ,TRANSLATION & INTERPRETATION,V001925989
ROCHDALE BOROUGH COUNCIL,05/09/2022,ADULT CARE LCO FUNCTIONS,THE BIG WORD,05/09/2022,5.36 ,TRANSLATION & INTERPRETATION,V001925989
ROCHDALE BOROUGH COUNCIL,05/09/2022,CHILDREN�S SOCIAL CARE,THE BIG WORD,05/09/2022,12.69 ,TRANSLATION & INTERPRETATION,V001925989
ROCHDALE BOROUGH COUNCIL,05/09/2022,CHILDREN�S SOCIAL CARE,THE BIG WORD,05/09/2022,1.20 ,TRANSLATION & INTERPRETATION,V001925989
ROCHDALE BOROUGH COUNCIL,05/09/2022,CHILDREN�S SOCIAL CARE,THE BIG WORD,05/09/2022,3.37 ,TRANSLATION & INTERPRETATION,V001925989
ROCHDALE BOROUGH COUNCIL,05/09/2022,CHILDREN�S SOCIAL CARE,THE BIG WORD,05/09/2022,5.66 ,TRANSLATION & INTERPRETATION,V001925989
ROCHDALE BOROUGH COUNCIL,05/09/2022,CHILDREN�S SOCIAL CARE,THE BIG WORD,05/09/2022,38.55 ,TRANSLATION & INTERPRETATION,V001925989
ROCHDALE BOROUGH COUNCIL,05/09/2022,CHILDREN�S SOCIAL CARE,THE BIG WORD,05/09/2022,0.55 ,TRANSLATION & INTERPRETATION,V001925989
ROCHDALE BOROUGH COUNCIL,05/09/2022,ADULT CARE LCO FUNCTIONS,THE BIG WORD,05/09/2022,25.89 ,TRANSLATION & INTERPRETATION,V001925989
ROCHDALE BOROUGH COUNCIL,05/09/2022,CHILDREN�S SOCIAL CARE,THE BIG WORD,05/09/2022,19.87 ,TRANSLATION & INTERPRETATION,V001925989
ROCHDALE BOROUGH COUNCIL,05/09/2022,CHILDREN�S SOCIAL CARE,THE BIG WORD,05/09/2022,0.36 ,TRANSLATION & INTERPRETATION,V001925989
ROCHDALE BOROUGH COUNCIL,05/09/2022,CHILDREN�S SOCIAL CARE,THE BIG WORD,05/09/2022,12.79 ,TRANSLATION & INTERPRETATION,V001925989
ROCHDALE BOROUGH COUNCIL,05/09/2022,CHILDREN�S SOCIAL CARE,THE BIG WORD,05/09/2022,33.27 ,TRANSLATION & INTERPRETATION,V001925989
ROCHDALE BOROUGH COUNCIL,05/09/2022,EARLY HELP AND SCHOOLS,THE BIG WORD,05/09/2022,5.49 ,TRANSLATION & INTERPRETATION,V001925989
ROCHDALE BOROUGH COUNCIL,05/09/2022,EARLY HELP AND SCHOOLS,THE BIG WORD,05/09/2022,38.53 ,TRANSLATION & INTERPRETATION,V001925989
ROCHDALE BOROUGH COUNCIL,05/09/2022,CHILDREN�S SOCIAL CARE,THE BIG WORD,05/09/2022,15.98 ,TRANSLATION & INTERPRETATION,V001925989
ROCHDALE BOROUGH COUNCIL,05/09/2022,CHILDREN�S SOCIAL CARE,THE BIG WORD,05/09/2022,27.15 ,TRANSLATION & INTERPRETATION,V001925989
ROCHDALE BOROUGH COUNCIL,05/09/2022,ADULT CARE LCO FUNCTIONS,THE BIG WORD,05/09/2022,5.32 ,TRANSLATION & INTERPRETATION,V001925989
ROCHDALE BOROUGH COUNCIL,05/09/2022,CHILDREN�S SOCIAL CARE,THE BIG WORD,05/09/2022,0.29 ,TRANSLATION & INTERPRETATION,V001925989
ROCHDALE BOROUGH COUNCIL,05/09/2022,CHILDREN�S SOCIAL CARE,THE BIG WORD,05/09/2022,1.79 ,TRANSLATION & INTERPRETATION,V001925989
ROCHDALE BOROUGH COUNCIL,05/09/2022,CHILDREN�S SOCIAL CARE,THE BIG WORD,05/09/2022,17.23 ,TRANSLATION & INTERPRETATION,V001925989
ROCHDALE BOROUGH COUNCIL,05/09/2022,CHILDREN�S SOCIAL CARE,THE BIG WORD,05/09/2022,0.89 ,TRANSLATION & INTERPRETATION,V001925989
ROCHDALE BOROUGH COUNCIL,05/09/2022,CHILDREN�S SOCIAL CARE,THE BIG WORD,05/09/2022,35.09 ,TRANSLATION & INTERPRETATION,V001925989
ROCHDALE BOROUGH COUNCIL,05/09/2022,NEIGHBOURHOODS AND ENVIRONMENT,THE BIG WORD,05/09/2022,7.62 ,TRANSLATION & INTERPRETATION,V001925989
ROCHDALE BOROUGH COUNCIL,05/09/2022,CHILDREN�S SOCIAL CARE,THE BIG WORD,05/09/2022,10.28 ,TRANSLATION & INTERPRETATION,V001925989
ROCHDALE BOROUGH COUNCIL,05/09/2022,CHILDREN�S SOCIAL CARE,THE BIG WORD,05/09/2022,26.79 ,TRANSLATION & INTERPRETATION,V001925989
ROCHDALE BOROUGH COUNCIL,05/09/2022,CHILDREN�S SOCIAL CARE,THE BIG WORD,05/09/2022,7.08 ,TRANSLATION & INTERPRETATION,V001925989
ROCHDALE BOROUGH COUNCIL,05/09/2022,CHILDREN�S SOCIAL CARE,THE BIG WORD,05/09/2022,88.01 ,TRANSLATION & INTERPRETATION,V001925989
ROCHDALE BOROUGH COUNCIL,05/09/2022,CHILDREN�S SOCIAL CARE,THE BIG WORD,05/09/2022,22.59 ,TRANSLATION & INTERPRETATION,V001925989
ROCHDALE BOROUGH COUNCIL,05/09/2022,CHILDREN�S SOCIAL CARE,THE BIG WORD,05/09/2022,23.43 ,TRANSLATION & INTERPRETATION,V001925989
ROCHDALE BOROUGH COUNCIL,05/09/2022,CHILDREN�S SOCIAL CARE,THE BIG WORD,05/09/2022,12.20 ,TRANSLATION & INTERPRETATION,V001925989
ROCHDALE BOROUGH COUNCIL,05/09/2022,CHILDREN�S SOCIAL CARE,THE BIG WORD,05/09/2022,21.22 ,TRANSLATION & INTERPRETATION,V001925989
ROCHDALE BOROUGH COUNCIL,05/09/2022,CHILDREN�S SOCIAL CARE,THE BIG WORD,05/09/2022,7.01 ,TRANSLATION & INTERPRETATION,V001925989
ROCHDALE BOROUGH COUNCIL,05/09/2022,CHILDREN�S SOCIAL CARE,THE BIG WORD,05/09/2022,15.88 ,TRANSLATION & INTERPRETATION,V001925989
ROCHDALE BOROUGH COUNCIL,05/09/2022,CHILDREN�S SOCIAL CARE,THE BIG WORD,05/09/2022,20.16 ,TRANSLATION & INTERPRETATION,V001925989
ROCHDALE BOROUGH COUNCIL,05/09/2022,CHILDREN�S SOCIAL CARE,THE BIG WORD,05/09/2022,31.30 ,TRANSLATION & INTERPRETATION,V001925989
ROCHDALE BOROUGH COUNCIL,05/09/2022,CHILDREN�S SOCIAL CARE,THE BIG WORD,05/09/2022,56.64 ,TRANSLATION & INTERPRETATION,V001925989
ROCHDALE BOROUGH COUNCIL,05/09/2022,ADULT CARE LCO FUNCTIONS,THE BIG WORD,05/09/2022,6.99 ,TRANSLATION & INTERPRETATION,V001925989
ROCHDALE BOROUGH COUNCIL,05/09/2022,ADULT CARE LCO FUNCTIONS,THE BIG WORD,05/09/2022,5.74 ,TRANSLATION & INTERPRETATION,V001925989
ROCHDALE BOROUGH COUNCIL,05/09/2022,CHILDREN�S SOCIAL CARE,THE BIG WORD,05/09/2022,24.46 ,TRANSLATION & INTERPRETATION,V001925989
ROCHDALE BOROUGH COUNCIL,05/09/2022,CHILDREN�S SOCIAL CARE,THE BIG WORD,05/09/2022,29.36 ,TRANSLATION & INTERPRETATION,V001925989
ROCHDALE BOROUGH COUNCIL,05/09/2022,CHILDREN�S SOCIAL CARE,THE BIG WORD,05/09/2022,0.46 ,TRANSLATION & INTERPRETATION,V001925989
ROCHDALE BOROUGH COUNCIL,05/09/2022,CHILDREN�S SOCIAL CARE,THE BIG WORD,05/09/2022,9.79 ,TRANSLATION & INTERPRETATION,V001925989
ROCHDALE BOROUGH COUNCIL,05/09/2022,CHILDREN�S SOCIAL CARE,THE BIG WORD,05/09/2022,4.85 ,TRANSLATION & INTERPRETATION,V001925989
ROCHDALE BOROUGH COUNCIL,05/09/2022,EARLY HELP AND SCHOOLS,THE BIG WORD,05/09/2022,0.84 ,TRANSLATION & INTERPRETATION,V001925989
ROCHDALE BOROUGH COUNCIL,05/09/2022,EARLY HELP AND SCHOOLS,THE BIG WORD,05/09/2022,0.42 ,TRANSLATION & INTERPRETATION,V001925989
ROCHDALE BOROUGH COUNCIL,05/09/2022,CHILDREN�S SOCIAL CARE,THE BIG WORD,05/09/2022,24.56 ,TRANSLATION & INTERPRETATION,V001925989
ROCHDALE BOROUGH COUNCIL,05/09/2022,EARLY HELP AND SCHOOLS,THE BIG WORD,05/09/2022,113.22 ,TRANSLATION & INTERPRETATION,V001925989
ROCHDALE BOROUGH COUNCIL,05/09/2022,CHILDREN�S SOCIAL CARE,THE BIG WORD,05/09/2022,26.16 ,TRANSLATION & INTERPRETATION,V001925989
ROCHDALE BOROUGH COUNCIL,05/09/2022,CHILDREN�S SOCIAL CARE,THE BIG WORD,05/09/2022,2.70 ,TRANSLATION & INTERPRETATION,V001925989
ROCHDALE BOROUGH COUNCIL,05/09/2022,CHILDREN�S SOCIAL CARE,THE BIG WORD,05/09/2022,36.39 ,TRANSLATION & INTERPRETATION,V001925989
ROCHDALE BOROUGH COUNCIL,05/09/2022,CHILDREN�S SOCIAL CARE,THE BIG WORD,05/09/2022,21.68 ,TRANSLATION & INTERPRETATION,V001925989
ROCHDALE BOROUGH COUNCIL,05/09/2022,CHILDREN�S SOCIAL CARE,THE BIG WORD,05/09/2022,27.91 ,TRANSLATION & INTERPRETATION,V001925989
ROCHDALE BOROUGH COUNCIL,05/09/2022,CHILDREN�S SOCIAL CARE,THE BIG WORD,05/09/2022,71.58 ,TRANSLATION & INTERPRETATION,V001925989
ROCHDALE BOROUGH COUNCIL,05/09/2022,EARLY HELP AND SCHOOLS,THE BIG WORD,05/09/2022,14.58 ,TRANSLATION & INTERPRETATION,V001925989
ROCHDALE BOROUGH COUNCIL,05/09/2022,EARLY HELP AND SCHOOLS,THE BIG WORD,05/09/2022,19.15 ,TRANSLATION & INTERPRETATION,V001925989
ROCHDALE BOROUGH COUNCIL,05/09/2022,CHILDREN�S SOCIAL CARE,THE BIG WORD,05/09/2022,17.90 ,TRANSLATION & INTERPRETATION,V001925989
ROCHDALE BOROUGH COUNCIL,05/09/2022,CHILDREN�S SOCIAL CARE,THE BIG WORD,05/09/2022,85.23 ,TRANSLATION & INTERPRETATION,V001925989
ROCHDALE BOROUGH COUNCIL,05/09/2022,CHILDREN�S SOCIAL CARE,THE BIG WORD,05/09/2022,3.59 ,TRANSLATION & INTERPRETATION,V001925989
ROCHDALE BOROUGH COUNCIL,05/09/2022,CHILDREN�S SOCIAL CARE,THE BIG WORD,05/09/2022,1.43 ,TRANSLATION & INTERPRETATION,V001925989
ROCHDALE BOROUGH COUNCIL,05/09/2022,CHILDREN�S SOCIAL CARE,THE BIG WORD,05/09/2022,0.68 ,TRANSLATION & INTERPRETATION,V001925989
ROCHDALE BOROUGH COUNCIL,05/09/2022,CHILDREN�S SOCIAL CARE,THE BIG WORD,05/09/2022,3.52 ,TRANSLATION & INTERPRETATION,V001925989
ROCHDALE BOROUGH COUNCIL,05/09/2022,CHILDREN�S SOCIAL CARE,THE BIG WORD,05/09/2022,34.94 ,TRANSLATION & INTERPRETATION,V001925989
ROCHDALE BOROUGH COUNCIL,05/09/2022,CHILDREN�S SOCIAL CARE,THE BIG WORD,05/09/2022,11.86 ,TRANSLATION & INTERPRETATION,V001925989
ROCHDALE BOROUGH COUNCIL,05/09/2022,ADULT CARE LCO FUNCTIONS,THE BIG WORD,05/09/2022,4.31 ,TRANSLATION & INTERPRETATION,V001925989
ROCHDALE BOROUGH COUNCIL,05/09/2022,EARLY HELP AND SCHOOLS,THE BIG WORD,05/09/2022,74.84 ,TRANSLATION & INTERPRETATION,V001925989
ROCHDALE BOROUGH COUNCIL,02/09/2022,ECONOMY DIRECTORATE,RESTORATION PROJECTS LTD,02/09/2022,18068.17 ,MINOR BUILDING WORKS,V001925993
ROCHDALE BOROUGH COUNCIL,06/09/2022,EARLY HELP AND SCHOOLS,THREE SIXTY SHG LTD,06/09/2022,44332.17 ,MINOR BUILDING WORKS,V001925995
ROCHDALE BOROUGH COUNCIL,06/09/2022,ADULT CARE LCO FUNCTIONS,TF JONES PROPERTY SERVICES LTD,06/09/2022,-5489.76 ,MINOR BUILDING WORKS,V001925996
ROCHDALE BOROUGH COUNCIL,06/09/2022,CHILDREN�S SOCIAL CARE,REED SPECIALIST RECRUITMENT LTD,06/09/2022,-18.45 ,AGENCY STAFF,V001926003
ROCHDALE BOROUGH COUNCIL,06/09/2022,CHILDREN�S SOCIAL CARE,REED SPECIALIST RECRUITMENT LTD,06/09/2022,18.54 ,AGENCY STAFF,V001926003
ROCHDALE BOROUGH COUNCIL,06/09/2022,NEIGHBOURHOODS AND ENVIRONMENT,REED SPECIALIST RECRUITMENT LTD,06/09/2022,100.80 ,AGENCY STAFF,V001926003
ROCHDALE BOROUGH COUNCIL,06/09/2022,ADULT CARE LCO FUNCTIONS,REED SPECIALIST RECRUITMENT LTD,06/09/2022,6.75 ,AGENCY STAFF,V001926003
ROCHDALE BOROUGH COUNCIL,06/09/2022,ADULT CARE LCO FUNCTIONS,REED SPECIALIST RECRUITMENT LTD,06/09/2022,129.15 ,CAPITAL - STAFFING AGENCY PAYMENTS,V001926003
ROCHDALE BOROUGH COUNCIL,06/09/2022,PROPERTY AND HIGHWAYS,REED SPECIALIST RECRUITMENT LTD,06/09/2022,36.90 ,AGENCY STAFF,V001926003
ROCHDALE BOROUGH COUNCIL,06/09/2022,ECONOMY DIRECTORATE,REED SPECIALIST RECRUITMENT LTD,06/09/2022,4.50 ,AGENCY STAFF,V001926003
ROCHDALE BOROUGH COUNCIL,06/09/2022,CHILDREN�S SOCIAL CARE,REED SPECIALIST RECRUITMENT LTD,06/09/2022,48.20 ,AGENCY STAFF,V001926003
ROCHDALE BOROUGH COUNCIL,06/09/2022,EARLY HELP AND SCHOOLS,REED SPECIALIST RECRUITMENT LTD,06/09/2022,21.01 ,AGENCY STAFF,V001926003
ROCHDALE BOROUGH COUNCIL,06/09/2022,CHILDREN�S SOCIAL CARE,REED SPECIALIST RECRUITMENT LTD,06/09/2022,38.25 ,AGENCY STAFF,V001926003
ROCHDALE BOROUGH COUNCIL,06/09/2022,CHILDREN�S SOCIAL CARE,REED SPECIALIST RECRUITMENT LTD,06/09/2022,5.71 ,AGENCY STAFF,V001926003
ROCHDALE BOROUGH COUNCIL,06/09/2022,CHILDREN�S SOCIAL CARE,REED SPECIALIST RECRUITMENT LTD,06/09/2022,10.93 ,AGENCY STAFF,V001926003
ROCHDALE BOROUGH COUNCIL,06/09/2022,CHILDREN�S SOCIAL CARE,REED SPECIALIST RECRUITMENT LTD,06/09/2022,6.48 ,AGENCY STAFF,V001926003
ROCHDALE BOROUGH COUNCIL,06/09/2022,EARLY HELP AND SCHOOLS,REED SPECIALIST RECRUITMENT LTD,06/09/2022,7.65 ,AGENCY STAFF,V001926003
ROCHDALE BOROUGH COUNCIL,06/09/2022,CHILDREN�S SOCIAL CARE,REED SPECIALIST RECRUITMENT LTD,06/09/2022,38.70 ,AGENCY STAFF,V001926003
ROCHDALE BOROUGH COUNCIL,06/09/2022,CHILDREN�S SOCIAL CARE,REED SPECIALIST RECRUITMENT LTD,06/09/2022,6.75 ,AGENCY STAFF,V001926003
ROCHDALE BOROUGH COUNCIL,06/09/2022,CHILDREN�S SOCIAL CARE,REED SPECIALIST RECRUITMENT LTD,06/09/2022,4.95 ,AGENCY STAFF,V001926003
ROCHDALE BOROUGH COUNCIL,06/09/2022,CHILDREN�S SOCIAL CARE,REED SPECIALIST RECRUITMENT LTD,06/09/2022,55.12 ,AGENCY STAFF,V001926003
ROCHDALE BOROUGH COUNCIL,06/09/2022,CHILDREN�S SOCIAL CARE,REED SPECIALIST RECRUITMENT LTD,06/09/2022,41.71 ,AGENCY STAFF,V001926003
ROCHDALE BOROUGH COUNCIL,06/09/2022,CHILDREN�S SOCIAL CARE,REED SPECIALIST RECRUITMENT LTD,06/09/2022,30.15 ,AGENCY STAFF,V001926003
ROCHDALE BOROUGH COUNCIL,06/09/2022,ADULT CARE LCO FUNCTIONS,REED SPECIALIST RECRUITMENT LTD,06/09/2022,3.15 ,AGENCY STAFF,V001926003
ROCHDALE BOROUGH COUNCIL,06/09/2022,ADULT CARE LCO FUNCTIONS,REED SPECIALIST RECRUITMENT LTD,06/09/2022,20.70 ,AGENCY STAFF,V001926003
ROCHDALE BOROUGH COUNCIL,06/09/2022,CHILDREN�S SOCIAL CARE,REED SPECIALIST RECRUITMENT LTD,06/09/2022,42.75 ,AGENCY STAFF,V001926003
ROCHDALE BOROUGH COUNCIL,06/09/2022,NEIGHBOURHOODS AND ENVIRONMENT,REED SPECIALIST RECRUITMENT LTD,06/09/2022,100.80 ,AGENCY STAFF,V001926003
ROCHDALE BOROUGH COUNCIL,06/09/2022,CHILDREN�S SOCIAL CARE,REED SPECIALIST RECRUITMENT LTD,06/09/2022,1396.31 ,AGENCY STAFF,V001926003
ROCHDALE BOROUGH COUNCIL,06/09/2022,NEIGHBOURHOODS AND ENVIRONMENT,REED SPECIALIST RECRUITMENT LTD,06/09/2022,181.97 ,AGENCY STAFF,V001926003
ROCHDALE BOROUGH COUNCIL,06/09/2022,NEIGHBOURHOODS AND ENVIRONMENT,REED SPECIALIST RECRUITMENT LTD,06/09/2022,603.75 ,AGENCY STAFF,V001926003
ROCHDALE BOROUGH COUNCIL,06/09/2022,NEIGHBOURHOODS AND ENVIRONMENT,REED SPECIALIST RECRUITMENT LTD,06/09/2022,454.62 ,AGENCY STAFF,V001926003
ROCHDALE BOROUGH COUNCIL,06/09/2022,NEIGHBOURHOODS AND ENVIRONMENT,REED SPECIALIST RECRUITMENT LTD,06/09/2022,499.55 ,AGENCY STAFF,V001926003
ROCHDALE BOROUGH COUNCIL,06/09/2022,NEIGHBOURHOODS AND ENVIRONMENT,REED SPECIALIST RECRUITMENT LTD,06/09/2022,290.09 ,AGENCY STAFF,V001926003
ROCHDALE BOROUGH COUNCIL,06/09/2022,NEIGHBOURHOODS AND ENVIRONMENT,REED SPECIALIST RECRUITMENT LTD,06/09/2022,497.22 ,AGENCY STAFF,V001926003
ROCHDALE BOROUGH COUNCIL,06/09/2022,NEIGHBOURHOODS AND ENVIRONMENT,REED SPECIALIST RECRUITMENT LTD,06/09/2022,497.22 ,AGENCY STAFF,V001926003
ROCHDALE BOROUGH COUNCIL,06/09/2022,CHILDREN�S SOCIAL CARE,REED SPECIALIST RECRUITMENT LTD,06/09/2022,1377.68 ,AGENCY STAFF,V001926003
ROCHDALE BOROUGH COUNCIL,06/09/2022,NEIGHBOURHOODS AND ENVIRONMENT,REED SPECIALIST RECRUITMENT LTD,06/09/2022,368.43 ,AGENCY STAFF,V001926003
ROCHDALE BOROUGH COUNCIL,06/09/2022,CHILDREN�S SOCIAL CARE,REED SPECIALIST RECRUITMENT LTD,06/09/2022,1499.24 ,AGENCY STAFF,V001926003
ROCHDALE BOROUGH COUNCIL,06/09/2022,NEIGHBOURHOODS AND ENVIRONMENT,REED SPECIALIST RECRUITMENT LTD,06/09/2022,603.75 ,AGENCY STAFF,V001926003
ROCHDALE BOROUGH COUNCIL,06/09/2022,NEIGHBOURHOODS AND ENVIRONMENT,REED SPECIALIST RECRUITMENT LTD,06/09/2022,671.29 ,AGENCY STAFF,V001926003
ROCHDALE BOROUGH COUNCIL,06/09/2022,CHILDREN�S SOCIAL CARE,REED SPECIALIST RECRUITMENT LTD,06/09/2022,1217.67 ,AGENCY STAFF,V001926003
ROCHDALE BOROUGH COUNCIL,06/09/2022,EARLY HELP AND SCHOOLS,REED SPECIALIST RECRUITMENT LTD,06/09/2022,1388.54 ,AGENCY STAFF,V001926003
ROCHDALE BOROUGH COUNCIL,06/09/2022,EARLY HELP AND SCHOOLS,REED SPECIALIST RECRUITMENT LTD,06/09/2022,1396.31 ,AGENCY STAFF,V001926003
ROCHDALE BOROUGH COUNCIL,06/09/2022,ECONOMY DIRECTORATE,REED SPECIALIST RECRUITMENT LTD,06/09/2022,656.63 ,AGENCY STAFF,V001926003
ROCHDALE BOROUGH COUNCIL,06/09/2022,ECONOMY DIRECTORATE,REED SPECIALIST RECRUITMENT LTD,06/09/2022,532.39 ,AGENCY STAFF,V001926003
ROCHDALE BOROUGH COUNCIL,06/09/2022,ECONOMY DIRECTORATE,REED SPECIALIST RECRUITMENT LTD,06/09/2022,656.63 ,AGENCY STAFF,V001926003
ROCHDALE BOROUGH COUNCIL,06/09/2022,PROPERTY AND HIGHWAYS,REED SPECIALIST RECRUITMENT LTD,06/09/2022,486.73 ,AGENCY STAFF,V001926003
ROCHDALE BOROUGH COUNCIL,06/09/2022,ECONOMY DIRECTORATE,REED SPECIALIST RECRUITMENT LTD,06/09/2022,656.63 ,AGENCY STAFF,V001926003
ROCHDALE BOROUGH COUNCIL,06/09/2022,NEIGHBOURHOODS AND ENVIRONMENT,REED SPECIALIST RECRUITMENT LTD,06/09/2022,117.92 ,AGENCY STAFF,V001926003
ROCHDALE BOROUGH COUNCIL,06/09/2022,NEIGHBOURHOODS AND ENVIRONMENT,REED SPECIALIST RECRUITMENT LTD,06/09/2022,519.55 ,AGENCY STAFF,V001926003
ROCHDALE BOROUGH COUNCIL,06/09/2022,NEIGHBOURHOODS AND ENVIRONMENT,REED SPECIALIST RECRUITMENT LTD,06/09/2022,497.29 ,AGENCY STAFF,V001926003
ROCHDALE BOROUGH COUNCIL,06/09/2022,ADULT CARE LCO FUNCTIONS,REED SPECIALIST RECRUITMENT LTD,06/09/2022,1211.01 ,AGENCY STAFF,V001926003
ROCHDALE BOROUGH COUNCIL,06/09/2022,ADULT CARE LCO FUNCTIONS,REED SPECIALIST RECRUITMENT LTD,06/09/2022,479.12 ,AGENCY STAFF,V001926003
ROCHDALE BOROUGH COUNCIL,06/09/2022,RESOURCES,REED SPECIALIST RECRUITMENT LTD,06/09/2022,482.41 ,AGENCY STAFF,V001926003
ROCHDALE BOROUGH COUNCIL,06/09/2022,CHILDREN�S SOCIAL CARE,REED SPECIALIST RECRUITMENT LTD,06/09/2022,1003.56 ,AGENCY STAFF,V001926003
ROCHDALE BOROUGH COUNCIL,06/09/2022,ADULT CARE LCO FUNCTIONS,REED SPECIALIST RECRUITMENT LTD,06/09/2022,396.08 ,AGENCY STAFF,V001926003
ROCHDALE BOROUGH COUNCIL,06/09/2022,ADULT CARE LCO FUNCTIONS,REED SPECIALIST RECRUITMENT LTD,06/09/2022,682.50 ,CAPITAL - STAFFING AGENCY PAYMENTS,V001926003
ROCHDALE BOROUGH COUNCIL,06/09/2022,EARLY HELP AND SCHOOLS,REED SPECIALIST RECRUITMENT LTD,06/09/2022,1425.90 ,AGENCY STAFF,V001926003
ROCHDALE BOROUGH COUNCIL,06/09/2022,RESOURCES,REED SPECIALIST RECRUITMENT LTD,06/09/2022,996.58 ,AGENCY STAFF,V001926003
ROCHDALE BOROUGH COUNCIL,06/09/2022,RESOURCES,REED SPECIALIST RECRUITMENT LTD,06/09/2022,390.19 ,AGENCY STAFF,V001926003
ROCHDALE BOROUGH COUNCIL,06/09/2022,PROPERTY AND HIGHWAYS,REED SPECIALIST RECRUITMENT LTD,06/09/2022,486.73 ,AGENCY STAFF,V001926003
ROCHDALE BOROUGH COUNCIL,06/09/2022,ECONOMY DIRECTORATE,REED SPECIALIST RECRUITMENT LTD,06/09/2022,1951.67 ,AGENCY STAFF,V001926003
ROCHDALE BOROUGH COUNCIL,06/09/2022,ADULT CARE LCO FUNCTIONS,REED SPECIALIST RECRUITMENT LTD,06/09/2022,1210.64 ,AGENCY STAFF,V001926003
ROCHDALE BOROUGH COUNCIL,06/09/2022,NEIGHBOURHOODS AND ENVIRONMENT,REED SPECIALIST RECRUITMENT LTD,06/09/2022,915.39 ,AGENCY STAFF,V001926003
ROCHDALE BOROUGH COUNCIL,06/09/2022,PROPERTY AND HIGHWAYS,REED SPECIALIST RECRUITMENT LTD,06/09/2022,332.93 ,AGENCY STAFF,V001926003
ROCHDALE BOROUGH COUNCIL,06/09/2022,NEIGHBOURHOODS AND ENVIRONMENT,REED SPECIALIST RECRUITMENT LTD,06/09/2022,1859.39 ,CAPITAL - STAFFING AGENCY PAYMENTS,V001926003
ROCHDALE BOROUGH COUNCIL,06/09/2022,NEIGHBOURHOODS AND ENVIRONMENT,REED SPECIALIST RECRUITMENT LTD,06/09/2022,821.05 ,AGENCY STAFF,V001926003
ROCHDALE BOROUGH COUNCIL,06/09/2022,PROPERTY AND HIGHWAYS,REED SPECIALIST RECRUITMENT LTD,06/09/2022,970.77 ,AGENCY STAFF,V001926003
ROCHDALE BOROUGH COUNCIL,06/09/2022,PROPERTY AND HIGHWAYS,REED SPECIALIST RECRUITMENT LTD,06/09/2022,1003.96 ,AGENCY STAFF,V001926003
ROCHDALE BOROUGH COUNCIL,06/09/2022,PROPERTY AND HIGHWAYS,REED SPECIALIST RECRUITMENT LTD,06/09/2022,855.21 ,AGENCY STAFF,V001926003
ROCHDALE BOROUGH COUNCIL,06/09/2022,CHILDREN�S SOCIAL CARE,REED SPECIALIST RECRUITMENT LTD,06/09/2022,1507.01 ,AGENCY STAFF,V001926003
ROCHDALE BOROUGH COUNCIL,06/09/2022,NEIGHBOURHOODS AND ENVIRONMENT,REED SPECIALIST RECRUITMENT LTD,06/09/2022,915.39 ,AGENCY STAFF,V001926003
ROCHDALE BOROUGH COUNCIL,06/09/2022,CHILDREN�S SOCIAL CARE,REED SPECIALIST RECRUITMENT LTD,06/09/2022,1656.79 ,AGENCY STAFF,V001926003
ROCHDALE BOROUGH COUNCIL,06/09/2022,RESOURCES,REED SPECIALIST RECRUITMENT LTD,06/09/2022,505.82 ,AGENCY STAFF,V001926003
ROCHDALE BOROUGH COUNCIL,06/09/2022,CHILDREN�S SOCIAL CARE,REED SPECIALIST RECRUITMENT LTD,06/09/2022,1217.67 ,AGENCY STAFF,V001926003
ROCHDALE BOROUGH COUNCIL,06/09/2022,CHILDREN�S SOCIAL CARE,REED SPECIALIST RECRUITMENT LTD,06/09/2022,415.12 ,AGENCY STAFF,V001926003
ROCHDALE BOROUGH COUNCIL,06/09/2022,CHILDREN�S SOCIAL CARE,REED SPECIALIST RECRUITMENT LTD,06/09/2022,1396.31 ,AGENCY STAFF,V001926003
ROCHDALE BOROUGH COUNCIL,06/09/2022,CHILDREN�S SOCIAL CARE,REED SPECIALIST RECRUITMENT LTD,06/09/2022,1499.54 ,AGENCY STAFF,V001926003
ROCHDALE BOROUGH COUNCIL,06/09/2022,NEIGHBOURHOODS AND ENVIRONMENT,REED SPECIALIST RECRUITMENT LTD,06/09/2022,491.24 ,AGENCY STAFF,V001926003
ROCHDALE BOROUGH COUNCIL,06/09/2022,EARLY HELP AND SCHOOLS,REED SPECIALIST RECRUITMENT LTD,06/09/2022,1388.54 ,AGENCY STAFF,V001926003
ROCHDALE BOROUGH COUNCIL,06/09/2022,EARLY HELP AND SCHOOLS,REED SPECIALIST RECRUITMENT LTD,06/09/2022,1766.01 ,AGENCY STAFF,V001926003
ROCHDALE BOROUGH COUNCIL,06/09/2022,NEIGHBOURHOODS AND ENVIRONMENT,REED SPECIALIST RECRUITMENT LTD,06/09/2022,562.24 ,AGENCY STAFF,V001926003
ROCHDALE BOROUGH COUNCIL,06/09/2022,NEIGHBOURHOODS AND ENVIRONMENT,REED SPECIALIST RECRUITMENT LTD,06/09/2022,504.43 ,AGENCY STAFF,V001926003
ROCHDALE BOROUGH COUNCIL,06/09/2022,NEIGHBOURHOODS AND ENVIRONMENT,REED SPECIALIST RECRUITMENT LTD,06/09/2022,491.17 ,AGENCY STAFF,V001926003
ROCHDALE BOROUGH COUNCIL,06/09/2022,NEIGHBOURHOODS AND ENVIRONMENT,REED SPECIALIST RECRUITMENT LTD,06/09/2022,491.17 ,AGENCY STAFF,V001926003
ROCHDALE BOROUGH COUNCIL,06/09/2022,NEIGHBOURHOODS AND ENVIRONMENT,REED SPECIALIST RECRUITMENT LTD,06/09/2022,482.66 ,AGENCY STAFF,V001926003
ROCHDALE BOROUGH COUNCIL,06/09/2022,RESOURCES,REED SPECIALIST RECRUITMENT LTD,06/09/2022,1967.08 ,AGENCY STAFF,V001926003
ROCHDALE BOROUGH COUNCIL,06/09/2022,NEIGHBOURHOODS AND ENVIRONMENT,REED SPECIALIST RECRUITMENT LTD,06/09/2022,491.24 ,AGENCY STAFF,V001926003
ROCHDALE BOROUGH COUNCIL,06/09/2022,NEIGHBOURHOODS AND ENVIRONMENT,REED SPECIALIST RECRUITMENT LTD,06/09/2022,451.42 ,AGENCY STAFF,V001926003
ROCHDALE BOROUGH COUNCIL,06/09/2022,NEIGHBOURHOODS AND ENVIRONMENT,REED SPECIALIST RECRUITMENT LTD,06/09/2022,491.17 ,AGENCY STAFF,V001926003
ROCHDALE BOROUGH COUNCIL,06/09/2022,NEIGHBOURHOODS AND ENVIRONMENT,REED SPECIALIST RECRUITMENT LTD,06/09/2022,530.22 ,AGENCY STAFF,V001926003
ROCHDALE BOROUGH COUNCIL,06/09/2022,CHILDREN�S SOCIAL CARE,REED SPECIALIST RECRUITMENT LTD,06/09/2022,1499.24 ,AGENCY STAFF,V001926003
ROCHDALE BOROUGH COUNCIL,06/09/2022,NEIGHBOURHOODS AND ENVIRONMENT,REED SPECIALIST RECRUITMENT LTD,06/09/2022,122.81 ,AGENCY STAFF,V001926003
ROCHDALE BOROUGH COUNCIL,06/09/2022,NEIGHBOURHOODS AND ENVIRONMENT,REED SPECIALIST RECRUITMENT LTD,06/09/2022,368.43 ,AGENCY STAFF,V001926003
ROCHDALE BOROUGH COUNCIL,06/09/2022,NEIGHBOURHOODS AND ENVIRONMENT,REED SPECIALIST RECRUITMENT LTD,06/09/2022,568.12 ,AGENCY STAFF,V001926003
ROCHDALE BOROUGH COUNCIL,06/09/2022,NEIGHBOURHOODS AND ENVIRONMENT,REED SPECIALIST RECRUITMENT LTD,06/09/2022,491.17 ,AGENCY STAFF,V001926003
ROCHDALE BOROUGH COUNCIL,06/09/2022,NEIGHBOURHOODS AND ENVIRONMENT,REED SPECIALIST RECRUITMENT LTD,06/09/2022,245.64 ,AGENCY STAFF,V001926003
ROCHDALE BOROUGH COUNCIL,06/09/2022,CHILDREN�S SOCIAL CARE,REED SPECIALIST RECRUITMENT LTD,06/09/2022,1458.72 ,AGENCY STAFF,V001926003
ROCHDALE BOROUGH COUNCIL,06/09/2022,PROPERTY AND HIGHWAYS,REED SPECIALIST RECRUITMENT LTD,06/09/2022,589.40 ,AGENCY STAFF,V001926003
ROCHDALE BOROUGH COUNCIL,06/09/2022,CHILDREN�S SOCIAL CARE,REED SPECIALIST RECRUITMENT LTD,06/09/2022,1469.64 ,AGENCY STAFF,V001926003
ROCHDALE BOROUGH COUNCIL,06/09/2022,NEIGHBOURHOODS AND ENVIRONMENT,REED SPECIALIST RECRUITMENT LTD,06/09/2022,530.15 ,AGENCY STAFF,V001926003
ROCHDALE BOROUGH COUNCIL,06/09/2022,NEIGHBOURHOODS AND ENVIRONMENT,REED SPECIALIST RECRUITMENT LTD,06/09/2022,530.15 ,AGENCY STAFF,V001926003
ROCHDALE BOROUGH COUNCIL,06/09/2022,NEIGHBOURHOODS AND ENVIRONMENT,REED SPECIALIST RECRUITMENT LTD,06/09/2022,530.15 ,AGENCY STAFF,V001926003
ROCHDALE BOROUGH COUNCIL,06/09/2022,NEIGHBOURHOODS AND ENVIRONMENT,REED SPECIALIST RECRUITMENT LTD,06/09/2022,530.15 ,AGENCY STAFF,V001926003
ROCHDALE BOROUGH COUNCIL,06/09/2022,CHILDREN�S SOCIAL CARE,REED SPECIALIST RECRUITMENT LTD,06/09/2022,1396.01 ,AGENCY STAFF,V001926003
ROCHDALE BOROUGH COUNCIL,06/09/2022,NEIGHBOURHOODS AND ENVIRONMENT,REED SPECIALIST RECRUITMENT LTD,06/09/2022,491.24 ,AGENCY STAFF,V001926003
ROCHDALE BOROUGH COUNCIL,06/09/2022,NEIGHBOURHOODS AND ENVIRONMENT,REED SPECIALIST RECRUITMENT LTD,06/09/2022,491.17 ,AGENCY STAFF,V001926003
ROCHDALE BOROUGH COUNCIL,06/09/2022,NEIGHBOURHOODS AND ENVIRONMENT,REED SPECIALIST RECRUITMENT LTD,06/09/2022,491.17 ,AGENCY STAFF,V001926003
ROCHDALE BOROUGH COUNCIL,06/09/2022,NEIGHBOURHOODS AND ENVIRONMENT,REED SPECIALIST RECRUITMENT LTD,06/09/2022,491.17 ,AGENCY STAFF,V001926003
ROCHDALE BOROUGH COUNCIL,06/09/2022,NEIGHBOURHOODS AND ENVIRONMENT,REED SPECIALIST RECRUITMENT LTD,06/09/2022,343.93 ,AGENCY STAFF,V001926003
ROCHDALE BOROUGH COUNCIL,06/09/2022,NEIGHBOURHOODS AND ENVIRONMENT,REED SPECIALIST RECRUITMENT LTD,06/09/2022,491.24 ,AGENCY STAFF,V001926003
ROCHDALE BOROUGH COUNCIL,06/09/2022,NEIGHBOURHOODS AND ENVIRONMENT,REED SPECIALIST RECRUITMENT LTD,06/09/2022,486.73 ,AGENCY STAFF,V001926003
ROCHDALE BOROUGH COUNCIL,06/09/2022,NEIGHBOURHOODS AND ENVIRONMENT,REED SPECIALIST RECRUITMENT LTD,06/09/2022,671.29 ,AGENCY STAFF,V001926003
ROCHDALE BOROUGH COUNCIL,06/09/2022,NEIGHBOURHOODS AND ENVIRONMENT,REED SPECIALIST RECRUITMENT LTD,06/09/2022,491.24 ,AGENCY STAFF,V001926003
ROCHDALE BOROUGH COUNCIL,06/09/2022,CHILDREN�S SOCIAL CARE,REED SPECIALIST RECRUITMENT LTD,06/09/2022,363.49 ,AGENCY STAFF,V001926003
ROCHDALE BOROUGH COUNCIL,06/09/2022,CHILDREN�S SOCIAL CARE,REED SPECIALIST RECRUITMENT LTD,06/09/2022,369.48 ,AGENCY STAFF,V001926003
ROCHDALE BOROUGH COUNCIL,06/09/2022,NEIGHBOURHOODS AND ENVIRONMENT,REED SPECIALIST RECRUITMENT LTD,06/09/2022,440.18 ,CAPITAL - STAFFING AGENCY PAYMENTS,V001926003
ROCHDALE BOROUGH COUNCIL,06/09/2022,RESOURCES,REED SPECIALIST RECRUITMENT LTD,06/09/2022,505.82 ,AGENCY STAFF,V001926003
ROCHDALE BOROUGH COUNCIL,06/09/2022,RESOURCES,REED SPECIALIST RECRUITMENT LTD,06/09/2022,505.82 ,AGENCY STAFF,V001926003
ROCHDALE BOROUGH COUNCIL,06/09/2022,CHILDREN�S SOCIAL CARE,REED SPECIALIST RECRUITMENT LTD,06/09/2022,1499.54 ,AGENCY STAFF,V001926003
ROCHDALE BOROUGH COUNCIL,06/09/2022,CHILDREN�S SOCIAL CARE,REED SPECIALIST RECRUITMENT LTD,06/09/2022,737.70 ,AGENCY STAFF,V001926003
ROCHDALE BOROUGH COUNCIL,06/09/2022,CHILDREN�S SOCIAL CARE,REED SPECIALIST RECRUITMENT LTD,06/09/2022,1065.11 ,AGENCY STAFF,V001926003
ROCHDALE BOROUGH COUNCIL,06/09/2022,CHILDREN�S SOCIAL CARE,REED SPECIALIST RECRUITMENT LTD,06/09/2022,1943.54 ,AGENCY STAFF,V001926003
ROCHDALE BOROUGH COUNCIL,06/09/2022,CHILDREN�S SOCIAL CARE,REED SPECIALIST RECRUITMENT LTD,06/09/2022,1499.61 ,AGENCY STAFF,V001926003
ROCHDALE BOROUGH COUNCIL,06/09/2022,CHILDREN�S SOCIAL CARE,REED SPECIALIST RECRUITMENT LTD,06/09/2022,1721.61 ,AGENCY STAFF,V001926003
ROCHDALE BOROUGH COUNCIL,06/09/2022,NEIGHBOURHOODS AND ENVIRONMENT,REED SPECIALIST RECRUITMENT LTD,06/09/2022,491.17 ,AGENCY STAFF,V001926003
ROCHDALE BOROUGH COUNCIL,06/09/2022,NEIGHBOURHOODS AND ENVIRONMENT,REED SPECIALIST RECRUITMENT LTD,06/09/2022,491.17 ,AGENCY STAFF,V001926003
ROCHDALE BOROUGH COUNCIL,06/09/2022,NEIGHBOURHOODS AND ENVIRONMENT,REED SPECIALIST RECRUITMENT LTD,06/09/2022,499.55 ,AGENCY STAFF,V001926003
ROCHDALE BOROUGH COUNCIL,06/09/2022,NEIGHBOURHOODS AND ENVIRONMENT,REED SPECIALIST RECRUITMENT LTD,06/09/2022,596.59 ,AGENCY STAFF,V001926003
ROCHDALE BOROUGH COUNCIL,06/09/2022,NEIGHBOURHOODS AND ENVIRONMENT,REED SPECIALIST RECRUITMENT LTD,06/09/2022,553.55 ,AGENCY STAFF,V001926003
ROCHDALE BOROUGH COUNCIL,06/09/2022,NEIGHBOURHOODS AND ENVIRONMENT,REED SPECIALIST RECRUITMENT LTD,06/09/2022,491.17 ,AGENCY STAFF,V001926003
ROCHDALE BOROUGH COUNCIL,06/09/2022,NEIGHBOURHOODS AND ENVIRONMENT,REED SPECIALIST RECRUITMENT LTD,06/09/2022,368.37 ,AGENCY STAFF,V001926003
ROCHDALE BOROUGH COUNCIL,06/09/2022,CHILDREN�S SOCIAL CARE,REED SPECIALIST RECRUITMENT LTD,06/09/2022,1591.65 ,AGENCY STAFF,V001926003
ROCHDALE BOROUGH COUNCIL,06/09/2022,NEIGHBOURHOODS AND ENVIRONMENT,REED SPECIALIST RECRUITMENT LTD,06/09/2022,597.36 ,AGENCY STAFF,V001926003
ROCHDALE BOROUGH COUNCIL,06/09/2022,NEIGHBOURHOODS AND ENVIRONMENT,REED SPECIALIST RECRUITMENT LTD,06/09/2022,499.55 ,AGENCY STAFF,V001926003
ROCHDALE BOROUGH COUNCIL,06/09/2022,NEIGHBOURHOODS AND ENVIRONMENT,REED SPECIALIST RECRUITMENT LTD,06/09/2022,452.83 ,AGENCY STAFF,V001926003
ROCHDALE BOROUGH COUNCIL,06/09/2022,PROPERTY AND HIGHWAYS,REED SPECIALIST RECRUITMENT LTD,06/09/2022,976.74 ,AGENCY STAFF,V001926003
ROCHDALE BOROUGH COUNCIL,06/09/2022,CHILDREN�S SOCIAL CARE,REED SPECIALIST RECRUITMENT LTD,06/09/2022,1211.01 ,AGENCY STAFF,V001926003
ROCHDALE BOROUGH COUNCIL,06/09/2022,CHILDREN�S SOCIAL CARE,REED SPECIALIST RECRUITMENT LTD,06/09/2022,1499.54 ,AGENCY STAFF,V001926003
ROCHDALE BOROUGH COUNCIL,06/09/2022,NEIGHBOURHOODS AND ENVIRONMENT,REED SPECIALIST RECRUITMENT LTD,06/09/2022,245.60 ,AGENCY STAFF,V001926003
ROCHDALE BOROUGH COUNCIL,06/09/2022,NEIGHBOURHOODS AND ENVIRONMENT,REED SPECIALIST RECRUITMENT LTD,06/09/2022,499.55 ,AGENCY STAFF,V001926003
ROCHDALE BOROUGH COUNCIL,06/09/2022,NEIGHBOURHOODS AND ENVIRONMENT,REED SPECIALIST RECRUITMENT LTD,06/09/2022,491.17 ,AGENCY STAFF,V001926003
ROCHDALE BOROUGH COUNCIL,06/09/2022,NEIGHBOURHOODS AND ENVIRONMENT,REED SPECIALIST RECRUITMENT LTD,06/09/2022,544.47 ,AGENCY STAFF,V001926003
ROCHDALE BOROUGH COUNCIL,06/09/2022,PROPERTY AND HIGHWAYS,REED SPECIALIST RECRUITMENT LTD,06/09/2022,719.18 ,AGENCY STAFF,V001926003
ROCHDALE BOROUGH COUNCIL,06/09/2022,PROPERTY AND HIGHWAYS,REED SPECIALIST RECRUITMENT LTD,06/09/2022,719.25 ,AGENCY STAFF,V001926003
ROCHDALE BOROUGH COUNCIL,06/09/2022,ADULT CARE LCO FUNCTIONS,REED SPECIALIST RECRUITMENT LTD,06/09/2022,1210.64 ,AGENCY STAFF,V001926003
ROCHDALE BOROUGH COUNCIL,06/09/2022,ADULT CARE LCO FUNCTIONS,REED SPECIALIST RECRUITMENT LTD,06/09/2022,1210.64 ,AGENCY STAFF,V001926003
ROCHDALE BOROUGH COUNCIL,06/09/2022,NEIGHBOURHOODS AND ENVIRONMENT,REED SPECIALIST RECRUITMENT LTD,06/09/2022,906.80 ,AGENCY STAFF,V001926003
ROCHDALE BOROUGH COUNCIL,06/09/2022,CHILDREN�S SOCIAL CARE,REED SPECIALIST RECRUITMENT LTD,06/09/2022,1686.76 ,AGENCY STAFF,V001926003
ROCHDALE BOROUGH COUNCIL,06/09/2022,CHILDREN�S SOCIAL CARE,REED SPECIALIST RECRUITMENT LTD,06/09/2022,596.37 ,AGENCY STAFF,V001926003
ROCHDALE BOROUGH COUNCIL,06/09/2022,NEIGHBOURHOODS AND ENVIRONMENT,REED SPECIALIST RECRUITMENT LTD,06/09/2022,491.17 ,AGENCY STAFF,V001926003
ROCHDALE BOROUGH COUNCIL,06/09/2022,NEIGHBOURHOODS AND ENVIRONMENT,REED SPECIALIST RECRUITMENT LTD,06/09/2022,491.17 ,AGENCY STAFF,V001926003
ROCHDALE BOROUGH COUNCIL,06/09/2022,CHILDREN�S SOCIAL CARE,REED SPECIALIST RECRUITMENT LTD,06/09/2022,1276.02 ,AGENCY STAFF,V001926003
ROCHDALE BOROUGH COUNCIL,06/09/2022,NEIGHBOURHOODS AND ENVIRONMENT,REED SPECIALIST RECRUITMENT LTD,06/09/2022,318.60 ,AGENCY STAFF,V001926003
ROCHDALE BOROUGH COUNCIL,06/09/2022,CHILDREN�S SOCIAL CARE,REED SPECIALIST RECRUITMENT LTD,06/09/2022,1217.67 ,AGENCY STAFF,V001926003
ROCHDALE BOROUGH COUNCIL,06/09/2022,CHILDREN�S SOCIAL CARE,REED SPECIALIST RECRUITMENT LTD,06/09/2022,1396.31 ,AGENCY STAFF,V001926003
ROCHDALE BOROUGH COUNCIL,06/09/2022,CHILDREN�S SOCIAL CARE,REED SPECIALIST RECRUITMENT LTD,06/09/2022,917.06 ,AGENCY STAFF,V001926003
ROCHDALE BOROUGH COUNCIL,06/09/2022,CHILDREN�S SOCIAL CARE,REED SPECIALIST RECRUITMENT LTD,06/09/2022,1396.31 ,AGENCY STAFF,V001926003
ROCHDALE BOROUGH COUNCIL,06/09/2022,CHILDREN�S SOCIAL CARE,REED SPECIALIST RECRUITMENT LTD,06/09/2022,1395.64 ,AGENCY STAFF,V001926003
ROCHDALE BOROUGH COUNCIL,06/09/2022,CHILDREN�S SOCIAL CARE,REED SPECIALIST RECRUITMENT LTD,06/09/2022,1499.24 ,AGENCY STAFF,V001926003
ROCHDALE BOROUGH COUNCIL,06/09/2022,NEIGHBOURHOODS AND ENVIRONMENT,REED SPECIALIST RECRUITMENT LTD,06/09/2022,440.18 ,CAPITAL - STAFFING AGENCY PAYMENTS,V001926003
ROCHDALE BOROUGH COUNCIL,06/09/2022,ADULT CARE LCO FUNCTIONS,REED SPECIALIST RECRUITMENT LTD,06/09/2022,735.90 ,AGENCY STAFF,V001926003
ROCHDALE BOROUGH COUNCIL,06/09/2022,ADULT CARE LCO FUNCTIONS,REED SPECIALIST RECRUITMENT LTD,06/09/2022,1217.67 ,AGENCY STAFF,V001926003
ROCHDALE BOROUGH COUNCIL,06/09/2022,NEIGHBOURHOODS AND ENVIRONMENT,REED SPECIALIST RECRUITMENT LTD,06/09/2022,596.59 ,AGENCY STAFF,V001926003
ROCHDALE BOROUGH COUNCIL,06/09/2022,NEIGHBOURHOODS AND ENVIRONMENT,REED SPECIALIST RECRUITMENT LTD,06/09/2022,181.97 ,AGENCY STAFF,V001926003
ROCHDALE BOROUGH COUNCIL,06/09/2022,NEIGHBOURHOODS AND ENVIRONMENT,REED SPECIALIST RECRUITMENT LTD,06/09/2022,454.62 ,AGENCY STAFF,V001926003
ROCHDALE BOROUGH COUNCIL,06/09/2022,NEIGHBOURHOODS AND ENVIRONMENT,REED SPECIALIST RECRUITMENT LTD,06/09/2022,499.55 ,AGENCY STAFF,V001926003
ROCHDALE BOROUGH COUNCIL,06/09/2022,CHILDREN�S SOCIAL CARE,REED SPECIALIST RECRUITMENT LTD,06/09/2022,1536.18 ,AGENCY STAFF,V001926003
ROCHDALE BOROUGH COUNCIL,06/09/2022,NEIGHBOURHOODS AND ENVIRONMENT,REED SPECIALIST RECRUITMENT LTD,06/09/2022,530.81 ,AGENCY STAFF,V001926003
ROCHDALE BOROUGH COUNCIL,06/09/2022,NEIGHBOURHOODS AND ENVIRONMENT,REED SPECIALIST RECRUITMENT LTD,06/09/2022,606.14 ,AGENCY STAFF,V001926003
ROCHDALE BOROUGH COUNCIL,06/09/2022,NEIGHBOURHOODS AND ENVIRONMENT,REED SPECIALIST RECRUITMENT LTD,06/09/2022,491.24 ,AGENCY STAFF,V001926003
ROCHDALE BOROUGH COUNCIL,06/09/2022,NEIGHBOURHOODS AND ENVIRONMENT,REED SPECIALIST RECRUITMENT LTD,06/09/2022,603.75 ,AGENCY STAFF,V001926003
ROCHDALE BOROUGH COUNCIL,06/09/2022,CHILDREN�S SOCIAL CARE,REED SPECIALIST RECRUITMENT LTD,06/09/2022,1396.01 ,AGENCY STAFF,V001926003
ROCHDALE BOROUGH COUNCIL,06/09/2022,NEIGHBOURHOODS AND ENVIRONMENT,REED SPECIALIST RECRUITMENT LTD,06/09/2022,603.75 ,AGENCY STAFF,V001926003
ROCHDALE BOROUGH COUNCIL,06/09/2022,NEIGHBOURHOODS AND ENVIRONMENT,REED SPECIALIST RECRUITMENT LTD,06/09/2022,122.81 ,AGENCY STAFF,V001926003
ROCHDALE BOROUGH COUNCIL,02/09/2022,NEIGHBOURHOODS AND ENVIRONMENT,THE WINDSCREEN PEOPLE LTD,02/09/2022,180.00 ,VEHICLE MAINTENANCE,V001926029
ROCHDALE BOROUGH COUNCIL,02/09/2022,NEIGHBOURHOODS AND ENVIRONMENT,ALPINE RESCUE AND RECOVERY SERVICES LTD.,02/09/2022,300.00 ,VEHICLE MAINTENANCE,V001926030
ROCHDALE BOROUGH COUNCIL,02/09/2022,NEIGHBOURHOODS AND ENVIRONMENT,ALPINE RESCUE AND RECOVERY SERVICES LTD.,02/09/2022,150.00 ,VEHICLE MAINTENANCE,V001926031
ROCHDALE BOROUGH COUNCIL,02/09/2022,NEIGHBOURHOODS AND ENVIRONMENT,ALPINE RESCUE AND RECOVERY SERVICES LTD.,02/09/2022,250.00 ,VEHICLE MAINTENANCE,V001926032
ROCHDALE BOROUGH COUNCIL,02/09/2022,NEIGHBOURHOODS AND ENVIRONMENT,ALPINE RESCUE AND RECOVERY SERVICES LTD.,02/09/2022,150.00 ,VEHICLE MAINTENANCE,V001926033
ROCHDALE BOROUGH COUNCIL,02/09/2022,NEIGHBOURHOODS AND ENVIRONMENT,BOC LIMITED,02/09/2022,317.35 ,VEHICLE MAINTENANCE,V001926034
ROCHDALE BOROUGH COUNCIL,02/09/2022,NEIGHBOURHOODS AND ENVIRONMENT,BOC LIMITED,02/09/2022,317.35 ,VEHICLE MAINTENANCE,V001926034
ROCHDALE BOROUGH COUNCIL,02/09/2022,NEIGHBOURHOODS AND ENVIRONMENT,CHIPPINDALE HIRE AND SALES,02/09/2022,174.40 ,TRANSACTIONS-EXPENDITURE,V001926035
ROCHDALE BOROUGH COUNCIL,02/09/2022,NEIGHBOURHOODS AND ENVIRONMENT,CHIPPINDALE HIRE AND SALES,02/09/2022,451.55 ,TRANSACTIONS-EXPENDITURE,V001926035
ROCHDALE BOROUGH COUNCIL,02/09/2022,NEIGHBOURHOODS AND ENVIRONMENT,CHIPPINDALE HIRE AND SALES,02/09/2022,460.65 ,TRANSACTIONS-EXPENDITURE,V001926035
ROCHDALE BOROUGH COUNCIL,02/09/2022,NEIGHBOURHOODS AND ENVIRONMENT,CHIPPINDALE HIRE AND SALES,02/09/2022,145.80 ,TRANSACTIONS-EXPENDITURE,V001926035
ROCHDALE BOROUGH COUNCIL,02/09/2022,NEIGHBOURHOODS AND ENVIRONMENT,CHIPPINDALE HIRE AND SALES,02/09/2022,99.30 ,TRANSACTIONS-EXPENDITURE,V001926035
ROCHDALE BOROUGH COUNCIL,02/09/2022,NEIGHBOURHOODS AND ENVIRONMENT,CHIPPINDALE HIRE AND SALES,02/09/2022,15.00 ,TRANSACTIONS-EXPENDITURE,V001926035
ROCHDALE BOROUGH COUNCIL,02/09/2022,NEIGHBOURHOODS AND ENVIRONMENT,F R SHARROCK LIMITED,02/09/2022,156.89 ,TRANSACTIONS-EXPENDITURE,V001926037
ROCHDALE BOROUGH COUNCIL,02/09/2022,NEIGHBOURHOODS AND ENVIRONMENT,F R SHARROCK LIMITED,02/09/2022,6.24 ,TRANSACTIONS-EXPENDITURE,V001926037
ROCHDALE BOROUGH COUNCIL,05/09/2022,NEIGHBOURHOODS AND ENVIRONMENT,DIRECT TYRE MANAGEMENT LTD,05/09/2022,237.62 ,VEHICLE MAINTENANCE,V001926039
ROCHDALE BOROUGH COUNCIL,05/09/2022,NEIGHBOURHOODS AND ENVIRONMENT,LODGE TYRE CO LTD,05/09/2022,5428.80 ,TYRES,V001926040
ROCHDALE BOROUGH COUNCIL,05/09/2022,NEIGHBOURHOODS AND ENVIRONMENT,F R SHARROCK LIMITED,05/09/2022,400.00 ,WEAR AND TEAR,V001926041
ROCHDALE BOROUGH COUNCIL,06/09/2022,NEIGHBOURHOODS AND ENVIRONMENT,BERENDSEN UK LTD,06/09/2022,565.12 ,VEHICLE MAINTENANCE,V001926042
ROCHDALE BOROUGH COUNCIL,06/09/2022,NEIGHBOURHOODS AND ENVIRONMENT,ALLIANCE AUTOMOTIVE UK CV LTD,06/09/2022,735.00 ,EQUIPMENT - GENERAL,V001926045
ROCHDALE BOROUGH COUNCIL,06/09/2022,NEIGHBOURHOODS AND ENVIRONMENT,ALLIANCE AUTOMOTIVE UK CV LTD,06/09/2022,675.00 ,EQUIPMENT - GENERAL,V001926045
ROCHDALE BOROUGH COUNCIL,06/09/2022,NEIGHBOURHOODS AND ENVIRONMENT,OVERTON UK LTD,06/09/2022,8320.00 ,VEHICLE MAINTENANCE,V001926046
ROCHDALE BOROUGH COUNCIL,06/09/2022,NEIGHBOURHOODS AND ENVIRONMENT,OVERTON UK LTD,06/09/2022,190.00 ,VEHICLE MAINTENANCE,V001926046
ROCHDALE BOROUGH COUNCIL,09/09/2022,NEIGHBOURHOODS AND ENVIRONMENT,ARCO GROUP LIMITED,09/09/2022,14.90 ,TRANSACTIONS-EXPENDITURE,V001926049
ROCHDALE BOROUGH COUNCIL,09/09/2022,NEIGHBOURHOODS AND ENVIRONMENT,ARCO GROUP LIMITED,09/09/2022,14.90 ,TRANSACTIONS-EXPENDITURE,V001926049
ROCHDALE BOROUGH COUNCIL,09/09/2022,NEIGHBOURHOODS AND ENVIRONMENT,ARCO GROUP LIMITED,09/09/2022,14.90 ,TRANSACTIONS-EXPENDITURE,V001926049
ROCHDALE BOROUGH COUNCIL,09/09/2022,NEIGHBOURHOODS AND ENVIRONMENT,F R SHARROCK LIMITED,09/09/2022,560.00 ,TRANSACTIONS-EXPENDITURE,V001926050
ROCHDALE BOROUGH COUNCIL,09/09/2022,NEIGHBOURHOODS AND ENVIRONMENT,F R SHARROCK LIMITED,09/09/2022,462.00 ,VEHICLE MAINTENANCE,V001926051
ROCHDALE BOROUGH COUNCIL,09/09/2022,NEIGHBOURHOODS AND ENVIRONMENT,F R SHARROCK LIMITED,09/09/2022,10.00 ,VEHICLE MAINTENANCE,V001926051
ROCHDALE BOROUGH COUNCIL,09/09/2022,NEIGHBOURHOODS AND ENVIRONMENT,ARCO GROUP LIMITED,09/09/2022,47.50 ,TRANSACTIONS-EXPENDITURE,V001926052
ROCHDALE BOROUGH COUNCIL,09/09/2022,NEIGHBOURHOODS AND ENVIRONMENT,ARCO GROUP LIMITED,09/09/2022,47.50 ,TRANSACTIONS-EXPENDITURE,V001926052
ROCHDALE BOROUGH COUNCIL,09/09/2022,NEIGHBOURHOODS AND ENVIRONMENT,ARCO GROUP LIMITED,09/09/2022,47.50 ,TRANSACTIONS-EXPENDITURE,V001926052
ROCHDALE BOROUGH COUNCIL,09/09/2022,NEIGHBOURHOODS AND ENVIRONMENT,FAUN ZOELLER UK LTD,09/09/2022,266.05 ,VEHICLE MAINTENANCE,V001926053
ROCHDALE BOROUGH COUNCIL,09/09/2022,NEIGHBOURHOODS AND ENVIRONMENT,FAUN ZOELLER UK LTD,09/09/2022,390.40 ,VEHICLE MAINTENANCE,V001926054
ROCHDALE BOROUGH COUNCIL,09/09/2022,NEIGHBOURHOODS AND ENVIRONMENT,FAUN ZOELLER UK LTD,09/09/2022,946.33 ,VEHICLE MAINTENANCE,V001926054
ROCHDALE BOROUGH COUNCIL,09/09/2022,NEIGHBOURHOODS AND ENVIRONMENT,FAUN ZOELLER UK LTD,09/09/2022,3.92 ,VEHICLE MAINTENANCE,V001926055
ROCHDALE BOROUGH COUNCIL,09/09/2022,NEIGHBOURHOODS AND ENVIRONMENT,FAUN ZOELLER UK LTD,09/09/2022,40.56 ,VEHICLE MAINTENANCE,V001926055
ROCHDALE BOROUGH COUNCIL,09/09/2022,NEIGHBOURHOODS AND ENVIRONMENT,FAUN ZOELLER UK LTD,09/09/2022,40.56 ,VEHICLE MAINTENANCE,V001926055
ROCHDALE BOROUGH COUNCIL,09/09/2022,NEIGHBOURHOODS AND ENVIRONMENT,FAUN ZOELLER UK LTD,09/09/2022,16.50 ,VEHICLE MAINTENANCE,V001926055
ROCHDALE BOROUGH COUNCIL,09/09/2022,NEIGHBOURHOODS AND ENVIRONMENT,ARCO GROUP LIMITED,09/09/2022,34.74 ,TRANSACTIONS-EXPENDITURE,V001926057
ROCHDALE BOROUGH COUNCIL,09/09/2022,NEIGHBOURHOODS AND ENVIRONMENT,ARCO GROUP LIMITED,09/09/2022,34.74 ,TRANSACTIONS-EXPENDITURE,V001926057
ROCHDALE BOROUGH COUNCIL,09/09/2022,NEIGHBOURHOODS AND ENVIRONMENT,ARCO GROUP LIMITED,09/09/2022,34.74 ,TRANSACTIONS-EXPENDITURE,V001926057
ROCHDALE BOROUGH COUNCIL,09/09/2022,NEIGHBOURHOODS AND ENVIRONMENT,PARTSPLUS,09/09/2022,65.75 ,VEHICLE MAINTENANCE,V001926058
ROCHDALE BOROUGH COUNCIL,09/09/2022,NEIGHBOURHOODS AND ENVIRONMENT,VIZWEAR,09/09/2022,114.44 ,TRANSACTIONS-EXPENDITURE,V001926060
ROCHDALE BOROUGH COUNCIL,09/09/2022,NEIGHBOURHOODS AND ENVIRONMENT,MOTUS COMMERCIALS,09/09/2022,185.00 ,VEHICLE MAINTENANCE,V001926062
ROCHDALE BOROUGH COUNCIL,09/09/2022,NEIGHBOURHOODS AND ENVIRONMENT,HI-WAY UNITS LIMITED,09/09/2022,20.91 ,VEHICLE MAINTENANCE,V001926063
ROCHDALE BOROUGH COUNCIL,09/09/2022,NEIGHBOURHOODS AND ENVIRONMENT,F R SHARROCK LIMITED,09/09/2022,414.72 ,TRANSACTIONS-EXPENDITURE,V001926064
ROCHDALE BOROUGH COUNCIL,09/09/2022,NEIGHBOURHOODS AND ENVIRONMENT,F R SHARROCK LIMITED,09/09/2022,10.00 ,TRANSACTIONS-EXPENDITURE,V001926064
ROCHDALE BOROUGH COUNCIL,09/09/2022,NEIGHBOURHOODS AND ENVIRONMENT,F R SHARROCK LIMITED,09/09/2022,197.90 ,VEHICLE MAINTENANCE,V001926065
ROCHDALE BOROUGH COUNCIL,09/09/2022,NEIGHBOURHOODS AND ENVIRONMENT,F R SHARROCK LIMITED,09/09/2022,161.40 ,VEHICLE MAINTENANCE,V001926065
ROCHDALE BOROUGH COUNCIL,09/09/2022,NEIGHBOURHOODS AND ENVIRONMENT,F R SHARROCK LIMITED,09/09/2022,125.00 ,VEHICLE MAINTENANCE,V001926065
ROCHDALE BOROUGH COUNCIL,09/09/2022,NEIGHBOURHOODS AND ENVIRONMENT,F R SHARROCK LIMITED,09/09/2022,10.00 ,VEHICLE MAINTENANCE,V001926065
ROCHDALE BOROUGH COUNCIL,09/09/2022,NEIGHBOURHOODS AND ENVIRONMENT,CICELEY COMMERCIALS LIMITED,09/09/2022,255.60 ,VEHICLE MAINTENANCE,V001926066
ROCHDALE BOROUGH COUNCIL,09/09/2022,NEIGHBOURHOODS AND ENVIRONMENT,CICELEY COMMERCIALS LIMITED,09/09/2022,124.95 ,VEHICLE MAINTENANCE,V001926066
ROCHDALE BOROUGH COUNCIL,09/09/2022,NEIGHBOURHOODS AND ENVIRONMENT,CICELEY COMMERCIALS LIMITED,09/09/2022,208.25 ,VEHICLE MAINTENANCE,V001926066
ROCHDALE BOROUGH COUNCIL,09/09/2022,NEIGHBOURHOODS AND ENVIRONMENT,CICELEY COMMERCIALS LIMITED,09/09/2022,272.00 ,VEHICLE MAINTENANCE,V001926066
ROCHDALE BOROUGH COUNCIL,09/09/2022,NEIGHBOURHOODS AND ENVIRONMENT,CICELEY COMMERCIALS LIMITED,09/09/2022,90.95 ,VEHICLE MAINTENANCE,V001926066
ROCHDALE BOROUGH COUNCIL,13/09/2022,NEIGHBOURHOODS AND ENVIRONMENT,SLICKER RECYCLING,13/09/2022,125.00 ,VEHICLE MAINTENANCE,V001926067
ROCHDALE BOROUGH COUNCIL,13/09/2022,NEIGHBOURHOODS AND ENVIRONMENT,SLICKER RECYCLING,13/09/2022,221.00 ,VEHICLE MAINTENANCE,V001926068
ROCHDALE BOROUGH COUNCIL,26/09/2022,EARLY HELP AND SCHOOLS,PROVIDENT RECRUITMENT LTD,26/09/2022,562.50 ,AGENCY STAFF,V001926071
ROCHDALE BOROUGH COUNCIL,13/09/2022,ECONOMY DIRECTORATE,ARROW BUSINESS COMMUNICATIONS LTD,13/09/2022,11.72 ,TELEPHONE EXPENDITURE,V001926073
ROCHDALE BOROUGH COUNCIL,13/09/2022,NEIGHBOURHOODS AND ENVIRONMENT,BELLYFLOP TV LTD,13/09/2022,1697.60 ,MARKETING EXPENDITURE,V001926074
ROCHDALE BOROUGH COUNCIL,13/09/2022,RESOURCES,INFORM CPI LTD,13/09/2022,305.00 ,FEES / COMMISSION,V001926075
ROCHDALE BOROUGH COUNCIL,13/09/2022,NEIGHBOURHOODS AND ENVIRONMENT,LS SYSTEMS LTD,13/09/2022,298.19 ,"TREES, SHRUBS, PLANTS",V001926076
ROCHDALE BOROUGH COUNCIL,13/09/2022,NEIGHBOURHOODS AND ENVIRONMENT,LS SYSTEMS LTD,13/09/2022,1580.29 ,"TREES, SHRUBS, PLANTS",V001926077
ROCHDALE BOROUGH COUNCIL,16/09/2022,ECONOMY DIRECTORATE,BLOOM PROCUREMENT SERVICES LTD,16/09/2022,40816.96 ,CONSULTANTS FEES,V001926082
ROCHDALE BOROUGH COUNCIL,13/09/2022,NEIGHBOURHOODS AND ENVIRONMENT,VIVID RESOURCING LTD,13/09/2022,705.50 ,BASIC WAGES,V001926083
ROCHDALE BOROUGH COUNCIL,13/09/2022,NEIGHBOURHOODS AND ENVIRONMENT,NORTHGATE VEHICLE HIRE LIMITED,13/09/2022,25.00 ,TYRES,V001926084
ROCHDALE BOROUGH COUNCIL,13/09/2022,EARLY HELP AND SCHOOLS,TREETOP TREK LTD,13/09/2022,886.67 ,ACTIVITIES,V001926086
ROCHDALE BOROUGH COUNCIL,06/09/2022,ECONOMY DIRECTORATE,E ON NEXT ENERGY LTD,06/09/2022,105.27 ,ELECTRICITY,V001926087
ROCHDALE BOROUGH COUNCIL,05/09/2022,PROPERTY AND HIGHWAYS,J B CIVILS LTD,05/09/2022,4500.00 ,MATERIAL - GENERAL,V001926088
ROCHDALE BOROUGH COUNCIL,05/09/2022,PROPERTY AND HIGHWAYS,J B CIVILS LTD,05/09/2022,4250.00 ,MATERIAL - GENERAL,V001926088
ROCHDALE BOROUGH COUNCIL,13/09/2022,ADULT CARE LCO FUNCTIONS,TF JONES PROPERTY SERVICES LTD,13/09/2022,5759.00 ,TRANSACTIONS-EXPENDITURE,V001926090
ROCHDALE BOROUGH COUNCIL,26/09/2022,RESOURCES,CRITIQOM LIMITED,26/09/2022,1191.37 ,PRINTING & STATIONERY,V001926093
ROCHDALE BOROUGH COUNCIL,09/09/2022,EARLY HELP AND SCHOOLS,REDACTED - PERSONAL DATA,09/09/2022,554.21 ,DIRECT PAYMENTS,V001926095
ROCHDALE BOROUGH COUNCIL,09/09/2022,NEIGHBOURHOODS AND ENVIRONMENT,WHISTL UK LTD,09/09/2022,1290.42 ,TRANSACTIONS-EXPENDITURE,V001926096
ROCHDALE BOROUGH COUNCIL,06/09/2022,CHILDREN�S SOCIAL CARE,SWIIS FOSTER CARE LIMITED,06/09/2022,754.18 ,FOSTER PARENTS BASIC ALLOWANCE,V001926097
ROCHDALE BOROUGH COUNCIL,06/09/2022,CHILDREN�S SOCIAL CARE,INSPIRE COMMUNITY SERVICES LTD,06/09/2022,70.00 ,"CLOTHES, UNIFORM AND LAUNDRY",V001926098
ROCHDALE BOROUGH COUNCIL,06/09/2022,CHILDREN�S SOCIAL CARE,FOSTER CARES LTD,06/09/2022,783.00 ,FOSTER PARENTS BASIC ALLOWANCE,V001926100
ROCHDALE BOROUGH COUNCIL,09/09/2022,NEIGHBOURHOODS AND ENVIRONMENT,ALLIANCE DISPOSABLES LIMITED,09/09/2022,2.38 ,CLEANING EQUIPMENT,V001926102
ROCHDALE BOROUGH COUNCIL,09/09/2022,NEIGHBOURHOODS AND ENVIRONMENT,ALLIANCE DISPOSABLES LIMITED,09/09/2022,3.95 ,CLEANING MATERIALS,V001926102
ROCHDALE BOROUGH COUNCIL,09/09/2022,NEIGHBOURHOODS AND ENVIRONMENT,ALLIANCE DISPOSABLES LIMITED,09/09/2022,9.25 ,CONSUMABLES,V001926102
ROCHDALE BOROUGH COUNCIL,09/09/2022,NEIGHBOURHOODS AND ENVIRONMENT,ALLIANCE DISPOSABLES LIMITED,09/09/2022,17.50 ,CONSUMABLES,V001926102
ROCHDALE BOROUGH COUNCIL,15/09/2022,NEIGHBOURHOODS AND ENVIRONMENT,ALLIANCE DISPOSABLES LIMITED,15/09/2022,7.14 ,CLEANING EQUIPMENT,V001926103
ROCHDALE BOROUGH COUNCIL,15/09/2022,NEIGHBOURHOODS AND ENVIRONMENT,ALLIANCE DISPOSABLES LIMITED,15/09/2022,2.38 ,CLEANING EQUIPMENT,V001926103
ROCHDALE BOROUGH COUNCIL,15/09/2022,NEIGHBOURHOODS AND ENVIRONMENT,ALLIANCE DISPOSABLES LIMITED,15/09/2022,22.00 ,CLEANING MATERIALS,V001926103
ROCHDALE BOROUGH COUNCIL,15/09/2022,NEIGHBOURHOODS AND ENVIRONMENT,ALLIANCE DISPOSABLES LIMITED,15/09/2022,29.66 ,CLEANING EQUIPMENT,V001926103
ROCHDALE BOROUGH COUNCIL,15/09/2022,NEIGHBOURHOODS AND ENVIRONMENT,ALLIANCE DISPOSABLES LIMITED,15/09/2022,34.05 ,CLEANING MATERIALS,V001926103
ROCHDALE BOROUGH COUNCIL,15/09/2022,NEIGHBOURHOODS AND ENVIRONMENT,ALLIANCE DISPOSABLES LIMITED,15/09/2022,50.20 ,CLEANING MATERIALS,V001926103
ROCHDALE BOROUGH COUNCIL,15/09/2022,NEIGHBOURHOODS AND ENVIRONMENT,ALLIANCE DISPOSABLES LIMITED,15/09/2022,15.80 ,CLEANING MATERIALS,V001926103
ROCHDALE BOROUGH COUNCIL,15/09/2022,NEIGHBOURHOODS AND ENVIRONMENT,ALLIANCE DISPOSABLES LIMITED,15/09/2022,5.65 ,CLEANING MATERIALS,V001926103
ROCHDALE BOROUGH COUNCIL,15/09/2022,NEIGHBOURHOODS AND ENVIRONMENT,ALLIANCE DISPOSABLES LIMITED,15/09/2022,3.74 ,CLEANING MATERIALS,V001926103
ROCHDALE BOROUGH COUNCIL,15/09/2022,NEIGHBOURHOODS AND ENVIRONMENT,ALLIANCE DISPOSABLES LIMITED,15/09/2022,9.50 ,CLEANING MATERIALS,V001926103
ROCHDALE BOROUGH COUNCIL,15/09/2022,NEIGHBOURHOODS AND ENVIRONMENT,ALLIANCE DISPOSABLES LIMITED,15/09/2022,6.25 ,CLEANING MATERIALS,V001926103
ROCHDALE BOROUGH COUNCIL,15/09/2022,NEIGHBOURHOODS AND ENVIRONMENT,ALLIANCE DISPOSABLES LIMITED,15/09/2022,11.60 ,CLEANING MATERIALS,V001926103
ROCHDALE BOROUGH COUNCIL,15/09/2022,NEIGHBOURHOODS AND ENVIRONMENT,ALLIANCE DISPOSABLES LIMITED,15/09/2022,12.50 ,CLEANING MATERIALS,V001926103
ROCHDALE BOROUGH COUNCIL,15/09/2022,NEIGHBOURHOODS AND ENVIRONMENT,ALLIANCE DISPOSABLES LIMITED,15/09/2022,12.70 ,CLEANING MATERIALS,V001926103
ROCHDALE BOROUGH COUNCIL,15/09/2022,NEIGHBOURHOODS AND ENVIRONMENT,ALLIANCE DISPOSABLES LIMITED,15/09/2022,13.20 ,CONSUMABLES,V001926103
ROCHDALE BOROUGH COUNCIL,15/09/2022,NEIGHBOURHOODS AND ENVIRONMENT,ALLIANCE DISPOSABLES LIMITED,15/09/2022,95.60 ,CONSUMABLES,V001926103
ROCHDALE BOROUGH COUNCIL,15/09/2022,NEIGHBOURHOODS AND ENVIRONMENT,ALLIANCE DISPOSABLES LIMITED,15/09/2022,14.00 ,CLEANING MATERIALS,V001926103
ROCHDALE BOROUGH COUNCIL,15/09/2022,NEIGHBOURHOODS AND ENVIRONMENT,ALLIANCE DISPOSABLES LIMITED,15/09/2022,34.50 ,CONSUMABLES,V001926103
ROCHDALE BOROUGH COUNCIL,15/09/2022,NEIGHBOURHOODS AND ENVIRONMENT,ALLIANCE DISPOSABLES LIMITED,15/09/2022,74.00 ,CONSUMABLES,V001926103
ROCHDALE BOROUGH COUNCIL,15/09/2022,NEIGHBOURHOODS AND ENVIRONMENT,ALLIANCE DISPOSABLES LIMITED,15/09/2022,140.00 ,CONSUMABLES,V001926103
ROCHDALE BOROUGH COUNCIL,09/09/2022,NEIGHBOURHOODS AND ENVIRONMENT,ALLIANCE DISPOSABLES LIMITED,09/09/2022,4.76 ,CLEANING EQUIPMENT,V001926104
ROCHDALE BOROUGH COUNCIL,09/09/2022,NEIGHBOURHOODS AND ENVIRONMENT,ALLIANCE DISPOSABLES LIMITED,09/09/2022,3.95 ,CLEANING MATERIALS,V001926104
ROCHDALE BOROUGH COUNCIL,09/09/2022,NEIGHBOURHOODS AND ENVIRONMENT,ALLIANCE DISPOSABLES LIMITED,09/09/2022,12.50 ,CLEANING MATERIALS,V001926104
ROCHDALE BOROUGH COUNCIL,09/09/2022,NEIGHBOURHOODS AND ENVIRONMENT,ALLIANCE DISPOSABLES LIMITED,09/09/2022,7.50 ,CLEANING MATERIALS,V001926104
ROCHDALE BOROUGH COUNCIL,09/09/2022,NEIGHBOURHOODS AND ENVIRONMENT,ALLIANCE DISPOSABLES LIMITED,09/09/2022,2.95 ,CLEANING EQUIPMENT,V001926104
ROCHDALE BOROUGH COUNCIL,09/09/2022,NEIGHBOURHOODS AND ENVIRONMENT,ALLIANCE DISPOSABLES LIMITED,09/09/2022,2.95 ,CLEANING EQUIPMENT,V001926104
ROCHDALE BOROUGH COUNCIL,09/09/2022,NEIGHBOURHOODS AND ENVIRONMENT,ALLIANCE DISPOSABLES LIMITED,09/09/2022,29.50 ,CLEANING EQUIPMENT,V001926104
ROCHDALE BOROUGH COUNCIL,09/09/2022,NEIGHBOURHOODS AND ENVIRONMENT,ALLIANCE DISPOSABLES LIMITED,09/09/2022,29.50 ,CLEANING EQUIPMENT,V001926104
ROCHDALE BOROUGH COUNCIL,05/09/2022,CHILDREN�S SOCIAL CARE,NESTLINGS CARE LTD,05/09/2022,29148.85 ,EBD (EMOT & BEHAV DIFF) PLACEMENTS,V001926108
ROCHDALE BOROUGH COUNCIL,05/09/2022,CHILDREN�S SOCIAL CARE,NESTLINGS CARE LTD,05/09/2022,29148.85 ,EBD (EMOT & BEHAV DIFF) PLACEMENTS,V001926109
ROCHDALE BOROUGH COUNCIL,09/09/2022,CHILDREN�S SOCIAL CARE,T I S LIMITED,09/09/2022,43.50 ,TRAINING APPRENTICESHIP LEVY,V001926110
ROCHDALE BOROUGH COUNCIL,09/09/2022,RESOURCES,PEOPLE ASSET MANAGEMENT LTD,09/09/2022,6326.16 ,OCCUPATIONAL HEALTH,V001926113
ROCHDALE BOROUGH COUNCIL,05/09/2022,CHILDREN�S SOCIAL CARE,ONEXTRA CARE LTD,05/09/2022,20150.00 ,EBD (EMOT & BEHAV DIFF) PLACEMENTS,V001926114
ROCHDALE BOROUGH COUNCIL,05/09/2022,CHILDREN�S SOCIAL CARE,ONEXTRA CARE LTD,05/09/2022,17670.00 ,EBD (EMOT & BEHAV DIFF) PLACEMENTS,V001926115
ROCHDALE BOROUGH COUNCIL,05/09/2022,NEIGHBOURHOODS AND ENVIRONMENT,KHIPU NETWORKS LTD,05/09/2022,473.23 ,TRANSACTIONS-EXPENDITURE,V001926116
ROCHDALE BOROUGH COUNCIL,13/09/2022,NEIGHBOURHOODS AND ENVIRONMENT,247 HOTEL,13/09/2022,3748.33 ,ACCOMMODATION,V001926117
ROCHDALE BOROUGH COUNCIL,02/09/2022,NEIGHBOURHOODS AND ENVIRONMENT,GRAVITAS RECRUITMENT GROUP,02/09/2022,1150.00 ,CAPITAL - STAFFING AGENCY PAYMENTS,V001926118
ROCHDALE BOROUGH COUNCIL,13/09/2022,NEIGHBOURHOODS AND ENVIRONMENT,GROUNDWORK LANDSCAPES LIMITED,13/09/2022,1450.00 ,EQUIPMENT - GENERAL,V001926119
ROCHDALE BOROUGH COUNCIL,13/09/2022,NEIGHBOURHOODS AND ENVIRONMENT,HUCK TEK,13/09/2022,400.00 ,MAINTENANCE,V001926120
ROCHDALE BOROUGH COUNCIL,13/09/2022,NEIGHBOURHOODS AND ENVIRONMENT,OFFICE FURNITURE ONLINE,13/09/2022,4508.00 ,FIXTURES & FITTINGS,V001926121
ROCHDALE BOROUGH COUNCIL,13/09/2022,CHILDREN�S SOCIAL CARE,SWIIS FOSTER CARE LIMITED,13/09/2022,808.01 ,FOSTER PARENTS BASIC ALLOWANCE,V001926122
ROCHDALE BOROUGH COUNCIL,13/09/2022,CHILDREN�S SOCIAL CARE,SWIIS FOSTER CARE LIMITED,13/09/2022,775.18 ,FOSTER PARENTS BASIC ALLOWANCE,V001926123
ROCHDALE BOROUGH COUNCIL,13/09/2022,EARLY HELP AND SCHOOLS,XMA LIMITED,13/09/2022,248.83 ,IT EQUIPMENT,V001926124
ROCHDALE BOROUGH COUNCIL,13/09/2022,EARLY HELP AND SCHOOLS,XMA LIMITED,13/09/2022,20.94 ,IT EQUIPMENT,V001926124
ROCHDALE BOROUGH COUNCIL,06/09/2022,EARLY HELP AND SCHOOLS,WITHERSLACK INTEGRATED PROVISION,06/09/2022,25230.00 ,OTHER LA`S - SEN PROVISION,V001926125
ROCHDALE BOROUGH COUNCIL,06/09/2022,ECONOMY DIRECTORATE,ROCHDALE DEVELOPMENT AGENCY,06/09/2022,-43.19 ,MINOR BUILDING WORKS,V001932485
ROCHDALE BOROUGH COUNCIL,06/09/2022,NEIGHBOURHOODS AND ENVIRONMENT,THE OYSTER PARTNERSHIP LTD,06/09/2022,1659.53 ,AGENCY STAFF,V001932486
ROCHDALE BOROUGH COUNCIL,05/09/2022,NEIGHBOURHOODS AND ENVIRONMENT,W F HOWES LTD,05/09/2022,16.40 ,REFERENCE BOOKS/NEWSPAPERS/PERIODICALS,V001932490
ROCHDALE BOROUGH COUNCIL,05/09/2022,NEIGHBOURHOODS AND ENVIRONMENT,PETERS LIMITED,05/09/2022,221.89 ,REFERENCE BOOKS/NEWSPAPERS/PERIODICALS,V001932491
ROCHDALE BOROUGH COUNCIL,05/09/2022,NEIGHBOURHOODS AND ENVIRONMENT,PETERS LIMITED,05/09/2022,221.89 ,REFERENCE BOOKS/NEWSPAPERS/PERIODICALS,V001932491
ROCHDALE BOROUGH COUNCIL,05/09/2022,NEIGHBOURHOODS AND ENVIRONMENT,PETERS LIMITED,05/09/2022,1325.57 ,REFERENCE BOOKS/NEWSPAPERS/PERIODICALS,V001932492
ROCHDALE BOROUGH COUNCIL,05/09/2022,NEIGHBOURHOODS AND ENVIRONMENT,PETERS LIMITED,05/09/2022,1325.57 ,REFERENCE BOOKS/NEWSPAPERS/PERIODICALS,V001932492
ROCHDALE BOROUGH COUNCIL,06/09/2022,NEIGHBOURHOODS AND ENVIRONMENT,PETERS LIMITED,06/09/2022,1049.98 ,REFERENCE BOOKS/NEWSPAPERS/PERIODICALS,V001932493
ROCHDALE BOROUGH COUNCIL,06/09/2022,NEIGHBOURHOODS AND ENVIRONMENT,PETERS LIMITED,06/09/2022,1049.98 ,REFERENCE BOOKS/NEWSPAPERS/PERIODICALS,V001932493
ROCHDALE BOROUGH COUNCIL,06/09/2022,NEIGHBOURHOODS AND ENVIRONMENT,ASKEWS AND HOLTS LIBRARY SERVICES LTD,06/09/2022,518.43 ,REFERENCE BOOKS/NEWSPAPERS/PERIODICALS,V001932494
ROCHDALE BOROUGH COUNCIL,06/09/2022,NEIGHBOURHOODS AND ENVIRONMENT,THE OYSTER PARTNERSHIP LTD,06/09/2022,264.48 ,ACTIVITIES,V001932497
ROCHDALE BOROUGH COUNCIL,06/09/2022,CHILDREN�S SOCIAL CARE,C K CHILDCARE LTD,06/09/2022,1054.00 ,ACTIVITIES,V001932501
ROCHDALE BOROUGH COUNCIL,09/09/2022,RESOURCES,NEC SOFTWARE SOLUTIONS UK LTD,09/09/2022,1250.00 ,SOFTWARE,V001932503
ROCHDALE BOROUGH COUNCIL,09/09/2022,ADULT CARE LCO FUNCTIONS,ABUKA,09/09/2022,195.00 ,TRAINING,V001932504
ROCHDALE BOROUGH COUNCIL,09/09/2022,ADULT CARE LCO FUNCTIONS,ABUKA,09/09/2022,195.00 ,TRAINING,V001932509
ROCHDALE BOROUGH COUNCIL,23/09/2022,ADULT CARE LCO FUNCTIONS,HEALEY CARE LTD,23/09/2022,620.00 ,PERSONAL BUDGETS - MANAGED,V001932815
ROCHDALE BOROUGH COUNCIL,23/09/2022,ADULT CARE LCO FUNCTIONS,HEALEY CARE LTD,23/09/2022,1085.00 ,PERSONAL BUDGETS - MANAGED,V001932816
ROCHDALE BOROUGH COUNCIL,13/09/2022,ADULT CARE LCO FUNCTIONS,TF JONES PROPERTY SERVICES LTD,13/09/2022,118.80 ,MINOR BUILDING WORKS,V001933006
ROCHDALE BOROUGH COUNCIL,13/09/2022,RESOURCES,BANNER GROUP LIMITED,13/09/2022,25.49 ,PRINTING & STATIONERY,V001933019
ROCHDALE BOROUGH COUNCIL,13/09/2022,ADULT CARE LCO FUNCTIONS,SARA MEDICS LTD,13/09/2022,173.37 ,EXPENSES - GENERAL,V001933022
ROCHDALE BOROUGH COUNCIL,13/09/2022,ADULT CARE LCO FUNCTIONS,SARA MEDICS LTD,13/09/2022,173.37 ,EXPENSES - GENERAL,V001933023
ROCHDALE BOROUGH COUNCIL,13/09/2022,ADULT CARE LCO FUNCTIONS,ADVOCACY FOCUS,13/09/2022,200.00 ,ACTIVITIES,V001933027
ROCHDALE BOROUGH COUNCIL,13/09/2022,CHILDREN�S SOCIAL CARE,PARADIGM PROFESSIONAL CONSULTANCY LTD,13/09/2022,70.00 ,AGENCY STAFF,V001933030
ROCHDALE BOROUGH COUNCIL,13/09/2022,NEIGHBOURHOODS AND ENVIRONMENT,NETWORK CONNECT LTD,13/09/2022,409.19 ,COMMUNICATION AND COMPUTING - GENERAL,V001933031
ROCHDALE BOROUGH COUNCIL,13/09/2022,EARLY HELP AND SCHOOLS,APOLLO HOME HEALTHCARE,13/09/2022,200.40 ,HOME CARE - CHILDRENS SERVICES,V001933032
ROCHDALE BOROUGH COUNCIL,13/09/2022,ECONOMY DIRECTORATE,ECOLOGY TRAINING UK,13/09/2022,426.67 ,TRAINING-NON QUALIFICATION,V001933033
ROCHDALE BOROUGH COUNCIL,13/09/2022,ADULT CARE LCO FUNCTIONS,CLOSOMAT LTD,13/09/2022,390.00 ,ADAPTATIONS,V001933034
ROCHDALE BOROUGH COUNCIL,05/09/2022,NEIGHBOURHOODS AND ENVIRONMENT,TRAVIS PERKINS TRADING CO LTD,05/09/2022,31.50 ,EQUIPMENT - GENERAL,V001933035
ROCHDALE BOROUGH COUNCIL,13/09/2022,NEIGHBOURHOODS AND ENVIRONMENT,PLASTICS DIRECT LTD,13/09/2022,112.50 ,REPAIRS & ALTS OF BUILDINGS,V001933036
ROCHDALE BOROUGH COUNCIL,06/09/2022,EARLY HELP AND SCHOOLS,TECHNO-VISION SYSTEMS LIMITED,06/09/2022,2395.00 ,EQUIPMENT - GENERAL,V001933037
ROCHDALE BOROUGH COUNCIL,06/09/2022,EARLY HELP AND SCHOOLS,TECHNO-VISION SYSTEMS LIMITED,06/09/2022,2395.00 ,EQUIPMENT - GENERAL,V001933037
ROCHDALE BOROUGH COUNCIL,06/09/2022,EARLY HELP AND SCHOOLS,TECHNO-VISION SYSTEMS LIMITED,06/09/2022,520.00 ,EQUIPMENT - GENERAL,V001933037
ROCHDALE BOROUGH COUNCIL,06/09/2022,EARLY HELP AND SCHOOLS,TECHNO-VISION SYSTEMS LIMITED,06/09/2022,520.00 ,EQUIPMENT - GENERAL,V001933037
ROCHDALE BOROUGH COUNCIL,06/09/2022,CHILDREN�S SOCIAL CARE,CARE AND COMMUNITY LTD,06/09/2022,61.05 ,YOUNGE PERSONS ALLOWANCE,V001933038
ROCHDALE BOROUGH COUNCIL,05/09/2022,CHILDREN�S SOCIAL CARE,BY THE BRIDGE THERAPUTIC FOSTERING SERVICE,05/09/2022,1536.89 ,FOSTER PARENTS BASIC ALLOWANCE,V001933041
ROCHDALE BOROUGH COUNCIL,05/09/2022,CHILDREN�S SOCIAL CARE,BY THE BRIDGE THERAPUTIC FOSTERING SERVICE,05/09/2022,1536.89 ,FOSTER PARENTS BASIC ALLOWANCE,V001933042
ROCHDALE BOROUGH COUNCIL,09/09/2022,ECONOMY DIRECTORATE,BRAHM FUNDCO 2 LTD,09/09/2022,29022.65 ,PFI SCHEMES RPI,V001933043
ROCHDALE BOROUGH COUNCIL,13/09/2022,COMMISSIONING AND STATUTORY,BANNER GROUP LIMITED,13/09/2022,80.49 ,STATIONERY,V001933044
